{"text_format":"3","workbook":"xlsx","n_sheets":2,"sheets":["   岳阳县农业农村局2026年度巩固拓展脱贫攻坚成果和乡村振","岳阳县2026年度巩固拓展脱贫攻坚成果和乡村振兴项目库入库项目"],"not_rendered":{"defined_names":1},"read":"whole","date_system":"1900"}

{"sheet":"   岳阳县农业农村局2026年度巩固拓展脱贫攻坚成果和乡村振","index":0,"n_rows":40,"n_cols":13,"rows_kept":40,"merged":[[1,0,1,12],[2,0,2,12],[3,0,5,0],[3,1,5,1],[3,2,5,2],[3,3,3,5],[3,6,3,11],[3,12,5,12],[4,3,5,3],[4,4,4,5],[4,6,5,6],[4,7,5,7],[4,8,5,8],[4,9,4,11]]}
[]
["   岳阳县农业农村局2026年度巩固拓展脱贫攻坚成果和乡村振兴项目库入库项目申报分类汇总表"]
["单位（盖章）：  单位：万元、个、人"]
["序号","项目类型","项目个数","资金规模和筹资方式",null,null,"受益对象",{"$nulls":5},"备注"]
[{"$nulls":3},"项目预算\n总投资","其中",null,"受益村\n（个）","受益户数\n（户）","受益人口数\n（人）","其中"]
[{"$nulls":4},"财政\n资金","其他\n资金",{"$nulls":3},"受益脱贫村数（个）","受益脱贫户数及监测对象户数（户）","受益脱贫人口数及监测对象人口数（人）"]
[null,"总  计",{"$f":"C8+C14+C20+C25","v":439},30356.405,21185,8621.905,192,25056,27633,46,9890,10210]
[null,"一、产业发展",{"$f":"SUM(C9:C13)","v":272},{"$f":"SUM(D9:D13)","v":21073.605},{"$f":"SUM(E9:E13)","v":14600},{"$f":"SUM(F9:F13)","v":6108.105},192,19950,16000,46,5570,10210]
[null,"1.生产项目",{"$f":"COUNTIF(岳阳县2026年度巩固拓展脱贫攻坚成果和乡村振兴项目库入库项目!C6:C444,\"生产项目\")","v":121},{"$f":"SUMIF(岳阳县2026年度巩固拓展脱贫攻坚成果和乡村振兴项目库入库项目!C6:C444,\"生产项目\",岳阳县2026年度巩固拓展脱贫攻坚成果和乡村振兴项目库入库项目!N6:N444)","v":5221.835},{"$f":"SUMIF(岳阳县2026年度巩固拓展脱贫攻坚成果和乡村振兴项目库入库项目!C6:C444,\"生产项目\",岳阳县2026年度巩固拓展脱贫攻坚成果和乡村振兴项目库入库项目!O6:O444)","v":3204.5},{"$f":"SUMIF(岳阳县2026年度巩固拓展脱贫攻坚成果和乡村振兴项目库入库项目!C6:C444,\"生产项目\",岳阳县2026年度巩固拓展脱贫攻坚成果和乡村振兴项目库入库项目!P6:P444)","v":1762.335},192,19950,16000,46,3320,6640]
[null,"2.加工流通项目",{"$f":"COUNTIF(岳阳县2026年度巩固拓展脱贫攻坚成果和乡村振兴项目库入库项目!C6:C444,\"加工流通项目\")","v":6},{"$f":"SUMIF(岳阳县2026年度巩固拓展脱贫攻坚成果和乡村振兴项目库入库项目!C6:C444,\"加工流通项目\",岳阳县2026年度巩固拓展脱贫攻坚成果和乡村振兴项目库入库项目!N6:N444)","v":2155},{"$f":"SUMIF(岳阳县2026年度巩固拓展脱贫攻坚成果和乡村振兴项目库入库项目!C6:C444,\"加工流通项目\",岳阳县2026年度巩固拓展脱贫攻坚成果和乡村振兴项目库入库项目!O6:O444)","v":275},{"$f":"SUMIF(岳阳县2026年度巩固拓展脱贫攻坚成果和乡村振兴项目库入库项目!C6:C444,\"加工流通项目\",岳阳县2026年度巩固拓展脱贫攻坚成果和乡村振兴项目库入库项目!P6:P444)","v":1850},{"$f":"SUMIF(岳阳县2026年度巩固拓展脱贫攻坚成果和乡村振兴项目库入库项目!C6:C444,\"加工流通项目\",岳阳县2026年度巩固拓展脱贫攻坚成果和乡村振兴项目库入库项目!Q6:Q444)","v":6},{"$f":"SUMIF(岳阳县2026年度巩固拓展脱贫攻坚成果和乡村振兴项目库入库项目!C6:C444,\"加工流通项目\",岳阳县2026年度巩固拓展脱贫攻坚成果和乡村振兴项目库入库项目!R6:R444)","v":3395},{"$f":"SUMIF(岳阳县2026年度巩固拓展脱贫攻坚成果和乡村振兴项目库入库项目!C6:C444,\"加工流通项目\",岳阳县2026年度巩固拓展脱贫攻坚成果和乡村振兴项目库入库项目!S6:S444)","v":13040},{"$f":"SUMIF(岳阳县2026年度巩固拓展脱贫攻坚成果和乡村振兴项目库入库项目!C6:C444,\"加工流通项目\",岳阳县2026年度巩固拓展脱贫攻坚成果和乡村振兴项目库入库项目!T6:T444)","v":5},{"$f":"SUMIF(岳阳县2026年度巩固拓展脱贫攻坚成果和乡村振兴项目库入库项目!C6:C444,\"加工流通项目\",岳阳县2026年度巩固拓展脱贫攻坚成果和乡村振兴项目库入库项目!U6:U444)","v":269},{"$f":"SUMIF(岳阳县2026年度巩固拓展脱贫攻坚成果和乡村振兴项目库入库项目!C6:C444,\"加工流通项目\",岳阳县2026年度巩固拓展脱贫攻坚成果和乡村振兴项目库入库项目!V6:V444)","v":821}]
[null,"3.配套设施项目",{"$f":"COUNTIF(岳阳县2026年度巩固拓展脱贫攻坚成果和乡村振兴项目库入库项目!C6:C444,\"配套基础设施项目\")","v":138},{"$f":"SUMIF(岳阳县2026年度巩固拓展脱贫攻坚成果和乡村振兴项目库入库项目!C6:C444,\"配套基础设施项目\",岳阳县2026年度巩固拓展脱贫攻坚成果和乡村振兴项目库入库项目!N6:N444)","v":12572.77},{"$f":"SUMIF(岳阳县2026年度巩固拓展脱贫攻坚成果和乡村振兴项目库入库项目!C6:C444,\"配套基础设施项目\",岳阳县2026年度巩固拓展脱贫攻坚成果和乡村振兴项目库入库项目!O6:O444)","v":10012.5},{"$f":"SUMIF(岳阳县2026年度巩固拓展脱贫攻坚成果和乡村振兴项目库入库项目!C6:C444,\"配套基础设施项目\",岳阳县2026年度巩固拓展脱贫攻坚成果和乡村振兴项目库入库项目!P6:P444)","v":2479.77},192,19950,16000,{"$f":"SUMIF(岳阳县2026年度巩固拓展脱贫攻坚成果和乡村振兴项目库入库项目!C6:C444,\"配套基础设施项目\",岳阳县2026年度巩固拓展脱贫攻坚成果和乡村振兴项目库入库项目!T6:T444)","v":155},{"$f":"SUMIF(岳阳县2026年度巩固拓展脱贫攻坚成果和乡村振兴项目库入库项目!C6:C444,\"配套基础设施项目\",岳阳县2026年度巩固拓展脱贫攻坚成果和乡村振兴项目库入库项目!U6:U444)","v":5379},{"$f":"SUMIF(岳阳县2026年度巩固拓展脱贫攻坚成果和乡村振兴项目库入库项目!C6:C444,\"配套基础设施项目\",岳阳县2026年度巩固拓展脱贫攻坚成果和乡村振兴项目库入库项目!V6:V444)","v":13835}]
[null,"4.产业服务支撑项目",{"$f":"COUNTIF(岳阳县2026年度巩固拓展脱贫攻坚成果和乡村振兴项目库入库项目!C6:C444,\"产业服务支撑项目\")","v":5},{"$f":"SUMIF(岳阳县2026年度巩固拓展脱贫攻坚成果和乡村振兴项目库入库项目!C6:C444,\"产业服务支撑项目\",岳阳县2026年度巩固拓展脱贫攻坚成果和乡村振兴项目库入库项目!N6:N444)","v":144},{"$f":"SUMIF(岳阳县2026年度巩固拓展脱贫攻坚成果和乡村振兴项目库入库项目!C6:C444,\"产业服务支撑项目\",岳阳县2026年度巩固拓展脱贫攻坚成果和乡村振兴项目库入库项目!O6:O444)","v":128},{"$f":"SUMIF(岳阳县2026年度巩固拓展脱贫攻坚成果和乡村振兴项目库入库项目!C6:C444,\"产业服务支撑项目\",岳阳县2026年度巩固拓展脱贫攻坚成果和乡村振兴项目库入库项目!P6:P444)","v":16},{"$f":"SUMIF(岳阳县2026年度巩固拓展脱贫攻坚成果和乡村振兴项目库入库项目!C6:C444,\"产业服务支撑项目\",岳阳县2026年度巩固拓展脱贫攻坚成果和乡村振兴项目库入库项目!Q6:Q444)","v":5},{"$f":"SUMIF(岳阳县2026年度巩固拓展脱贫攻坚成果和乡村振兴项目库入库项目!C6:C444,\"产业服务支撑项目\",岳阳县2026年度巩固拓展脱贫攻坚成果和乡村振兴项目库入库项目!R6:R444)","v":5779},{"$f":"SUMIF(岳阳县2026年度巩固拓展脱贫攻坚成果和乡村振兴项目库入库项目!C6:C444,\"产业服务支撑项目\",岳阳县2026年度巩固拓展脱贫攻坚成果和乡村振兴项目库入库项目!S6:S444)","v":21733},{"$f":"SUMIF(岳阳县2026年度巩固拓展脱贫攻坚成果和乡村振兴项目库入库项目!C6:C444,\"产业服务支撑项目\",岳阳县2026年度巩固拓展脱贫攻坚成果和乡村振兴项目库入库项目!T6:T444)","v":2},{"$f":"SUMIF(岳阳县2026年度巩固拓展脱贫攻坚成果和乡村振兴项目库入库项目!C6:C444,\"产业服务支撑项目\",岳阳县2026年度巩固拓展脱贫攻坚成果和乡村振兴项目库入库项目!U6:U444)","v":372},{"$f":"SUMIF(岳阳县2026年度巩固拓展脱贫攻坚成果和乡村振兴项目库入库项目!C6:C444,\"产业服务支撑项目\",岳阳县2026年度巩固拓展脱贫攻坚成果和乡村振兴项目库入库项目!V6:V444)","v":949}]
[null,"5.金融保险配套项目",{"$f":"COUNTIF(岳阳县2026年度巩固拓展脱贫攻坚成果和乡村振兴项目库入库项目!C6:C444,\"金融保险配套项目\")","v":2},{"$f":"SUMIF(岳阳县2026年度巩固拓展脱贫攻坚成果和乡村振兴项目库入库项目!C6:C444,\"金融保险配套项目\",岳阳县2026年度巩固拓展脱贫攻坚成果和乡村振兴项目库入库项目!N6:N444)","v":980},{"$f":"SUMIF(岳阳县2026年度巩固拓展脱贫攻坚成果和乡村振兴项目库入库项目!C6:C444,\"金融保险配套项目\",岳阳县2026年度巩固拓展脱贫攻坚成果和乡村振兴项目库入库项目!O6:O444)","v":980},{"$f":"SUMIF(岳阳县2026年度巩固拓展脱贫攻坚成果和乡村振兴项目库入库项目!C6:C444,\"金融保险配套项目\",岳阳县2026年度巩固拓展脱贫攻坚成果和乡村振兴项目库入库项目!P6:P444)","v":0},192,19950,16000,{"$f":"SUMIF(岳阳县2026年度巩固拓展脱贫攻坚成果和乡村振兴项目库入库项目!C6:C444,\"金融保险配套项目\",岳阳县2026年度巩固拓展脱贫攻坚成果和乡村振兴项目库入库项目!T6:T444)","v":92},{"$f":"SUMIF(岳阳县2026年度巩固拓展脱贫攻坚成果和乡村振兴项目库入库项目!C6:C444,\"金融保险配套项目\",岳阳县2026年度巩固拓展脱贫攻坚成果和乡村振兴项目库入库项目!U6:U444)","v":2450},{"$f":"SUMIF(岳阳县2026年度巩固拓展脱贫攻坚成果和乡村振兴项目库入库项目!C6:C444,\"金融保险配套项目\",岳阳县2026年度巩固拓展脱贫攻坚成果和乡村振兴项目库入库项目!V6:V444)","v":4000}]
[null,"二、就业项目",{"$f":"SUM(C15:C19)","v":13},{"$f":"SUM(D15:D19)","v":1508},{"$f":"SUM(E15:E19)","v":1518},{"$f":"SUM(F15:F19)","v":15},192,2576,5906,46,2576,5906]
[null,"1.务工补助",{"$f":"COUNTIF(岳阳县2026年度巩固拓展脱贫攻坚成果和乡村振兴项目库入库项目!C6:C444,\"务工补助\")","v":10},{"$f":"SUMIF(岳阳县2026年度巩固拓展脱贫攻坚成果和乡村振兴项目库入库项目!C6:C444,\"务工补助\",岳阳县2026年度巩固拓展脱贫攻坚成果和乡村振兴项目库入库项目!N6:N444)","v":528},{"$f":"SUMIF(岳阳县2026年度巩固拓展脱贫攻坚成果和乡村振兴项目库入库项目!C6:C444,\"务工补助\",岳阳县2026年度巩固拓展脱贫攻坚成果和乡村振兴项目库入库项目!O6:O444)","v":553},{"$f":"SUMIF(岳阳县2026年度巩固拓展脱贫攻坚成果和乡村振兴项目库入库项目!C6:C444,\"务工补助\",岳阳县2026年度巩固拓展脱贫攻坚成果和乡村振兴项目库入库项目!P6:P444)","v":0},192,{"$f":"SUMIF(岳阳县2026年度巩固拓展脱贫攻坚成果和乡村振兴项目库入库项目!C6:C444,\"务工补助\",岳阳县2026年度巩固拓展脱贫攻坚成果和乡村振兴项目库入库项目!R6:R444)","v":6176},{"$f":"SUMIF(岳阳县2026年度巩固拓展脱贫攻坚成果和乡村振兴项目库入库项目!C6:C444,\"务工补助\",岳阳县2026年度巩固拓展脱贫攻坚成果和乡村振兴项目库入库项目!S6:S444)","v":18141},46,{"$f":"SUMIF(岳阳县2026年度巩固拓展脱贫攻坚成果和乡村振兴项目库入库项目!C6:C444,\"务工补助\",岳阳县2026年度巩固拓展脱贫攻坚成果和乡村振兴项目库入库项目!U6:U444)","v":3662},{"$f":"SUMIF(岳阳县2026年度巩固拓展脱贫攻坚成果和乡村振兴项目库入库项目!C6:C444,\"务工补助\",岳阳县2026年度巩固拓展脱贫攻坚成果和乡村振兴项目库入库项目!V6:V444)","v":10755}]
[null,"2.乡村车间",{"$f":"COUNTIF(岳阳县2026年度巩固拓展脱贫攻坚成果和乡村振兴项目库入库项目!C6:C444,\"就业\")","v":2},{"$f":"SUMIF(岳阳县2026年度巩固拓展脱贫攻坚成果和乡村振兴项目库入库项目!C6:C444,\"就业\",岳阳县2026年度巩固拓展脱贫攻坚成果和乡村振兴项目库入库项目!N6:N444)","v":80},{"$f":"SUMIF(岳阳县2026年度巩固拓展脱贫攻坚成果和乡村振兴项目库入库项目!C6:C444,\"就业\",岳阳县2026年度巩固拓展脱贫攻坚成果和乡村振兴项目库入库项目!O6:O444)","v":65},{"$f":"SUMIF(岳阳县2026年度巩固拓展脱贫攻坚成果和乡村振兴项目库入库项目!C6:C444,\"就业\",岳阳县2026年度巩固拓展脱贫攻坚成果和乡村振兴项目库入库项目!P6:P444)","v":15},29,{"$f":"SUMIF(岳阳县2026年度巩固拓展脱贫攻坚成果和乡村振兴项目库入库项目!C6:C444,\"就业\",岳阳县2026年度巩固拓展脱贫攻坚成果和乡村振兴项目库入库项目!R6:R444)","v":161},{"$f":"SUMIF(岳阳县2026年度巩固拓展脱贫攻坚成果和乡村振兴项目库入库项目!C6:C444,\"就业\",岳阳县2026年度巩固拓展脱贫攻坚成果和乡村振兴项目库入库项目!S6:S444)","v":356},29,{"$f":"SUMIF(岳阳县2026年度巩固拓展脱贫攻坚成果和乡村振兴项目库入库项目!C6:C444,\"就业\",岳阳县2026年度巩固拓展脱贫攻坚成果和乡村振兴项目库入库项目!U6:U444)","v":133},{"$f":"SUMIF(岳阳县2026年度巩固拓展脱贫攻坚成果和乡村振兴项目库入库项目!C6:C444,\"就业\",岳阳县2026年度巩固拓展脱贫攻坚成果和乡村振兴项目库入库项目!V6:V444)","v":241}]
[null,"3.创业",{"$f":"COUNTIF(岳阳县2026年度巩固拓展脱贫攻坚成果和乡村振兴项目库入库项目!C6:C444,\"创业\")","v":0},{"$f":"SUMIF(岳阳县2026年度巩固拓展脱贫攻坚成果和乡村振兴项目库入库项目!C6:C444,\"创业\",岳阳县2026年度巩固拓展脱贫攻坚成果和乡村振兴项目库入库项目!N6:N444)","v":0},{"$f":"SUMIF(岳阳县2026年度巩固拓展脱贫攻坚成果和乡村振兴项目库入库项目!C6:C444,\"创业\",岳阳县2026年度巩固拓展脱贫攻坚成果和乡村振兴项目库入库项目!O6:O444)","v":0},{"$f":"SUMIF(岳阳县2026年度巩固拓展脱贫攻坚成果和乡村振兴项目库入库项目!C6:C444,\"创业\",岳阳县2026年度巩固拓展脱贫攻坚成果和乡村振兴项目库入库项目!P6:P444)","v":0},{"$f":"SUMIF(岳阳县2026年度巩固拓展脱贫攻坚成果和乡村振兴项目库入库项目!C6:C444,\"创业\",岳阳县2026年度巩固拓展脱贫攻坚成果和乡村振兴项目库入库项目!Q6:Q444)","v":0},{"$f":"SUMIF(岳阳县2026年度巩固拓展脱贫攻坚成果和乡村振兴项目库入库项目!C6:C444,\"创业\",岳阳县2026年度巩固拓展脱贫攻坚成果和乡村振兴项目库入库项目!R6:R444)","v":0},{"$f":"SUMIF(岳阳县2026年度巩固拓展脱贫攻坚成果和乡村振兴项目库入库项目!C6:C444,\"创业\",岳阳县2026年度巩固拓展脱贫攻坚成果和乡村振兴项目库入库项目!S6:S444)","v":0},{"$f":"SUMIF(岳阳县2026年度巩固拓展脱贫攻坚成果和乡村振兴项目库入库项目!C6:C444,\"创业\",岳阳县2026年度巩固拓展脱贫攻坚成果和乡村振兴项目库入库项目!T6:T444)","v":0},{"$f":"SUMIF(岳阳县2026年度巩固拓展脱贫攻坚成果和乡村振兴项目库入库项目!C6:C444,\"创业\",岳阳县2026年度巩固拓展脱贫攻坚成果和乡村振兴项目库入库项目!U6:U444)","v":0},{"$f":"SUMIF(岳阳县2026年度巩固拓展脱贫攻坚成果和乡村振兴项目库入库项目!C6:C444,\"创业\",岳阳县2026年度巩固拓展脱贫攻坚成果和乡村振兴项目库入库项目!V6:V444)","v":0}]
[null,"4.乡村工匠",{"$f":"COUNTIF(岳阳县2026年度巩固拓展脱贫攻坚成果和乡村振兴项目库入库项目!C6:C444,\"乡村工匠\")","v":0},0,0,0,0,0,0,0,0,0]
[null,"5.公益性岗位",{"$f":"COUNTIF(岳阳县2026年度巩固拓展脱贫攻坚成果和乡村振兴项目库入库项目!C6:C444,\"公益性岗位\")","v":1},{"$f":"SUMIF(岳阳县2026年度巩固拓展脱贫攻坚成果和乡村振兴项目库入库项目!C6:C444,\"公益性岗位\",岳阳县2026年度巩固拓展脱贫攻坚成果和乡村振兴项目库入库项目!N6:N444)","v":900},{"$f":"SUMIF(岳阳县2026年度巩固拓展脱贫攻坚成果和乡村振兴项目库入库项目!C6:C444,\"公益性岗位\",岳阳县2026年度巩固拓展脱贫攻坚成果和乡村振兴项目库入库项目!O6:O444)","v":900},{"$f":"SUMIF(岳阳县2026年度巩固拓展脱贫攻坚成果和乡村振兴项目库入库项目!C6:C444,\"公益性岗位\",岳阳县2026年度巩固拓展脱贫攻坚成果和乡村振兴项目库入库项目!P6:P444)","v":0},{"$f":"SUMIF(岳阳县2026年度巩固拓展脱贫攻坚成果和乡村振兴项目库入库项目!C6:C444,\"公益性岗位\",岳阳县2026年度巩固拓展脱贫攻坚成果和乡村振兴项目库入库项目!Q6:Q444)","v":192},{"$f":"SUMIF(岳阳县2026年度巩固拓展脱贫攻坚成果和乡村振兴项目库入库项目!C6:C444,\"公益性岗位\",岳阳县2026年度巩固拓展脱贫攻坚成果和乡村振兴项目库入库项目!R6:R444)","v":800},{"$f":"SUMIF(岳阳县2026年度巩固拓展脱贫攻坚成果和乡村振兴项目库入库项目!C6:C444,\"公益性岗位\",岳阳县2026年度巩固拓展脱贫攻坚成果和乡村振兴项目库入库项目!S6:S444)","v":1000},{"$f":"SUMIF(岳阳县2026年度巩固拓展脱贫攻坚成果和乡村振兴项目库入库项目!C6:C444,\"公益性岗位\",岳阳县2026年度巩固拓展脱贫攻坚成果和乡村振兴项目库入库项目!T6:T444)","v":46},{"$f":"SUMIF(岳阳县2026年度巩固拓展脱贫攻坚成果和乡村振兴项目库入库项目!C6:C444,\"公益性岗位\",岳阳县2026年度巩固拓展脱贫攻坚成果和乡村振兴项目库入库项目!U6:U444)","v":800},{"$f":"SUMIF(岳阳县2026年度巩固拓展脱贫攻坚成果和乡村振兴项目库入库项目!C6:C444,\"公益性岗位\",岳阳县2026年度巩固拓展脱贫攻坚成果和乡村振兴项目库入库项目!V6:V444)","v":1000}]
[null,"三、乡村建设行动",{"$f":"SUM(C21:C23)","v":153},7494.8,4787,2498.8,190,44185,167911,46,5770,2600]
[null,"1.农村基础设施",{"$f":"COUNTIF(岳阳县2026年度巩固拓展脱贫攻坚成果和乡村振兴项目库入库项目!C6:C444,\"农村基础设施\")","v":147},{"$f":"SUMIF(岳阳县2026年度巩固拓展脱贫攻坚成果和乡村振兴项目库入库项目!C6:C444,\"农村基础设施\",岳阳县2026年度巩固拓展脱贫攻坚成果和乡村振兴项目库入库项目!N6:N444)","v":7289.8},{"$f":"SUMIF(岳阳县2026年度巩固拓展脱贫攻坚成果和乡村振兴项目库入库项目!C6:C444,\"农村基础设施\",岳阳县2026年度巩固拓展脱贫攻坚成果和乡村振兴项目库入库项目!O6:O444)","v":4586},{"$f":"SUMIF(岳阳县2026年度巩固拓展脱贫攻坚成果和乡村振兴项目库入库项目!C6:C444,\"农村基础设施\",岳阳县2026年度巩固拓展脱贫攻坚成果和乡村振兴项目库入库项目!P6:P444)","v":2494.8},{"$f":"SUMIF(岳阳县2026年度巩固拓展脱贫攻坚成果和乡村振兴项目库入库项目!C6:C444,\"农村基础设施\",岳阳县2026年度巩固拓展脱贫攻坚成果和乡村振兴项目库入库项目!Q6:Q444)","v":178},{"$f":"SUMIF(岳阳县2026年度巩固拓展脱贫攻坚成果和乡村振兴项目库入库项目!C6:C444,\"农村基础设施\",岳阳县2026年度巩固拓展脱贫攻坚成果和乡村振兴项目库入库项目!R6:R444)","v":43997},{"$f":"SUMIF(岳阳县2026年度巩固拓展脱贫攻坚成果和乡村振兴项目库入库项目!C6:C444,\"农村基础设施\",岳阳县2026年度巩固拓展脱贫攻坚成果和乡村振兴项目库入库项目!S6:S444)","v":163891},46,{"$f":"SUMIF(岳阳县2026年度巩固拓展脱贫攻坚成果和乡村振兴项目库入库项目!C6:C444,\"农村基础设施\",岳阳县2026年度巩固拓展脱贫攻坚成果和乡村振兴项目库入库项目!U6:U444)","v":3060},{"$f":"SUMIF(岳阳县2026年度巩固拓展脱贫攻坚成果和乡村振兴项目库入库项目!C6:C444,\"农村基础设施\",岳阳县2026年度巩固拓展脱贫攻坚成果和乡村振兴项目库入库项目!V6:V444)","v":9739}]
[null,"2.人居环境整治",{"$f":"COUNTIF(岳阳县2026年度巩固拓展脱贫攻坚成果和乡村振兴项目库入库项目!C6:C444,\"人居环境整治\")","v":3},{"$f":"SUMIF(岳阳县2026年度巩固拓展脱贫攻坚成果和乡村振兴项目库入库项目!C6:C444,\"人居环境整治\",岳阳县2026年度巩固拓展脱贫攻坚成果和乡村振兴项目库入库项目!N6:N444)","v":28},{"$f":"SUMIF(岳阳县2026年度巩固拓展脱贫攻坚成果和乡村振兴项目库入库项目!C6:C444,\"人居环境整治\",岳阳县2026年度巩固拓展脱贫攻坚成果和乡村振兴项目库入库项目!O6:O444)","v":25},{"$f":"SUMIF(岳阳县2026年度巩固拓展脱贫攻坚成果和乡村振兴项目库入库项目!C6:C444,\"人居环境整治\",岳阳县2026年度巩固拓展脱贫攻坚成果和乡村振兴项目库入库项目!P6:P444)","v":3},{"$f":"SUMIF(岳阳县2026年度巩固拓展脱贫攻坚成果和乡村振兴项目库入库项目!C6:C444,\"人居环境整治\",岳阳县2026年度巩固拓展脱贫攻坚成果和乡村振兴项目库入库项目!Q6:Q444)","v":3},{"$f":"SUMIF(岳阳县2026年度巩固拓展脱贫攻坚成果和乡村振兴项目库入库项目!C6:C444,\"人居环境整治\",岳阳县2026年度巩固拓展脱贫攻坚成果和乡村振兴项目库入库项目!R6:R444)","v":188},{"$f":"SUMIF(岳阳县2026年度巩固拓展脱贫攻坚成果和乡村振兴项目库入库项目!C6:C444,\"人居环境整治\",岳阳县2026年度巩固拓展脱贫攻坚成果和乡村振兴项目库入库项目!S6:S444)","v":762},{"$f":"SUMIF(岳阳县2026年度巩固拓展脱贫攻坚成果和乡村振兴项目库入库项目!C6:C444,\"人居环境整治\",岳阳县2026年度巩固拓展脱贫攻坚成果和乡村振兴项目库入库项目!T6:T444)","v":3},{"$f":"SUMIF(岳阳县2026年度巩固拓展脱贫攻坚成果和乡村振兴项目库入库项目!C6:C444,\"人居环境整治\",岳阳县2026年度巩固拓展脱贫攻坚成果和乡村振兴项目库入库项目!U6:U444)","v":22},{"$f":"SUMIF(岳阳县2026年度巩固拓展脱贫攻坚成果和乡村振兴项目库入库项目!C6:C444,\"人居环境整治\",岳阳县2026年度巩固拓展脱贫攻坚成果和乡村振兴项目库入库项目!V6:V444)","v":68}]
[null,"3.农村公共服务",{"$f":"COUNTIF(岳阳县2026年度巩固拓展脱贫攻坚成果和乡村振兴项目库入库项目!C6:C444,\"农村公共服务\")","v":3},{"$f":"SUMIF(岳阳县2026年度巩固拓展脱贫攻坚成果和乡村振兴项目库入库项目!C6:C444,\"农村公共服务\",岳阳县2026年度巩固拓展脱贫攻坚成果和乡村振兴项目库入库项目!N6:N444)","v":177},{"$f":"SUMIF(岳阳县2026年度巩固拓展脱贫攻坚成果和乡村振兴项目库入库项目!C6:C444,\"农村公共服务\",岳阳县2026年度巩固拓展脱贫攻坚成果和乡村振兴项目库入库项目!O6:O444)","v":176},{"$f":"SUMIF(岳阳县2026年度巩固拓展脱贫攻坚成果和乡村振兴项目库入库项目!C6:C444,\"农村公共服务\",岳阳县2026年度巩固拓展脱贫攻坚成果和乡村振兴项目库入库项目!P6:P444)","v":1},{"$f":"SUMIF(岳阳县2026年度巩固拓展脱贫攻坚成果和乡村振兴项目库入库项目!C6:C444,\"农村公共服务\",岳阳县2026年度巩固拓展脱贫攻坚成果和乡村振兴项目库入库项目!Q6:Q444)","v":9},{"$f":"SUMIF(岳阳县2026年度巩固拓展脱贫攻坚成果和乡村振兴项目库入库项目!C6:C444,\"农村公共服务\",岳阳县2026年度巩固拓展脱贫攻坚成果和乡村振兴项目库入库项目!G22:Q444)","v":0},{"$f":"SUMIF(岳阳县2026年度巩固拓展脱贫攻坚成果和乡村振兴项目库入库项目!C6:C444,\"农村公共服务\",岳阳县2026年度巩固拓展脱贫攻坚成果和乡村振兴项目库入库项目!S6:S444)","v":3258},{"$f":"SUMIF(岳阳县2026年度巩固拓展脱贫攻坚成果和乡村振兴项目库入库项目!C6:C444,\"农村公共服务\",岳阳县2026年度巩固拓展脱贫攻坚成果和乡村振兴项目库入库项目!T6:T444)","v":9},{"$f":"SUMIF(岳阳县2026年度巩固拓展脱贫攻坚成果和乡村振兴项目库入库项目!C6:C444,\"农村公共服务\",岳阳县2026年度巩固拓展脱贫攻坚成果和乡村振兴项目库入库项目!U6:U444)","v":62},{"$f":"SUMIF(岳阳县2026年度巩固拓展脱贫攻坚成果和乡村振兴项目库入库项目!C6:C444,\"农村公共服务\",岳阳县2026年度巩固拓展脱贫攻坚成果和乡村振兴项目库入库项目!V6:V444)","v":188}]
[null,"四、易地搬迁后扶"]
[null,"五、巩固三保障成果",1,280,280,null,192,1500,1600,46,1500,1600]
[null,"1.住房"]
[null,"2.教育",1,280,280,null,192,1500,1600,46,1500,1600]
[null,"3.健康"]
[null,"4.综合保障"]
[null,"六、乡村治理和精神文明建设"]
[null,"1.乡村治理"]
[null,"2.农村精神文明建设"]
[null,"七、项目管理费"]
[null,"八、其他"]
[null,"1.少数民族特色村寨建设项"]
[null,"2.困难群众饮用低氟茶"]
[null,"……"]
[" "]
[" "]
[" "]

{"sheet":"岳阳县2026年度巩固拓展脱贫攻坚成果和乡村振兴项目库入库项目","index":1,"n_rows":444,"n_cols":24,"rows_kept":444,"merged":[[0,0,0,23],[1,0,1,23],[2,0,4,0],[2,1,2,3],[2,4,4,4],[2,5,4,5],[2,6,4,6],[2,7,4,7],[2,8,4,8],[2,9,2,10],[2,11,4,11],[2,12,4,12],[2,13,2,15],[2,16,2,21],[2,22,4,22],[2,23,4,23],[3,1,4,1],[3,2,4,2],[3,3,4,3],[3,9,4,9],[3,10,4,10],[3,13,4,13],[3,14,3,15],[3,16,4,16],[3,17,4,17],[3,18,4,18],[3,19,3,21]]}
["岳阳县2026年度巩固拓展脱贫攻坚成果和乡村振兴项目库入库项目明细表"]
["单位：  (盖章 )                                                                                                                                                                                                                          "]
["序号","项目类别",null,null,"乡","村","项目名称","建设性质","实施地点","时间进度",null,"责任 单位","建设内容及规模","资金规模和筹资方式",null,null,"受益对象",{"$nulls":5},"绩效目标","联农带农机制"]
[null,"项目类型","二级项目类型","项目子类型",{"$nulls":5},"计划开工时间","计划完工时间",null,null,"项目预算总投资( 万 元 )","其中",null,"受益村数(个)","受益户数(户 )","受益人口数 (人)","其中"]
[{"$nulls":14},"财政资金 ( 万 元 )","其他资金 ( 万 元 )",{"$nulls":3},"受益脱贫村数(个)","受益脱贫户数及防 止返贫监 测对象户 数 (户 )","受益脱贫人口数及防止返贫监测对象人口数"]
[1,"就业项目","公益性岗位","公益性岗位","岳阳县","岳阳县","岳阳县公益性岗位补贴","续建","岳阳县",2026.02,"2026.12.30","岳阳县农业农村局","对符合条件的脱贫人口和监测户提供公益性岗位，发放岗位补贴",900,900,null,192,800,1000,46,800,1000,"提高脱贫户、监测户收入","促进就近就业，对就业困难的农户收入有一定的保障"]
[2,"巩固三保障成果","教育","享受“雨露计划”职业教育补助","岳阳县","岳阳县","岳阳县雨露计划","续建","岳阳县",2026.03,"2026.12.30","岳阳县农业农村局","对岳阳县具有正式学籍的中职、高职在读建档立卡学生通过正常程序申报后符合条件的均可获得助学补助1500元/人·学期",280,280,null,192,1500,1600,46,1500,1600,"减少脱贫户、监测户农户教育成本","提高农户综合素质，技能水平，增加就业、创业能力"]
[3,"就业项目","务工补助","交通费补助","岳阳县","岳阳县","岳阳县交通费一次性补助","续建","岳阳县",2026.01,"2026.12.30","岳阳县农业农村局","给去外地的务工人员报销车费或者补助，调动务工人员积极性",180,180,null,192,1650,4800,46,1650,4800,"给去外地的务工人员报销车费或者补助，调动务工人员积极性","给去外地的务工人员报销车费或者补助，调动务工人员积极性"]
[4,"产业发展","金融保险配套项目","小额信贷贴息","岳阳县","岳阳县","岳阳县小额信贷贴息","续建","岳阳县",2026.01,"2026.12.30","岳阳县农业农村局","解决监测户贷款难、融资难的问题",180,180,null,192,950,1000,46,950,1000,"帮助监测户发展产业项目","帮助监测户发展产业项目"]
[5,"就业项目","就业","帮扶车间（特色手工基地）建设 ","岳阳县","岳阳县","乡村车间稳岗补贴","续建","岳阳县",2026.01,"2026.12.30","岳阳县农业农村局","对全县29家帮扶车间雇佣脱贫户、监测户务工，带动脱贫户、监测户就业给予帮扶车间一定的补贴",50,50,null,192,126,206,46,126,206,"调动帮扶车间雇佣脱贫户、监测户的积极性，增加脱贫户、监测户收入","增加脱贫户、监测户务工机会"]
[6,"产业发展","配套基础设施项目","产业园","岳阳县","岳阳县","岳阳县巩固脱贫攻坚成果示范园项目","新建","岳阳县",2026.01,"2026.12.30","岳阳县农业农村局","流转土地3000亩，建立示范园区",4906.45,3000,1906.45,192,15000,15000,46,1500,1600,"促进传统农业向现代农业转型发展","带动脱贫户监测户就业"]
[7,"产业发展","金融保险配套项目","新型经营主体贷款贴息","岳阳县","岳阳县","新型农业经营主体贷款贴息","续建","岳阳县",2026.01,2026.12,"岳阳县农业农村局","针对满足条件的新型经营主体因农业生产经营需要、从商业银行或银保监会批准从事支农融资业务的保险公司取得的贷款的已支付利息，经主体自主申报后，按省财政贷款贴息政策进行补贴",800,800,null,192,4500,9000,46,1500,3000,"减轻新型农业经营主体融资成本负担，可持续性促进产业发展","减轻新型农业经营主体融资成本负担的同时带动农户就业务工"]
[8,"产业发展","生产项目","种植业基地","岳阳县","岳阳县","2026年度巩固拓展产业成果“百千万”工程","续建","15个乡镇",2026.03,2026.12,"岳阳县农业农村局","确定产业发展布局，引导新型农业经营主体联结有条件的村发展产业",150,150,null,60,3000,null,60,3000,null,"充分发挥企业在市场、就业、技术、资金和结对帮扶村在资源、劳力等方面的优势，在村企协商一致的基础上，共同制定产业发展形式和内容，引导企业与结对村发展“一村一品”，确保农民种出来、养出来的产品能够全部为龙头企业、市场接纳消化，增强帮扶村造血功能，确保监测户、脱贫户稳定增产增收，农村产业持续发展。","带动产业发展"]
[9,"乡村建设行动","农村基础设施","其他","长湖乡","范家村","范家村省级和美湘村建设","续建","村域内",2026.01,"2026.12.30","范家村村民委员会","1.开展4个美丽屋场建设\n2.开展基础设施升级改造\n3.开展人居环境整治提质建设\n4.发展产业发展庭院经济。",100,100,null,1,1030,4127,0,44,104,"全面提升村庄基础设施与农村人居环境，提升村民满意度","在项目实施的过程中，带动就业，发展产业，提高农户收入"]
[10,"产业发展","生产项目","种植业基地","5个乡镇","5个村","岳阳县高质量庭院经济项目","新建","5个村",2026.01,"2026.12.30","岳阳县农业农村局","种植特色产业、利用农户房前屋后自留地发展产业",100,100,null,5,1000,3000,5,320,960,"促进农户稳定增收","带动生产"]
[11,"产业发展","生产项目","种植业基地","15个乡镇","15个乡镇","岳阳县“四个一批”盘活、调整类帮扶项目经费","续建","15个乡镇",2026.01,"2026.12.30","岳阳县农业农村局","对岳阳县“四个一批”盘活、调整类帮扶项目进行产业帮扶",300,300,null,192,4500,9000,46,1500,3000,"巩固产业发展、促进乡村振兴经济","在项目实施的过程中，带动就业，发展产业，提高农户收入"]
[12,"产业发展","配套基础设施项目","产业园","3个乡镇","3个乡镇","中央专项彩票公益金支持革命老区乡村振兴项目","新建","3个乡镇",2026.01,"2026.12.30","岳阳县农业农村局","以月田、毛田、公田3个乡镇为主，建设产业发展和乡村振兴项目",5000,5000,null,46,5000,8000,24,2128,6642,"以项目实施促进革命老区加快乡村产业发展，提升乡村建设水平","在项目实施的过程中，发展集体经济，带动就业，发展产业，提高农户收入"]
[13,"产业发展","生产项目","种植业基地","岳阳县大云山国有林场","一分场","岳阳县大云山国有林场2026年欠发达国有林场产业发展项目","新建","岳阳县大云山国有林场一分场","2026-01-01","2026-12-01","岳阳县大云山国有林场","新建种苗基地10亩培育树种银杏、枫香、鹅掌楸、木荷，建设灌溉系统.",65,60,5,1,30,150,{"$nulls":3},"增加农户收入，每户增加10000元。","带动务工就业，增加收入"]
[14,"乡村建设行动","农村基础设施","农村道路建设\n（通村、通户路）","柏祥镇","柏祥村","柏祥村明淑片许下组生产道路拓宽硬化建设","改建","柏祥村","2026-01-01","2026-12-01","柏祥村","该段道路全长约980米，计划拓宽路基6.5米，硬化道路宽度为5.5米，厚度为200mm厘米，预埋过路涵、硬化道路路肩培土等",36,26,10,1,65,266,"—",5,16,"保障道路交通安全促进农业发展生产增收","保障道路交通安全，改善村民出行安全，提高村民生活质量，提高周边农户的农业生产积极性，促进农业生产增收"]
[15,"乡村建设行动","农村基础设施","农村道路建设\n（通村、通户路）","柏祥镇","十步桥村","十步桥村松岭片咀上组门口塘清淤护砌","改建","十步桥村","2026-01-01","2026-12-01","十步桥村","门前大塘清淤护砌硬化",20,15,5,1,87,369,1,10,32,"改善水利条件，方便群众生产、水利灌溉促进生活生产","群众筹资筹劳参与水利基础设施建设，保障生活生产。"]
[16,"产业发展","生产项目","种植业基地","柏祥镇","十步桥村","松岭片东头坡金盆柚种植基地","新建","松岭片东头坡","2026-01-01","2026-08-01","十步桥村","60亩金盆柚种植基地，定植优质苗木1800株；配套智能化灌溉、田间路网、仓储保鲜及采后处理设施，建设技术服务站，打造“种植-管护-施肥-采收-初加工”一体化产业格局\n\n",30,20,10,1,60,204,1,5,16,"建成60亩标准化金盆柚种植基地，完善配套设施，培育乡村特色产业；带动当地村民就业增收，提升农户种植技能，壮大村集体经济；打造乡村特色水果种植样板，助力拓宽乡村产业增收渠道，推动乡村产业提质","优先吸纳当地村民参与基地栽种、管护、施肥、采收等工作，提供稳定务工岗位；开展金盆柚种植技术培训，提升农户种植水平，助力自主创业；拓宽村民增收渠道，壮大村集体经济\n\n"]
[17,"乡村建设行动","农村基础设施","农村道路建设\n（通村、通户路）","柏祥镇","万庆村","万庆村周庆片羊角组生产道路拓宽硬化建设","改建","万庆村","2026-01-01","2026-12-01","万庆村","该段道路全长约980米，计划拓宽路基5.5米，硬化道路宽度为3.5米，厚度为200mm厘米，预埋过路涵2处共计9米，硬化道路后路肩培土等",36,26,10,1,125,412,1,10,32,"保障道路交通安全促进农业发展生产增收","保障道路交通安全促进该项目建设完成后将有效完善村级交通安全，改善村民出行安全，为了提高村民生活质量，创造美好生活环境，提高周边农户的农业生产积极性，带动经济发展，发展农业生产增收。"]
[18,"产业发展","生产项目","种植业基地","柏祥镇","万庆村","蒋渭片集体林场金盆柚种植基地","新建","蒋渭片集体林场","2026-01-01","2026-08-01","万庆村","200亩金盆柚种植基地，定植优质苗木6000株；配套智能化灌溉、田间路网、仓储保鲜及采后处理设施，建设技术服务站，打造“种植-管护-施肥-采收-初加工”一体化产业格局\n\n",42,28,14,1,60,204,1,5,28,"建成200亩标准化金盆柚种植基地，完善配套设施，培育乡村特色产业；带动当地村民就业增收，提升农户种植技能，壮大村集体经济；打造乡村特色水果种植样板，助力拓宽乡村产业增收渠道，推动乡村产业提质","优先吸纳当地村民参与基地栽种、管护、施肥、采收等工作，提供稳定务工岗位；开展金盆柚种植技术培训，提升农户种植水平，助力自主创业；拓宽村民增收渠道，壮大村集体经济\n\n"]
[19,"产业发展","生产项目","种植业基地","柏祥镇","中村村","油茶种植","扩建","兴冲组",2026.1,2026.12,"中村村","120亩",20,12,8,1,160,450,1,5,18,"帮助脱贫户监测户及周边群众增产","带动本村脱贫户、周边农户发展产业，增加农户收入，促进乡村振兴。"]
[20,"乡村建设行动","农村基础设施","农村道路建设\n（通村、通户路）","柏祥镇","中村村","正堂横堂组道路硬化","新建","正堂横堂组",2026.1,2026.12,"中村村","1600平方",21,14,7,1,60,320,1,6,24,"村民筹劳筹资，完善基础设施，保障道路交通安全。","保障道路交通安全，改善村民出行安全，为了提高村民生活质量，创造美好生活环境，提高周边农户的农业生产积极性，带动经济发展，发展农业生产增收。"]
[21,"产业发展","配套基础设施项目","小型农田水利设施建设","柏祥镇","中村村","水渠清污及硬化","维修","上边组至大屋",2026.1,2026.12,"中村村","2000米",30,20,10,1,90,360,1,6,24,"通过维修渠道 ，提升灌溉效率，增加灌溉面积。","通过维修渠道，提升农田灌溉灌效率，促进村民增产增收。"]
[22,"产业发展","配套基础设施项目","小型农田水利设施建设","柏祥镇","伏太村","大荆塘机阜建设","新建","伏太村大窑片大荆组",2026.1,2026.12,"伏太村村委会","架设机阜一台",15,12,3,1,66,220,1,8,36,"改善了山塘灌溉能力，激活当地经济发展","为带农致富打下基础"]
[23,"产业发展","配套基础设施项目","小型农田水利设施建设","柏祥镇","临港村","下刘家山塘维修项目工程","维修护砌","临港村大湖片黄陵组","2026年1月","2026年12月","柏祥镇临港村","1、下刘山塘面积约8.6亩，清理山塘内0.8m深的淤泥约4580m³，并清运到2公里外的对前面山上；2、山塘塘提长48m高2.5m宽3m做好塘提的护坡；3、建设使用踏步，4、山塘排水底口更换；",18,16,2,1,24,92,1,2,8,"有利春耕生产、改善环境，有效提高农业生产，激活当地经济发展","有效提高农业生产，农民致富打下基础"]
[24,"产业发展","配套基础设施项目","小型农田水利设施建设","柏祥镇","临港村","骂木山塘维修项目工程","维修护砌","临港村大湖片庙山组","2026年1月","2026年12月","柏祥镇临港村","1、骂木山塘面积约6.7亩，清理山塘内0.8m深的淤泥约3569m³，并清运到2公里外的山上；2、山塘塘提长35m高3.5m宽4m做好塘提的护坡；3、建设使用踏步，4、山塘排水底口更换；",15.5,12,3.5,1,21,84,1,1,5,"有利春耕生产、改善环境，有效提高农业生产，激活当地经济发展","有效提高农业生产，农民致富打下基础"]
[25,"产业发展","生产项目","种植业基地","柏祥镇","桑园村","桑园村桑树种植基地","续建","桑园村","2026年1月","2026年12月","桑园村","该项目基地总200亩，计划树苗施肥，基地除草，后期人工管理培苗。",8,6,2,1,23,118,1,10,39,"建成200亩标准桑树桑果种植基地完善配套设施；带动村民就业增收，壮大村集体经济，助力拓宽农村产业增收渠道，推动农村产业提质","优先吸纳当地村民参与栽种、管护、施肥、采收等工作，提供稳定务工岗位，拓宽村民增收渠道，壮大村集体经济。"]
[26,"乡村建设行动","农村基础设施","农村道路建设\n（通村、通户路）","柏祥镇","桑园村","桑园村四支片文庙线道路拓宽硬化建设","改建","桑园村","2026年1月","2026年12月","桑园村","该路段全长4.3公里，计划路基拓宽3米，硬化2.5米，厚度为200mm,预埋过路涵3处共49米，硬化道路后路肩培土等",135,100,35,1,180,900,1,46,200,"保障道路安全促进农业发展生产增收","保障道路交通安全，促进该项目建设完成后将有效完善村级交通安全，改善村民出行安全，为提高村民生活质量，创建美好生活环境，带动经济发展，农业发展生产增收。"]
[27,"产业发展","配套基础设施项目","小型农田水利设施建设","柏祥镇","桑园村","桑园村俄咀片订善机埠水渠扩建","改建","桑园村","2026年1月","2026年12月","桑园村","该项目水渠从青山坳到天龙水库全长5200米，渠道降低开挖、硬化",210,160,50,1,700,2600,1,65,267,"保障水渠灌溉畅通，促进农业发展生产，增产增收。","水渠扩建保障农田灌溉，降低农业生产成本，吸引种植大户、合作社集中流转土地，推动农业生产效率提升，助力稻谷规模化种植。"]
[28,"产业发展","配套基础设施项目","小型农田水利设施建设","柏祥镇","七一村","七一村桂林南塘大塘清淤","清淤扩容","七一村桂林片南塘组","2026年1月","2026年12月","柏祥镇七一村","1、南塘大塘面积约11.4亩，清理山塘内1.5m深的淤泥约113886m³，并清运到2公里外的对前面山上；2、山塘塘提长68m高6m宽3.5m做好塘提的护坡；3、建设使用踏步，4、山塘排水底口更换；",30,15,15,1,33,136,1,4,10,"有利春耕生产、改善环境，有效提高农业生产，激活当地经济发展","有效提高农业生产，农民致富打下基础"]
[29,"乡村建设行动","农村基础设施","农村道路建设\n（通村、通户路）","柏祥镇","七一村","七一村文付片港堤路拓宽硬化","新建","七一村港堤路","2026年1月","2026年12月","柏祥镇七一村","港堤路长2.8公里，拓宽3米，硬化6.5米",95,90,5,1,127,489,1,11,36,"有利于交通畅通，避免交通堵塞","有效提高农业生产，农民致富打下基础"]
[30,"产业发展","生产项目","种植业基地","柏祥镇","七一村","七一村窑岭片","新建","七一村窑岭片","2026年1月","2026年12月","柏祥镇七一村","金盆柚种植100亩",50,38,2,1,1078,4215,1,50,135,"提供部分就业劳动力，增加收入效益","有效提高农业生产，农民致富打下基础"]
[31,"就业项目","务工补助","生产奖补、务工奖补","柏祥镇","全镇","柏祥镇2026年产业奖补","产业奖补","到户项目","2026年1月","2026年12月","柏祥镇","产业奖补资金",40,40,0,9,365,1175,1,365,1175,"激发脱贫人口内生动力，促进产业发展增收致富","通过资金奖补、产业帮扶等手段，帮助和鼓励其发展种养殖业"]
[32,"乡村建设行动","农村基础设施","农村道路建设\n（通村、通户路）","公田镇","大塅村","道路拓宽硬化","改扩建","小湄片洞组",2026.06,2026.12,"大塅村","100米道路拓宽至3.5米后硬化",5,5,null,1,12,34,null,1,4,"1、保障群众出行安全            2、改善生产生活条件            3、建设期间提供贫困户就业机会","本项目受益群众12户其中脱贫户数及防止返贫监测对象户数1户，脱贫人口数及防止返贫监测对象人口数4人，通过道路拓宽硬化，改善群众出行条件及建设期间提供劳务"]
[33,"产业发展","配套基础设施项目","小型农田水利设施建设","公田镇","大塅村","水沟护砌与维修","改扩建","板桥片",2026.08,2026.12,"大塅村","300米水沟护砌与维修",6,6,null,1,110,230,null,6,17,"1、保障水系灌溉            2、改善生产生活条件            3、建设期间提供贫困户就业机会","本项目受益群众110户其中脱贫户数及防止返贫监测对象户数6户，脱贫人口数及防止返贫监测对象人口数17人，通过水沟建设，改善水系灌溉的问题，及建设期间提供劳务"]
[34,"产业发展","生产项目","种植业基地","公田镇","大塅村","养生稻种植","改建","板桥片",2026.05,"2026.10月","大塅村","扩大养生稻种植面积150亩",10,10,null,1,62,210,null,6,17,"1、保障群众家庭增收            2、改善生产生活条件            3、建设期间提供贫困户就业机会","本项目受益群众15户其中脱贫户数及防止返贫监测对象户数6户，脱贫人口数及防止返贫监测对象人口数17人，通过扩大养生稻种植面积，改善群众生产生活条件及建设期间提供劳务"]
[35,"产业发展","生产项目","种植业基地","公田镇","东新村","黄土山金盆柚","新建","村部","2026-02-01","2026-07-01","东新村","种植20亩金盆柚",15,15,null,1,46,187,null,5,21,"新增产业就业岗位，带动种植户增收。","受益群众46户，其中脱贫户数及防止返贫监测对象户数5户，脱贫人口数及防止返贫监测对象人口数21人，增加收入巩固脱贫成果。"]
[36,"产业发展","配套基础设施项目","小型农田水利设施建设","公田镇","东新村","元家组水渠","新建","元家组","2026-02-01","2026-06-01","东新村","新建1700米水渠",23,20,3,1,25,112,null,2,5,"改善生态环境，增加农田灌溉面积，带动区域农业产值增加，减少灌溉用水浪费，降低农户灌溉成本","受益群众25户，其中脱贫户数及防止返贫监测对象户数2户，脱贫人口数及防止返贫监测对象人口数5人，增加收入巩固脱贫成果。"]
[37,"产业发展","配套基础设施项目","小型农田水利设施建设","公田镇","东新村","董家组门口塘","扩建","董家组","2026-03-01","2026-06-01","东新村","扩容560立方米，护砌150米",12,12,null,1,23,93,null,3,8,"提升水塘调蓄能力，有效降低周边内涝风险，满足50亩农田灌溉，减少抗旱成本及周边村民生活应急用水需求。","受益群众23户，其中脱贫户数及防止返贫监测对象户数3户，脱贫人口数及防止返贫监测对象人口数8人，增加收入巩固脱贫成果。"]
[38,"乡村建设行动","农村基础设施","农村道路建设\n（通村、通户路）","公田镇","东新村","西岸至村部道路拓宽护砌硬化","扩建","西岸组","2026-02-01","2026-06-01","东新村","500米道路拓宽护砌硬化",38,30,8,1,31,124,null,1,4,"道路由原来3.5米拓宽至5米，满足日常通行需求；提升居民公共交通出行便利性，带动产业发展。","受益群众31户，其中脱贫户数及防止返贫监测对象户数1户，脱贫人口数及防止返贫监测对象人口4人，增加收入巩固脱贫成果。"]
[39,"产业发展","配套基础设施项目","小型农田水利设施建设","公田镇","飞云村","尤冲组井安塘护砌清淤","新建","尤冲组","2026-02-01","2026-06-01","飞云村","2亩塘清淤护砌",9,9,null,1,32,138,1,3,13,"提升水塘调蓄能力，满足32亩农田灌溉，减少抗旱成本及周边村民生活应急用水需求。","受益群众32户，其中脱贫户数及防止返贫监测对象户数3户，脱贫人口数及防止返贫监测对象人口数13人，增加收入巩固脱贫成果。"]
[40,"产业发展","配套基础设施项目","小型农田水利设施建设","公田镇","飞云村","庙底组上塘护砌清污","扩建","庙底组","2026-03-01","2026-05-01","飞云村","1.5亩塘清淤护砌",8,8,null,1,21,83,1,2,4,"提升水塘调蓄能力，满足18亩农田灌溉，减少抗旱成本及周边村民生活应急用水需求。","受益群众21户，其中脱贫户数及防止返贫监测对象户数2户，脱贫人口数及防止返贫监测对象人口数4人，增加收入巩固脱贫成果。"]
[41,"产业发展","配套基础设施项目","小型农田水利设施建设","公田镇","飞云村","尹边组至坡内组水沟疏通护砌","扩建","尹边组至坡内组","2026-03-01","2026-07-01","飞云村","尹边组至坡内组1.8公里水沟疏通护砌",30,30,null,1,62,163,1,15,42,"改善生态环境，增加农田灌溉面积，带动区域农业产值增加，减少灌溉用水浪费，降低农户灌溉成本。","受益群众136户，其中脱贫户数及防止返贫监测对象户数15户，脱贫人口数及防止返贫监测对象人口数58人，增加收入巩固脱贫成果。"]
[42,"产业发展","配套基础设施项目","小型农田水利设施建设","公田镇","飞云村","冲口塘维修","扩建",null,"2026-03-01","2026-05-01","飞云村","1.5亩塘维修",8,8,null,1,30,116,1,3,7,"提升水塘调蓄能力，满足50亩农田灌溉，减少抗旱成本及周边村民生活应急用水需求。","受益群众41户，其中脱贫户数及防止返贫监测对象户数3户，脱贫人口数及防止返贫监测对象人口数7人，增加收入巩固脱贫成果。"]
[43,"产业发展","配套基础设施项目","小型农田水利设施建设","公田镇","飞云村","艾坡岭水库清污护砌","扩建",null,"2026-04-01","2026-08-01","飞云村","20亩水库清污护砌",60,30,30,1,32,156,1,5,13,"提升水塘调蓄能力，满足80亩农田灌溉，减少抗旱成本及周边村民生活应急用水需求。","受益群众60户，其中脱贫户数及防止返贫监测对象户数5户，脱贫人口数及防止返贫监测对象人口数13人，增加收入巩固脱贫成果。"]
[44,"产业发展","配套基础设施项目","小型农田水利设施建设","公田镇","飞云村","北庄组门口塘清污及护砌","扩建",null,"2026-03-01","2026-05-01","飞云村","1.7亩塘清淤护砌",8,8,null,1,5,19,1,1,3,"提升水塘调蓄能力，满足15亩农田灌溉，减少抗旱成本及周边村民生活应急用水需求。","受益群众5户，其中脱贫户数及防止返贫监测对象户数1户，脱贫人口数及防止返贫监测对象人口数5人，增加收入巩固脱贫成果"]
[45,"乡村建设行动","农村基础设施","农村道路建设\n（通村、通户路）","公田镇","飞云村","尤冲组道路拓宽硬化","扩建","尤冲组","2026-03-01","2026-07-01","飞云村","0.6公里道路拓宽硬化",36,30,6,1,32,138,1,3,13,"道路由原来3.5米拓宽至5米，满足日常通行需求；提升居民公共交通出行便利性。","受益群众32户，其中脱贫户数及防止返贫监测对象户数3户，脱贫人口数及防止返贫监测对象人口13人，增加收入巩固脱贫成果。"]
[46,"乡村建设行动","农村基础设施","农村道路建设\n（通村、通户路）","公田镇","飞云村","高塘组至东坡组公路硬化","扩建","高塘组至东坡组","2026-03-01","2026-07-01","飞云村","高塘组至东坡组公路硬化",120,50,70,1,53,146,1,9,29,"道路由原来3.5米拓宽至5米，满足日常通行需求；提升居民公共交通出行便利性。","受益群众53户，其中脱贫户数及防止返贫监测对象户数9户，脱贫人口数及防止返贫监测对象人口数29人，增加收入巩固脱贫成果。"]
[47,"乡村建设行动","农村基础设施","农村道路建设\n（通村、通户路）","公田镇","甘田村","村级道路维修","改扩建","甘田村村级道路",2026.3,2026.11,"甘田村","村级道路维修拓宽",35,30,5,1,815,2617,null,62,156,"利于群众产业发展","受益请群众815户其中脱贫户及防止返贫监测对象户数62户，脱贫人口数及防止返贫监测对象人口数156人，带动产业发展及农业生产增收，巩固脱贫成果。"]
[48,"产业发展","配套基础设施项目","小型农田水利设施建设","公田镇","甘田村","骨干山塘维修","新建","甘田村墈上组",2026.3,2026.4,"甘田村","墈上组门前骨干山塘清污、护砌、低涵改造",15,15,null,1,129,348,null,8,23,"利于群众产业发展","受益请群众129户其中脱贫户及防止返贫监测对象户数8户，脱贫人口数及防止返贫监测对象人口数23人，带动农业生产增收，巩固脱贫成果。"]
[49,"产业发展","配套基础设施项目","小型农田水利设施建设","公田镇","港口村","港口片水利设施维修（湾上组山塘清淤护砌、渠道维修、上屋、老屋组渠道维修）","改扩建","港口片","2026.11.6","2026.11.30","农业农村局","湾上组大塘长28米，高3.5米，厚0.1米，湾上组渠道长度约265米，上屋组渠道约108米，老屋组渠道约156米。",10.95,10,0.95,1,165,567,1,24,84,"方便群众出行安全.利于群众产业发展","受益群众165户,567人，其中脱贫户及防止返贫监测对象户数24户，脱贫人口数及防止返贫监测对象人口数84人，带动产业发展及农业生产增收，巩固脱贫成果。"]
[50,"产业发展","生产项目","养殖业基地","公田镇","港口村","三淼养殖有限公司","续建","三淼猪场",202602,20261231,"农业农村局","跟三淼公司进行项目对接，实现入股经营进一步壮大集体经济",34,30,4,1,1056,3570,1,64,178,"利于群众产业发展","受益请群众1056户，3670人其中脱贫户及防止返贫监测对象户数64户，脱贫人口数及防止返贫监测对象人口数178人，带动产业发展及农业生产增收，巩固脱贫成果。"]
[51,"乡村建设行动","农村基础设施","农村道路建设\n（通村、通户路）","公田镇","港口村","郭家组水利维修（重修机埠、管网预埋、渠道硬化）","改扩建","郭家组",202602,202603,"农业农村局","重修机埠1个，管网预埋约340余米，渠道硬化约152米。",15.8,15,0.8,1,22,58,1,4,14,"利于群众产业发展","受益请群众22户，58人，其中脱贫户及防止返贫监测对象户数4户，脱贫人口数及防止返贫监测对象人口数14人，带动产业发展及农业生产增收，巩固脱贫成果。"]
[52,"乡村建设行动","农村基础设施","农村道路建设\n（通村、通户路）","公田镇","港口村","汪家组、戴家组公路维修","改扩建","港口村",202602,202612,"农业农村局","羊城公路港口村戴家组塅路基沉降维修，长度约50余米，宽8米，整体开挖硬化铺油。",8.5,8,0.5,1,52,112,1,8,17,"利于群众产业发展","受益请群众52户,112人，其中脱贫户及防止返贫监测对象户数8户，脱贫人口数及防止返贫监测对象人口数17人，带动产业发展及农业生产增收，巩固脱贫成果。"]
[53,"产业发展","生产项目","种植业基地","公田镇","港口村","香柚种植","新建","港口村",202602,202612,"农业农村局","在港口村全村范围内种植香柚约100余亩，实现产业增收，壮大村集体经济",30,30,null,1,1056,3670,1,64,178,"利于群众产业发展","受益请群众1056户，3670人其中脱贫户及防止返贫监测对象户数64户，脱贫人口数及防止返贫监测对象人口数178人，带动产业发展及农业生产增收，巩固脱贫成果。"]
[54,"产业发展","加工流通项目","产地初加工和精深加工","公田镇","东淇村","岳阳东淇振兴\n竹笋有限公司","续建","东淇村",2026.3,2026.12,"农业农村局","现有2层房屋占地面积360平方米屋顶及房屋维修，扩大厂房5间",5,5,null,1,638,2460,1,41,156,"扩大生产","受益群众638户，其中脱贫户及防止返贫监测对象户数41户，脱贫人口数及防止返贫监测对象人口数156人，通过以工代赈，增加收入巩固脱盆成果。"]
[55,"产业发展","配套基础设施项目","小型农田水利设施建设","公田镇","东淇村","临河港农田砌墈、\n农田灌溉堰坝5座、\n狮形水库维修加固、\n8个组山塘维修","新建","东淇村",2026.3,2026.12,"农业农村局","临河港农田砌墈600米、\n农田灌溉堰坝5座、\n狮形水库维修加固、\n8个组山塘维修",15,15,null,1,238,956,1,19,68,"解决农田灌溉","受益群众238户，其中脱贫户及防止返贫监测对象户数19户，脱贫人口数及防止返贫监测对象人口数68人，通过以工代赈，增加收入巩固脱盆成果。"]
[56,"乡村建设行动","农村基础设施","农村道路建设\n（通村、通户路）","公田镇","东淇村","龙山组、小洞组、上下组道路拓宽硬化","新建","东淇村",2026.3,2026.12,"农业农村局","龙山组、小洞组、上下组道路拓宽硬化6公里",20,20,null,1,63,256,1,9,27,"解决村民出行","受益群众63户，其中脱贫户及防止返贫监测对象户数9户，脱贫人口数及防止返贫监测对象人口数27人，通过以工代赈，增加收入巩固脱盆成果。"]
[57,"乡村建设行动","农村基础设施","农村道路建设\n（通村、通户路）","公田镇","公田居委会","渠道维修","改扩建","井墈组","2026.年5","2026年11","公田居委会","渠道硬化220米。",8,8,null,1,50,234,1,6,28,"改善群众农田灌溉，有利于产业发展,增产增收","受益群众50户，234人，其中脱贫\n户6户，28人，增加收入巩固脱贫成果"]
[58,"乡村建设行动","农村基础设施","农村道路建设\n（通村、通户路）","公田镇","公田居委会","山塘维修","新建","旁上组","2026-03-01","2026年12","公田居委会","山塘护砌200米，清污",15,15,null,1,20,68,1,3,11,"改善群众农田灌溉，有利于产业发展,增产增收","受益群众20户，68人，其中脱贫\n户数及防\n止返贫监\n测对象户\n数3户11人，增加收入巩固脱贫成果"]
[59,"产业发展","配套基础设施项目","小型农田水利设施建设","公田镇","横铺村","水渠护砌与维修","改扩建","石姑片",2026.08,2026.12,"横铺村","3000米水渠护砌与维修",50,50,null,1,2410,540,1,10,33,"1、保障水系灌溉            2、改善生产生活条件            3、建设期间提供贫困户就业机会","本项目受益群众260户其中脱贫户数及防止返贫监测对象户数10户，脱贫人口数及防止返贫监测对象人口数33人，通过水渠建设，改善水系灌溉的问题，及建设期间提供劳务"]
[60,"产业发展","配套基础设施项目","小型农田水利设施建设","公田镇","横铺村","山塘维修","改扩建","横铺片","2026.5.20","2026.8.30","横铺村","铺上组山塘的塘内清淤、护砌维修",4,4,null,1,31,95,1,2,3,"改善生态环境.解决农田水系灌溉问题，建设期间提供贫困户就业机会","受益请群众31户其中脱贫户及防止返贫监测对象户数2户，脱贫人口数及防止返贫监测对象人口数3人，带动产业发展及农业生产增收，巩固脱贫成果。"]
[61,"产业发展","配套基础设施项目","小型农田水利设施建设","公田镇","横铺村","山塘维修","改扩建","横铺片","2026.10.12","2026.11.30","横铺村","铺兴组山塘的塘内清淤、护砌维修",5,5,null,1,26,104,1,0,0,"改善生态环境.解决农田水系灌溉问题，建设期间提供贫困户就业机会","受益请群众26户其中脱贫户及防止返贫监测对象户数0户，脱贫人口数及防止返贫监测对象人口数0人，带动产业发展及农业生产增收，巩固脱贫成果。"]
[62,"乡村建设行动","农村基础设施","农村道路建设\n（通村、通户路）","公田镇","饶港村","山田至沙坡道路拓宽硬化","改扩建","山田组、沙坡组",2026.06,2026.12,"饶港村","500米道路拓宽至3.5米后硬化",15,15,null,1,68,215,1,5,32,"1、保障群众出行安全            2、改善生产生活条件            3、建设期间提供贫困户就业机会","本项目受益群众68户其中脱贫户数及防止返贫监测对象户数5户，脱贫人口数及防止返贫监测对象人口数32人，通过道路拓宽硬化，改善群众出行条件及建设期间提供劳务"]
[63,"产业发展","配套基础设施项目","小型农田水利设施建设","公田镇","饶港村","团结水库南北干渠护砌与维修","改扩建","山田片",2026.08,2026.12,"饶港村","5000米渠道护砌与维修",60,50,10,1,265,955,1,18,56,"1、保障水系灌溉            2、改善生产生活条件            3、建设期间提供贫困户就业机会","本项目受益群众265户其中脱贫户数及防止返贫监测对象户数18户，脱贫人口数及防止返贫监测对象人口数56人，通过水沟建设，改善水系灌溉的问题，及建设期间提供劳务"]
[64,"产业发展","配套基础设施项目","小型农田水利设施建设","公田镇","饶港村","中心片水轮泵蓄水塘水闸建设","改扩建","下石组",2026.08,2026.12,"饶港村","水塘请淤、水闸建设",6,6,null,1,68,242,1,4,17,"1、保障水系灌溉            2、改善生产生活条件            3、建设期间提供贫困户就业机会","本项目受益群众68户其中脱贫户数及防止返贫监测对象户数4户，脱贫人口数及防止返贫监测对象人口数17人，通过水沟建设，改善水系灌溉的问题，及建设期间提供劳务"]
[65,"产业发展","配套基础设施项目","小型农田水利设施建设","公田镇","饶港村","邓家组农田灌溉用水机埠建设","改扩建","邓家组",2026.08,2026.12,"饶港村","农田灌溉用水机埠建设",4,4,null,1,110,235,1,6,17,"1、保障水系灌溉            2、改善生产生活条件            3、建设期间提供贫困户就业机会","本项目受益群众110户其中脱贫户数及防止返贫监测对象户数6户，脱贫人口数及防止返贫监测对象人口数17人，通过水沟建设，改善水系灌溉的问题，及建设期间提供劳务"]
[66,"产业发展","配套基础设施项目","小型农田水利设施建设","公田镇","饶港村","新勘组灌渠U型槽建设","改扩建","新勘组",2026.08,2026.12,"饶港村","400米水渠U型槽建设",6,6,null,1,45,136,1,2,7,"1、保障水系灌溉            2、改善生产生活条件            3、建设期间提供贫困户就业机会","本项目受益群众45户其中脱贫户数及防止返贫监测对象户数2户，脱贫人口数及防止返贫监测对象人口数7人，通过水沟建设，改善水系灌溉的问题，及建设期间提供劳务"]
[67,"产业发展","配套基础设施项目","小型农田水利设施建设","公田镇","塘田村","牛婆港排灌渠护砌","护砌","祯祥片",2026.01,"2026-07-10","塘田村","护砌长400米，宽1.3米，高1.2米",10,10,null,1,86,336,1,5,16,"改善群众农田灌溉，有利于产业发展,增产增收","受益群众86户，336人，其中脱贫\n户数及防\n止返贫监\n测对象5户\n数户16人"]
[68,"产业发展","配套基础设施项目","小型农田水利设施建设","公田镇","塘田村","南西冲小港护砌维修","护砌维修","祯祥片","2026-04-26","2026-11-30","塘田村","护砌长700米，宽1.2米，高1.4米",20,20,null,1,128,512,1,11,30,"改善群众农田灌溉，有利于产业发展,增产增收","受益群众128户，512人，其中脱贫\n户数及防\n止返贫监\n测对象户\n数11户30人，增加收入巩固脱贫成果"]
[69,"产业发展","生产项目","种植业基地","公田镇","铁山村","林下黄精种植","新建","铁山村",2026.03,2026.12,"铁山村","全村脱贫户监测户及其他有产业意向的农户林下黄精种产销                ",30,30,null,1,150,550,1,46,151,"1、脱贫户及监测户增收              2、发展壮大村集体经济","本项目受益群众150户，其中脱贫户数及防止返贫监测对象户数46户，脱贫人口数及防止返贫监测对象人口数151人，通过在铁山村实施林下黄精套种，为脱贫户及监测户实现增收及发展壮大村集体经济"]
[70,"乡村建设行动","农村基础设施","农村道路建设\n（通村、通户路）","公田镇","铁山村","中山组道路拓宽硬化","新建","栗山片中山组",2026.07,2026.12,"铁山村","1000米道路拓宽至4.5米硬化",25,20,5,1,46,172,1,9,28,"1、保障群众出行安全            2、改善生产生活条件            3、建设期间提供贫困户就业机会","本项目受益群众46户其中脱贫户数及防止返贫监测对象户数9户，脱贫人口数及防止返贫监测对象人口数28人，通过道路拓宽硬化，改善偏远地方交通不便的群众出行条件及建设期间提供劳务"]
[71,"产业发展","配套基础设施项目","小型农田水利设施建设","公田镇","五龙桥村","村主干道五龙桥至高爱用门口段护砌拓宽","扩建","斗口组","2026.4.20","2026.10.30","五龙桥村","道路护砌长300米.高1.9米.宽0.9米",18,18,null,1,747,2483,0,55,156,"改善群众出行难问题.改善生产生活条件","受益请群众747户其中脱贫户及防止返贫监测对象户数55户，脱贫人口数及防止返贫监测对象人口数156人，带动产业发展及农业生产增收，巩固脱贫成果。"]
[72,"乡村建设行动","农村基础设施","农村道路建设\n（通村、通户路）","公田镇","五龙桥村","村道上底段道路硬化","扩建","上底组","2026.3.21","2026.8.29","五龙桥村","道路硬化长330米.宽6米.厚0.2米",20,20,null,1,23,65,0,5,18,"改善生产生活条件，提升群众幸福感","受益请群众23户其中脱贫户及防止返贫监测对象户数5户，脱贫人口数及防止返贫监测对象人口数18人，带动产业发展及农业生产增收，巩固脱贫成果。"]
[73,"产业发展","配套基础设施项目","小型农田水利设施建设","公田镇","五龙桥村","大金组门口小塘维修","扩建","大金组","2026.3.20","2026.7.30","五龙桥村","塘内清淤800立方、护砌长20米.高2.5米.宽0.8米",3,3,null,1,28,102,0,4,11,"改善生态环境.农田灌溉","受益请群众28户其中脱贫户及防止返贫监测对象户数4户，脱贫人口数及防止返贫监测对象人口数11人，带动产业发展及农业生产增收，巩固脱贫成果。"]
[74,"产业发展","配套基础设施项目","小型农田水利设施建设","公田镇","向佳村","晏冲片上.下边组小港护砌","新建","晏冲片","2026.5.15","2026.7.25","向佳村","晏冲片上.下边组小港护砌.全长50米",6,6,null,1,52,172,0,3,12,"方便群众出行安全.利于群众产业发展","受益请群众户其中脱贫户及防止返贫监测对象户数3户，脱贫人口数及防止返贫监测对象人口数12人，带动产业发展及农业生产增收，巩固脱贫成果。"]
[75,"乡村建设行动","农村基础设施","农村道路建设\n（通村、通户路）","公田镇","向佳村","全福片凉亭组至细屋组道路拓宽硬化","扩建","全福片","2026.6.16","2026.9.30","向佳村","全福片1.5公里道路拓宽硬化",30,30,null,1,310,1069,0,16,53,"方便群众出行安全.利于群众产业发展","受益请群众310户其中脱贫户及防止返贫监测对象户数16户，脱贫人口数及防止返贫监测对象人口数53人，带动产业发展及农业生产增收，巩固脱贫成果。"]
[76,"乡村建设行动","农村基础设施","农村道路建设\n（通村、通户路）","公田镇","长安村","常青洞至邓家组渠道维修","改扩建","邓家组",2026.5,2026.9,"长安村","渠道500米维修开挖疏通硬化",15,15,null,1,72,257,0,10,37,"壮大村集体经济","受益群众124户其中贫户数及防止返贫监测对象户数7户，脱贫人口数及防止返贫监测对象人口数42人，通过以工代赈，增加收入巩固脱贫成果"]
[77,"产业发展","生产项目","种植业基地","公田镇","公田居委会","七彩花生种植","新建","河东片\n新屋组/老屋组","2026年3","2026年10","公田居委会","种植面积约28亩",16,16,null,1,68,219,1,5,11,"发展壮大\n集体经济\n","受益群众68户，\n219人，其中脱贫户数及防止返贫监测对象户数5户11人，增加收入巩固脱贫成果"]
[78,"产业发展","配套基础设施项目","小型农田水利设施建设","黄沙街镇","茶场社区","麻塘李沟渠硬化","扩建","拦河七组","2026.10.10","2026.12.30","茶场社区","麻塘李沟渠硬化长800米，宽50至80灌溉水田70亩",15,10,5,1,87,300,0,2,5,"保障农业生产需求","就业务工"]
[79,"产业发展","配套基础设施项目","小型农田水利设施建设","黄沙街镇","茶场社区","新塘沟渠硬化","扩建","栏河","2026.10.20","2026.12.20","茶场社区","新塘沟渠硬化长400米宽50至80灌溉水田60亩",15,10,5,1,77,268,0,1,1,"保障农业生产需求","就业务工"]
[80,"产业发展","配套基础设施项目","小型农田水利设施建设","黄沙街镇","茶场社区","杨母塘清淤和护坡","扩建","栏河一组",2026.01,2026.11,"茶场社区","杨母塘清淤300方护坡5米宽70米长",10,8,2,1,45,243,0,1,1,"保障农业生产需求","就业务工"]
[81,"产业发展","生产项目","种植业基地","黄沙街镇","茶场社区","金盆柚基地建设","扩建","栏河三组",2026.01,2026.02,"茶场社区","栏河三组金盆柚基地建设80亩7500根",20,14,6,1,26,131,0,1,2,"带动生产","就业务工"]
[82,"产业发展","配套基础设施项目","小型农田水利设施建设","黄沙街镇","荷塘村","大联魏家塘清淤维修工程","扩建","荷塘村大联片",2026.09,{"v":2026.1,"d":"2026.10"},"荷塘村村委会","魏家塘清淤1200立方",3,3,0,1,182,486,0,12,48,"保障农业生产需求","就业务工"]
[83,"产业发展","配套基础设施项目","小型农田水利设施建设","黄沙街镇","荷塘村","滨湖汉朝屋门前塘清淤维修工程","扩建","荷塘村滨湖片",2026.09,{"v":2026.1,"d":"2026.10"},"荷塘村村委会","门前塘清淤900立方，大堤维修，\n安装低涵12米",2,2,0,1,85,256,0,8,26,"保障农业生产需求","就业务工"]
[84,"乡村建设行动","农村基础设施","农村道路建设\n（通村、通户路）","黄沙街镇","荷塘村","滨湖十四组机耕路硬化工程","扩建","荷塘村滨湖片",2026.06,2026.07,"荷塘村村委会","160米长3米宽0.2米厚",5,5,0,1,60,237,0,20,62,"方便群众出行","就业务工"]
[85,"乡村建设行动","农村基础设施","产业路、资源路、旅游路建设","黄沙街镇","苍坪村","庵龙水库至坪中二组道路新建","新建","坪桥片至坪中片二组",2026.04,2026.06,"苍坪村","新建一条长2000米，宽4.5米的产业路",50,40,10,1,112,448,1,10,32,"保障农业生产需求","就业务工"]
[86,"乡村建设行动","农村基础设施","农村道路建设\n（通村、通户路）","黄沙街镇","苍坪村","六合片主干道扩宽硬化","扩建","六合片",2026.09,2026.11,"苍坪村","新建一条长3.5公里，宽6米主干道",300,200,100,1,500,1500,1,10,30,"保障出行需求","就业务工"]
[87,"乡村建设行动","农村基础设施","农村道路建设\n（通村、通户路）","黄沙街镇","苍坪村","坪中片七组通组路硬化","扩建","坪中片7组",2026.05,2026.06,"苍坪村","长300米，宽3.5米的入户路",20,15,5,1,25,102,1,3,10,"保障出行需求","就业务工"]
[88,"产业发展","配套基础设施项目","小型农田水利设施建设","黄沙街镇","苍坪村","坪桥片9组塘边沟渠修缮硬化","扩建","坪桥片九组",{"v":2026.1,"d":"2026.10"},2026.11,"苍坪村","长1500米沟渠清障，修缮硬化",30,20,10,1,123,421,0,8,24,"保障农业生产需求","就业务工"]
[89,"产业发展","配套基础设施项目","小型农田水利设施建设","黄沙街镇","大明村","全村37个组山塘清淤维修","扩建","大明村",{"v":2026.1,"d":"2026.10"},2026.12,"大明村","全村37个组山塘清淤维修",20,18,2,1,1415,4552,0,64,215,"保障农业生产需求","就业务工"]
[90,"产业发展","生产项目","种植业基地","黄沙街镇","大明村","岳阳县盛鸿林木种植基地基础设施","新建","大明村",2026.01,2026.12,"大明村","岳阳县盛鸿林木种植基地510亩基础设施建设",38,35,3,1,387,1254,1,20,70,"完善基地基础设施，开发就业岗位","就业务工、带动生产"]
[91,"产业发展","生产项目","种植业基地","黄沙街镇","复兴村","桑葚基地种植","新建","复兴村",{"v":2026.1,"d":"2026.10"},2026.12,"复兴村","150亩基地开挖栽树培育",50,30,20,1,858,3478,1,42,128,"带动周边群众就业","带动生产"]
[92,"乡村建设行动","农村基础设施","农村道路建设\n（通村、通户路）","黄沙街镇","复兴村","农村道路建设船大路至高塘村部、\n至杨源村部、至G240玉华段公路白加黑","扩建","复兴村",{"v":2026.1,"d":"2026.10"},2026.12,"复兴村"," 船大路至高塘村部、至杨源村部、至G240玉华段公路总4.6公里白加黑",100,80,20,1,858,3478,1,42,128,"方便群众出行","其他"]
[93,"乡村建设行动","农村基础设施","农村道路建设\n（通村、通户路）","黄沙街镇","复兴村","杨源七组至新天村，杨源六组至新天村道路硬化，高塘五组至火天连接硬化","扩建","复兴村",{"v":2026.1,"d":"2026.10"},2026.12,"复兴村","1.8公里水泥硬化",80,60,20,2,859,3479,2,43,129,"方便群众出行","其他"]
[94,"乡村建设行动","农村基础设施","农村道路建设\n（通村、通户路）","黄沙街镇","复兴村","村级公路维修","扩建","复兴村",{"v":2026.1,"d":"2026.10"},2026.12,"复兴村","11公里公路维修",20,10,10,3,860,3480,3,44,130,"方便群众出行","其他"]
[95,"产业发展","配套基础设施项目","小型农田水利设施建设","黄沙街镇","黄沙村","周冲三组门前塘清淤护砌","扩建","黄沙村",2026.04,2026.05,"黄沙村村委会","周冲三组8亩门前塘整塘清淤转运500立方，\n护坡200余米",10,8,2,1,102,326,0,10,32,"保障农业生产需求","就业务工"]
[96,"产业发展","配套基础设施项目","小型农田水利设施建设","黄沙街镇","黄沙村","廖山片辽塘整塘清淤","扩建","黄沙村",2026.04,2026.05,"黄沙村村委会","廖山片辽塘10余亩整塘清淤1000立方",8,6,2,1,128,407,0,8,26,"保障农业生产需求","就业务工"]
[97,"产业发展","配套基础设施项目","小型农田水利设施建设","黄沙街镇","黄沙村","黄金片九如组渠道修建","扩建","黄沙村",2026.05,2026.06,"黄沙村村委会","黄金片九如组长280米、宽1米、高0.8米渠道\n清淤、平整、硬化",15,10,5,1,154,492,0,15,41,"保障农业生产需求","就业务工"]
[98,"乡村建设行动","农村基础设施","农村道路建设\n（通村、通户路）","黄沙街镇","黄秀村","农耕园到黄秀中学再到孔桥松主干道路油化","扩建","政家屋至孔桥松","2026.01.01","2026.12.31","黄秀村委会","农耕园到黄秀中学再到孔桥松主干道路油化4200米",80,58,22,3,383,862,0,14,55,"方便群众出行","就业务工"]
[99,"产业发展","配套基础设施项目","小型农田水利设施建设","黄沙街镇","黄秀村","黄秀村固干山塘清淤、护坡、塘提加固硬化","扩建","孔桥松","2026.01.01","2026.12.31","黄秀村委会","清淤、护坡、塘提加固硬化三口水塘45亩",10,8,2,1,260,358,0,6,13,"保障农业生产需求","就业务工"]
[100,"产业发展","配套基础设施项目","小型农田水利设施建设","黄沙街镇","刘士奇村","李家塘塘堤护坡，高低涵改造","扩建","群乐片八组","2026.10.20","2026.12.15","刘士奇村","塘堤护坡长80米*高7米，高低涵改造1个\n塘内清淤4000方、淤泥运输4000方",15,5,10,1,42,156,0,3,11,"保障农业生产需求","就业务工"]
[101,"产业发展","配套基础设施项目","小型农田水利设施建设","黄沙街镇","刘士奇村","后背塘塘堤护坡，高低涵改造","扩建","群乐片十五组","2026.10.15","2026.12.10","刘士奇村","堤护坡长32米，高低涵改造1个\n塘内清淤1200方、淤泥运输1200方",15,5,10,1,55,184,0,2,7,"保障农业生产需求","就业务工"]
[102,"产业发展","配套基础设施项目","小型农田水利设施建设","黄沙街镇","刘士奇村","反背塘塘堤护坡，高低涵改造","扩建","九元片一组","2026.10.15","2026.12.20","刘士奇村","塘堤护坡长28米*高2.8米，高低涵改造1个\n塘内清淤800方、淤泥运输800方",8,5,3,1,24,69,0,2,8,"保障农业生产需求","就业务工"]
[103,"乡村建设行动","农村基础设施","农村道路建设\n（通村、通户路）","黄沙街镇","龙凤村","龙凤村君召屋至唐湾连接路","扩建","龙凤村青山片","2026.11.01","2026.12.30","龙凤村","君召屋至唐湾连接路0.6公里硬化",28,26,2,1,170,680,1,18,65,"群众出行方便，便于耕种","就业务工"]
[104,"乡村建设行动","农村基础设施","农村道路建设\n（通村、通户路）","黄沙街镇","龙凤村","龙凤村青山片五组至长湖乡荆州连接路","扩建","龙凤村","2026.11.01","2026.12.30","龙凤村","龙凤村青山片五组至长湖乡荆州连接路\n1.4公里硬化",47,42,5,2,1600,5800,2,30,103,"群众出行方便，便于耕种","就业务工"]
[105,"乡村建设行动","农村基础设施","农村道路建设\n（通村、通户路）","黄沙街镇","三和村","再茂片道路拓宽","扩建","三和村再茂片",{"v":2026.1,"d":"2026.10"},2026.12,"三和村","修建3公里拓宽1.5米",9,8,1,1,850,3247,1,10,28,"保障出行需求","就业务工"]
[106,"产业发展","配套基础设施项目","小型农田水利设施建设","黄沙街镇","新天村","高举组戴门塘清淤护砌","扩建","高举组",2026.01,2026.11,"新天村","清淤、护砌2亩",5,5,0,1,56,168,1,12,42,"保障农业生产需求","就业务工"]
[107,"产业发展","配套基础设施项目","小型农田水利设施建设","黄沙街镇","新天村","公塘组庙塘清淤护砌","扩建","公塘组",2026.01,2026.11,"新天村","清淤、护砌5亩",8,8,0,1,42,152,1,12,42,"保障农业生产需求","就业务工"]
[108,"乡村建设行动","农村基础设施","农村道路建设\n（通村、通户路）","黄沙街镇","新天村","方家组至江粟陈村连村道路硬化","扩建","方家组",2026.09,{"v":2026.1,"d":"2026.10"},"新天村","道路拓宽及硬化990米*4.5米",45,45,0,1,155,562,1,19,47,"方便群众出行","就业务工"]
[109,"乡村建设行动","农村基础设施","农村道路建设\n（通村、通户路）","黄沙街镇","和谐村","和谐村红卫片道路扩宽工程","新建/改建","和谐村",2026.1,2026.12,"和谐村","拓宽红卫公路4公里",100,60,40,1,460,1520,1,19,42,"方便群众出行","就业务工"]
[110,"乡村建设行动","农村基础设施","农村道路建设\n（通村、通户路）","黄沙街镇","和谐村","和谐村友义片道路扩宽工程","新建/改建","和谐村",2026.1,2026.12,"和谐村","拓宽友义公路4公里",100,60,40,1,230,1350,1,10,56,"方便群众出行","就业务工"]
[111,"产业发展","配套基础设施项目","小型农田水利设施建设","黄沙街镇","和谐村","红卫片7、10组门前塘维修加固","新建","和谐村",2026.1,2026.12,"和谐村","红卫片7、10组门前塘维修加固",10,6,4,1,150,450,1,4,16,"保障农业生产需求","就业务工"]
[112,"产业发展","配套基础设施项目","小型农田水利设施建设","黄沙街镇","中兴村","门前塘塘清淤、涵管建设","扩建","光华十组",2026.08,2026.12,"中兴村","安装涵管15米、清淤3000立方，建立便桥1座",10,5,5,1,21,85,0,2,8,"保障农业生产需求","就业务工"]
[113,"产业发展","配套基础设施项目","小型农田水利设施建设","黄沙街镇","中兴村","大塘涵管建设、清淤转运","扩建","光华5组",2026.07,2026.12,"中兴村","安装涵管12米、清淤3800立方米，建立便桥1座",12,8,4,1,27,109,0,5,19,"保障农业生产需求","就业务工"]
[114,"产业发展","配套基础设施项目","小型农田水利设施建设","黄沙街镇","中兴村","枫树塘涵管建设、清淤转运","扩建","和平1组",2026.08,2026.12,"中兴村","安装涵管8米、清淤2500立方米，建立便桥1座",8,5,3,1,22,90,0,4,17,"保障农业生产需求","就业务工"]
[115,"产业发展","配套基础设施项目","小型农田水利设施建设","黄沙街镇","中兴村","江塘涵管建设、清淤转运","扩建","和平9组",2026.07,2026.12,"中兴村","安装涵管16米、清淤4100立方米，建立便桥1座",15,8,7,1,33,121,0,4,16,"保障农业生产需求","就业务工"]
[116,"乡村建设行动","农村基础设施","农村道路建设\n（通村、通户路）","黄沙街镇","黄沙街镇","荣黄线升级改造","扩建","刘士奇村、黄秀村",2026.07,2026.12,"黄沙街镇","长14.8公里拓宽硬化，5米拓宽为6米",400,80,320,2,78,240,0,4,17,"方便群众出行","其他"]
[117,"乡村建设行动","农村基础设施","农村道路建设\n（通村、通户路）","黄沙街镇","黄沙街镇","船大路升级改造","扩建","和谐村、大明村",2026.07,2026.12,"黄沙街镇","长5.13公里拓宽硬化，5米拓宽为7米",200,50,150,2,90,280,1,10,34,"方便群众出行","其他"]
[118,"就业项目","务工补助","生产奖补、务工奖补","黄沙街镇","黄沙街镇","监测户、脱贫户产业奖补","续建","黄沙街镇",2026.07,2026.12,"黄沙街镇","发放监测户、脱贫户生产物资",33,33,0,14,620,1800,3,47,150,"保障农户生活需求","其他"]
[119,"乡村建设行动","农村基础设施","农村道路建设\n（通村、通户路）","毛田镇","白若村","积谷至东港公路油化","改扩建","积谷到东港公路",2026.01,2026.12,"白若村","积谷至东港公路维修油化80万元",80,70,10,1,520,3000,1,58,180,"道路路面油化，方便群众出行"]
[120,"产业发展","生产项目","种植业基地","毛田镇","黄道村","黄茶基地施肥培育","续建","黄道村联盟片",2026.01,2026.12,"黄道村","110亩黄茶基地维护",10,0,0,1,131,408,1,22,61,"发展壮大产业项目，提高集体经济收入"]
[121,"产业发展","配套基础设施项目","小型农田水利设施建设","毛田镇","黄道村","红旗水库引水渠维修","新建","黄道村联盟片",2026.01,2026.12,"黄道村","2100米水渠毁坏段维修",30,0,0,1,130,408,1,22,31,"改善道路路面，方便群众出行"]
[122,"产业发展","生产项目","种植业基地","毛田镇","相思村","中药村种植","续建","相思村",2026.01,2026.12,"相思村","天麻25亩，黄精20亩，白芨10亩，总计55亩",20,15,5,1,832,3075,1,65,185,"发展壮大产业项目，提高集体经济收入"]
[123,"产业发展","配套基础设施项目","小型农田水利设施建设","毛田镇","相思村","山塘维修","改建","相思村",2026.01,2026.12,"相思村","老屋水口塘，钟家山塘，谢家山塘，山子山塘，总计四口",15,12,3,1,832,3075,1,65,185,"完善山塘基础设施，优化水利功能"]
[124,"产业发展","生产项目","种植业基地","毛田镇","道仁村","茶叶种植基地维护","续建","道仁村",2026.01,2026.12,"道仁村","80亩茶叶维护",15,10,5,1,184,433,1,37,104,"发展壮大产业项目，提高集体经济收入"]
[125,"乡村建设行动","农村基础设施","农村道路建设\n（通村、通户路）","毛田镇","道仁村","道仁片易家组公路硬化","改建","道仁村",2026.01,2026.12,"道仁村","300米连接主干道组级路硬化",12,10,2,1,52,148,1,5,14,"改善道路路面，方便群众出行"]
[126,"产业发展","生产项目","种植业基地","毛田镇","卢塅村","黄栀子种植","新建","卢塅村",2026.01,2026.12,"卢塅村","40亩黄栀子种植",20,0,0,1,1098,4276,1,80,263,"发展壮大产业项目，提高集体经济收入"]
[127,"产业发展","配套基础设施项目","小型农田水利设施建设","毛田镇","卢塅村","卢塅村烟火塘维修加固","改建","卢塅村",2026.01,2026.12,"卢塅村","竹峰片山塘，七狮组烟火塘，塘家组山塘维修",20,0,0,1,352,1539,1,38,122,"完善山塘基础设施，优化水利功能"]
[128,"乡村建设行动","农村基础设施","农村道路建设\n（通村、通户路）","毛田镇","卢塅村","中道片至中兴村道路拓宽及护砌","改建","卢塅村",2026.01,2026.12,"卢塅村","3.4公里公路地基拓宽，损毁处维修",15,10,5,1,1098,4276,1,24,82,"改善道路路面，方便群众出行"]
[129,"产业发展","生产项目","种植业基地","毛田镇","英桥村","黄精种植后续管理","续建","英桥村",2026.01,2026.12,"英桥村","20亩黄精种植后续管护",15,13,2,1,161,491,1,61,191,"发展壮大产业项目，提高集体经济收入"]
[130,"乡村建设行动","农村基础设施","农村道路建设\n（通村、通户路）","毛田镇","英桥村","毛英路硬化","改建","英桥村",2026.01,2026.12,"英桥村","4公里道路硬化",260,30,230,1,731,3337,1,61,191,"改善道路路面，方便群众出行"]
[131,"产业发展","生产项目","种植业基地","毛田镇","小港村","黄精药村种植","新建","小港村",2026.01,2026.12,"小港村","6亩黄精种植",15,0,0,1,813,2406,1,84,215,"发展壮大产业项目，提高集体经济收入"]
[132,"乡村建设行动","农村基础设施","农村道路建设\n（通村、通户路）","毛田镇","小港村","南庙片张边组道路硬化","改建","小港村",2026.01,2026.12,"小港村","1.8公里公路硬化",20,20,0,1,75,302,1,15,42,"改善道路路面，方便群众出行"]
[133,"产业发展","生产项目","种植业基地","毛田镇","中兴村","榴莲蜜薯种植","新建","志元片区","2026-02-01","2026-04-01","中兴村","40亩榴莲蜜薯种植",45,30,15,1,650,1850,1,75,195,"发展壮大产业项目，提高集体经济收入"]
[134,"产业发展","生产项目","种植业基地","毛田镇","毛田村","水果金盆柚种植","续建","胡铁片","2026-01-01","2026-12-01","毛田村","水果金盆柚扩种20亩",20,0,0,1,879,2553,1,62,180,"发展壮大产业项目，提高集体经济收入"]
[135,"乡村建设行动","农村基础设施","农村道路建设\n（通村、通户路）","毛田镇","毛田村","郭家组到庙山组路面维修","改建","育英片","2026-01-01","2026-12-01","毛田村","郭家组到庙山组路面3公里维修",15,15,0,1,879,2553,1,62,180,"改善道路路面，方便群众出行"]
[136,"产业发展","生产项目","种植业基地","毛田镇","李塅村","杨塅片黄精种植","新建","李塅村","2026-01-01","2026-12-01","李塅村","20亩黄精种植",15,0,0,1,160,810,1,20,120,"发展壮大产业项目，提高集体经济收入"]
[137,"乡村建设行动","农村基础设施","农村道路建设\n（通村、通户路）","毛田镇","李塅村","朝西到如止马道路拓宽硬化","改建","李塅村","2026-01-01","2026-12-01","李塅村","800米长，拓宽到5米硬化护砌",20,20,0,1,60,480,1,6,24,"改善道路路面，方便群众出行"]
[138,"乡村建设行动","农村基础设施","农村道路建设\n（通村、通户路）","毛田镇","西台村","长仑片短冲组公路维修","改建","长仑片短冲组","2026-01-01","2026-12-01","西台村","2000㎡硬化，0.5KM的路基清理",20,15,5,1,27,120,1,4,11,"改善道路路面，方便群众出行"]
[139,"产业发展","生产项目","种植业基地","毛田镇","云山村","金盆柚种植","新建","云山村","2026-01-01","2026-12-01","云山村","80亩金盆柚种植",40,0,0,1,760,2400,1,71,193,"发展壮大产业项目，提高集体经济收入"]
[140,"乡村建设行动","农村基础设施","农村道路建设\n（通村、通户路）","毛田镇","云山村","联合片道路拓宽硬化","改建","云山村","2026-01-01","2026-12-01","云山村","拓宽硬化2公里",20,20,0,1,760,2400,1,71,193,"改善道路路面，方便群众出行"]
[141,"产业发展","生产项目","种植业基地","毛田镇","芭蕉村","黄茶基地后期维护","续建","芭蕉村","2026-01-01","2026-12-01","芭蕉村","22亩黄茶基地维护管理",10,8,2,1,845,3328,1,98,288,"发展壮大产业项目，提高集体经济收入"]
[142,"乡村建设行动","农村基础设施","农村道路建设\n（通村、通户路）","毛田镇","芭蕉村","港堤片道路拓宽硬化","改建","芭蕉村","2026-01-01","2026-12-01","芭蕉村","1.2公里公路清基、护砌、硬化",65,50,15,1,845,3328,1,98,288,"改善道路路面，方便群众出行"]
[143,"产业发展","生产项目","种植业基地","毛田镇","南冲村","金盆柚种植","新建","南冲村","2026-01-01","2026-12-01","南冲村","50亩金盆柚种植",40,35,5,1,87,274,1,6,21,"发展壮大产业项目，提高集体经济收入"]
[144,"乡村建设行动","农村基础设施","农村道路建设\n（通村、通户路）","毛田镇","南冲村","南冲村断头路硬化","新建","中条组，张家组，下山组，下屋组","2026-01-01","2026-12-01","南冲村","中条500米，张家400米，下山900米，下屋60米硬化",30,26,4,1,263,1082,1,15,49,"改善道路路面，方便群众出行"]
[145,"产业发展","生产项目","种植业基地","毛田镇","孟城村","110亩茶叶基地养护","续建","杨家片、文洞片","2026-01-01","2026-12-01","孟城村","110亩茶叶基地养护",15,15,0,1,378,1115,1,126,369,"发展壮大产业项目，提高集体经济收入"]
[146,"乡村建设行动","农村基础设施","农村道路建设\n（通村、通户路）","毛田镇","孟城村","孟城村文洞片道路维修","改建","文洞片","2026-01-01","2026-12-01","孟城村","文洞片1.5km公路维修",20,20,0,1,625,1895,1,81,208,"改善道路路面，方便群众出行"]
[147,"产业发展","生产项目","种植业基地","毛田镇","鸣山村","黄茶扩种","改扩建","鸣山村",2026.4,"2026.10","鸣山村","黄茶扩种30亩",20,0,0,1,295,1121,1,36,147,"发展壮大产业项目，提高集体经济收入"]
[148,"乡村建设行动","农村基础设施","农村道路建设\n（通村、通户路）","毛田镇","鸣山村","文昌至叶洞、何洞公路改造","改建","鸣山村",2026.5,2026.9,"鸣山村","文昌至叶洞、何洞2.17公里硬化",60,60,0,1,312,1023,1,36,147,"改善道路路面，方便群众出行"]
[149,"乡村建设行动","农村基础设施","农村道路建设\n（通村、通户路）","毛田镇","珠港村","九龙片村级道路维修工程","改建","九龙片",2026.3,2026.6,"珠港村","全长1300米拓宽硬化1.5米.破损路面维修",45,45,0,1,150,450,1,14,56,"改善道路路面，方便群众出行"]
[150,"产业发展","加工流通项目","产地初加工和精深加工","毛田镇","珠港村","珠港村红薯种植加工","新建","珠港村",2026.4,2026.11,"珠港村","220农戶种植红薯400余亩，（红薯进行深加工成红薯粉.红薯丝）",30,0,0,1,220,810,1,52,195,"发展壮大产业项目，提高集体经济收入"]
[151,"产业发展","生产项目","光伏电站建设","新开镇","新开村","村部光伏发电项目","新建","村委会",2026.3,2026.9,"新开村委会","利用村部办公楼屋面约800m2进行光伏发电项目,预计投入20万元左右",20,20,0,1,1756,5832,1,43,104,"带动周边经济发展和解决有劳动能力的贫困户就业，促进脱贫户、多渠道长期稳定收益增收，助推全村巩固拓展脱贫攻坚成果同乡村振兴有效衔接","带动全村农户1756户、5832人，其中脱贫户43户104人。"]
[152,"产业发展","配套基础设施项目","小型农田水利设施建设","新开镇","新开村","胜天片甘家组水渠维修","维修硬化","胜天片甘家组",2026.1,2026.11,"新开村委会","胜天片甘家组水渠清淤硬化维修",10,10,0,1,35,137,0,1,3,"解决胜天片甘家组35户137人农田灌溉，其中脱贫户1户3人","解决胜天片甘家组35户137人农田灌溉，其中脱贫户1户3人"]
[153,"乡村建设行动","农村基础设施","农村道路建设\n（通村、通户路）","新开镇","新开村","胜天片甘家组瑶子山路硬化","新建","村委会",2026.9,2026.11,"新开村委会","胜天片甘家组瑶子山路硬化",8,8,0,1,35,137,0,1,3,"解决胜天片甘家组35户137人安全出行，其中脱贫户1户3人","解决胜天片甘家组35户137人安全出行，其中脱贫户1户3人"]
[154,"产业发展","配套基础设施项目","小型农田水利设施建设","新开镇","朱砂桥村","庙仙塘维修加固","新建","朱砂桥村兴安片","2026-01-01","2026-06-01","朱砂桥村委会","山塘清淤扩容、堤坡加固、低涵重建。",10,5,5,1,165,420,1,9,16,"解决了兴安片农业生产水利问题和兴安片165户420人的生产生活需求。","带动脱贫户、监测户9户16人、以及低保、特困、重病重残等困难户群体"]
[155,"产业发展","配套基础设施项目","小型农田水利设施建设","新开镇","朱砂桥村","石灰塘维修加固及大堰次口维修","新建","朱砂桥村李伏片","2026-01-01","2026-06-01","朱砂桥村委会","山塘清淤扩容、堤坡加固及大堰次口硬化。",12,5,7,1,23,85,1,4,13,"解决了李伏片八组农业生产水利问题和李伏片八组23户85人的生产生活需求。","带动脱贫户、监测户4户13人、以及低保、特困、重病重残等困难户群体"]
[156,"产业发展","配套基础设施项目","小型农田水利设施建设","新开镇","朱砂桥村","河家北渠道维修","新建","朱砂桥村朱砂片","2026-01-01","2026-06-01","朱砂桥村委会","渠道清淤、拦水坝重建。",8,5,3,1,26,95,1,1,1,"解决了朱砂片朱砂组农业生产水利问题和片朱砂组26户95人的生产生活需求。","带动脱贫户、监测户1户1人、以及低保、特困、重病重残等困难户群体"]
[157,"产业发展","生产项目","种植业基地","新开镇","朱砂桥村","金盆柚种植","新建","朱砂桥村","2026-01-02","2026-08-01","朱砂桥村委会","种植金盆柚500亩",250,100,150,1,980,3068,1,55,141,"带动周边经济发展和解决有劳动能力的贫困户就业，促进脱贫户、监测户多渠道长期稳定收益增收，助推全村巩固拓展脱贫攻坚成果同乡村振兴有效衔接。","带动全村农户980户、3068人，其中脱贫户、监测对象55户141人"]
[158,"产业发展","生产项目","光伏电站建设","新开镇","友谊村","光伏发电入股","新建","友谊村部","2026-01-01","2026-12-31","友谊村","光伏发电入股",26,24,2,1,867,3086,0,33,80,"带动周边经济发展和解决有劳动能力的贫困户就业，促进脱贫户、监测户多渠道长期稳定收益增收，助推全村巩固拓展脱贫攻坚成果同乡村振兴有效衔接。","带动全村农户867户、3086人，其中脱贫户32户76人，监测户1户4人"]
[159,"产业发展","产业服务支撑项目","农业社会化服务","新开镇","友谊村","购置收割机","新建","友谊村部","2026-01-01","2026-12-31","友谊村","购置一台收割机",20,18,2,1,867,3086,0,33,80,"带动周边经济发展和解决有劳动能力的贫困户就业，促进脱贫户、监测户多渠道长期稳定收益增收，助推全村巩固拓展脱贫攻坚成果同乡村振兴有效衔接。","带动全村农户867户、3086人，其中脱贫户32户76人，监测户1户4人"]
[160,"产业发展","配套基础设施项目","小型农田水利设施建设","新开镇","友谊村","车塘片四组门口塘维修、清淤","新建","友谊村车塘片四组","2026-01-01","2026-12-31","友谊村","车塘片四组门口塘维修、清淤",10,8,2,1,867,3086,0,33,80,"带动周边经济发展和解决有劳动能力的贫困户就业，促进脱贫户、监测户多渠道长期稳定收益增收，助推全村巩固拓展脱贫攻坚成果同乡村振兴有效衔接。","带动全村农户867户、3086人，其中脱贫户32户76人，监测户1户4人"]
[161,"产业发展","生产项目","光伏电站建设","新开镇","万福村","村部车棚光伏电站建设","新建","万福村部","2026-05-07","2026-05-31","万福村","建村部车棚光伏电站42KW、公共充电桩2个",18,10,8,1,1331,5122,0,90,235,"带动周边经济发展和解决有劳动能力的贫困户就业，促进脱贫户、监测户多渠道长期稳定收益增收，助推全村巩固拓展脱贫攻坚成果同乡村振兴有效衔接元，村级集体经济每年收入2万元，收益期20年，累计收益35万元以上。","带动全村农户1331户、5122人，其中脱贫户90户235人，监测户19户46人"]
[162,"产业发展","产业服务支撑项目","农业社会化服务","新开镇","万福村","万福村集体农机合作社","新建","万福村","2026-05-07","2026-05-31","万福村","购置收割机、旋耕机、割草机、打捆机各一台",20,20,0,1,1331,5122,0,90,235,"带动周边经济发展和解决有劳动能力的贫困户就业，促进脱贫户、监测户多渠道长期稳定收益增收，助推全村巩固拓展脱贫攻坚成果同乡村振兴有效衔接。","带动全村农户1331户、5122人，其中脱贫户90户235人，监测户19户46人"]
[163,"产业发展","配套基础设施项目","小型农田水利设施建设","新开镇","万福村","九龙片三组湖哇塘维修","新建","万福村九龙片三组","2026-01-05","2026-03-05","万福村","湖哇塘堤驳岸护砌75m³、清淤2000方、低涵维修",10,5,5,1,76,344,0,8,19,"带动周边经济发展和解决有劳动能力的贫困户就业，促进脱贫户、监测户多渠道长期稳定收益增收，助推全村巩固拓展脱贫攻坚成果同乡村振兴有效衔接。","带动全村农户76户、344人，其中脱贫户8户19人，监测户1户1人"]
[164,"乡村建设行动","农村基础设施","农村道路建设\n（通村、通户路）","新开镇","万福村","九龙片五组燕岩通组路硬化","新建","万福村九龙片五组","2026-05-07","2026-05-31","万福村","1.4公里道路硬化",60,10,50,1,1331,5122,0,90,235,"带动周边经济发展和解决有劳动能力的贫困户就业，促进脱贫户、监测户多渠道长期稳定收益增收，助推全村巩固拓展脱贫攻坚成果同乡村振兴有效衔接。","带动全村农户1331户、5122人，其中脱贫户90户235人，监测户19户46人"]
[165,"产业发展","生产项目","光伏电站建设","新开镇","马山村","村部光伏发电项目","新建","马山村部","2026-10-10","2026-10-30","马山村委会","利用村部办公楼(2栋)屋面约800m2进行光伏发电项目,预计投入20万元左右.",20,20,null,1,1232,4236,1,78,206,"带动周边经济发展和解决有劳动能力的贫困户就业，促进脱贫户、监测户多渠道长期稳定收益增收，助推全村巩固拓展脱贫攻坚成果同乡村振兴有效衔接","带动全村农户1232户、4236人，其中脱贫户78户196人，监测户4户10人"]
[166,"产业发展","产业服务支撑项目","农业社会化服务","新开镇","马山村","村集体农机化项目","新建","马山村","2026-05-10","2026-10-30","马山村委会","通过购置农机具，与种粮大户合作,为农业生产提供机械化服务，提高农业生产效率，降低生产成本，能够促进农业产业的发展，带动村集体和脱贫群众增收 。",50,50,null,1,1232,4236,1,78,206,"带动周边经济发展和解决有劳动能力的贫困户就业，促进脱贫户、监测户多渠道长期稳定收益增收，助推全村巩固拓展脱贫攻坚成果同乡村振兴有效衔接","带动全村农户1232户、4236人，其中脱贫户78户196人，监测户4户10人"]
[167,"产业发展","配套基础设施项目","小型农田水利设施建设","新开镇","马山村","永安片曾家-陶铺机埠及引水灌溉渠维修项目","新建","曾家组","2026-09-30","2026-10-30","马山村委会","因方家坡水库无法灌溉到曾家-陶铺两组约60余亩基本农田，在60-70年代在曾家-陶铺沿港附近修建机埠，该机埠以前是动力现改为电力，因年久失修房屋破损、设备故障及线路老化、引水灌溉渠（约860米）淤堵严重等现状；预计投入约24万元，可以解决两组21户60余亩农田灌溉.",24,10,14,1,21,65,1,3,8,"解决两组21户（包括脱贫户3户五保户1户）60余亩农田灌溉,增加农户收入.","解决两组21户（包括脱贫户3户五保户1户）60余亩农田灌溉,增加农户收入."]
[168,"产业发展","配套基础设施项目","小型农田水利设施建设","新开镇","马山村","方元片维修4个山塘维修","新建","方元片","2026-09-30","2026-10-30","马山村委会","主要是做好山塘清淤、低涵改造及塘堤加固，维修后可以灌溉农田约百余亩（包括脱贫户5户五保户2户），大大增加农民增收，预计投入约22万元.",22,20,2,1,43,135,1,5,12,"可以灌溉农田约百余亩（包括脱贫户5户五保户2户），大大增加农民增收","可以灌溉农田约百余亩（包括脱贫户5户五保户2户），大大增加农民增收"]
[169,"产业发展","生产项目","水产养殖业发展","新开镇","马山村","方元片中小型规模鳄鱼养殖场","新建","方元片","2026-10-02","2026-12-30","马山村委会","鳄鱼苗引进、标准化养殖池搭建、养殖管理以及初级产品（鳄鱼肉、鳄鱼皮）销售等环节。场地选址符合养殖区规划，配套建设保温、排污等设施，预计投入50万元左右。",50,50,null,1,1232,4236,1,78,206,"带动周边经济发展和解决有劳动能力的贫困户就业，促进脱贫户、监测户多渠道长期稳定收益增收，助推全村巩固拓展脱贫攻坚成果同乡村振兴有效衔接","带动全村农户1232户、4236人，其中脱贫户78户196人，监测户4户10人"]
[170,"产业发展","配套基础设施项目","小型农田水利设施建设","新开镇","马店村","香严九组樟树塘清淤，路面拓宽硬化项目","新建","香严片9组","2026-09-01","2026-11-01","马店村","塘内清淤，塘堤加宽加固段110米，砌挡土墙段65米，新路硬化段100米",6.2,5,1.2,1,62,224,1,12,31,"为解决香严片9组农田灌溉和生活用水，确保村民安全","为解决香严片9组农田灌溉和生活用水，确保村民安全，其中脱贫户12户，31人。"]
[171,"产业发展","配套基础设施项目","小型农田水利设施建设","新开镇","马店村","马店片一组洗衣塘清淤维修项目","新建","马店片一组","2026-07-01","2026-08-01","马店村","塘内清淤，30米塘堤加宽加固，塘堤周围建新",6,5,1,1,31,112,1,1,3,"为解决马店片一组20余亩农田灌溉且确保村民生活正常用水","为解决马店片一组20余亩农田灌溉且确保村民生活正常用水，其中脱贫户1户3人。"]
[172,"产业发展","配套基础设施项目","小型农田水利设施建设","新开镇","马店村","青岗片上章堰水毁维修项目","重建","青岗片上章组","2026-08-01","2026-09-01","马店村","堰决口长20米，宽3米，高2米，用砖和片石护砌，中间水泥沙浆浇灌",2.5,2,0.5,1,65,219,1,8,17,"为解决青岗片三章200余亩农田灌溉，确保农业正常生产","为解决青岗片三章200余亩农田灌溉，确保农业正常生产，其中脱贫户8户17人。"]
[173,"产业发展","产业服务支撑项目","农业社会化服务","新开镇","马店村","农业机械设备","新建","马店村","2026-03-01","2026-04-01","马店村","铝拖旋耕机一台12万，轮拖收割机一台12万，收草机一台2.5万，碎草机一台1.5万",28,20,8,1,1123,4539,1,103,262,"带动全村经济发展，促进脱贫户监测户多梁还稳定增收，助推全村巩固脱贫攻坚成果同乡村振兴有效衔，村集体经济稳定增长","带动全村农户1123户4536人，其中脱贫户97户248人，监测户6户14人。"]
[174,"产业发展","生产项目","养殖业基地","新开镇","马店村","工厂化养殖","新建","马店村青岗片","2026-04-01","2026-08-01","马店村","占地面积8亩，养殖特种名贵水产",350,50,300,1,1123,4539,1,103,262,"带动全村经济发展，促进脱贫户监测户多梁还稳定增收，助推全村巩固脱贫攻坚成果同乡村振兴有效衔，村集体经济稳定增长","带动全村农户1123户4536人，其中脱贫户97户248人，监测户6户14人。"]
[175,"产业发展","生产项目","光伏电站建设","新开镇","马店村","新光伏发电项目","新建","马店村","2026-07-01","2026-08-01","马店村","420Kw光优电站占股比8%",120,20,100,1,1123,4539,1,103,262,"带动全村经济发展，促进脱贫户监测户多梁还稳定增收，助推全村巩固脱贫攻坚成果同乡村振兴有效衔，村集体经济稳定增长","带动全村农户1123户4536人，其中脱贫户97户248人，监测户6户14人。"]
[176,"产业发展","生产项目","水产养殖业发展","新开镇","龙湾村","龙湾村水产养殖项目","新建","龙湾村","2026-03-01","2026-04-30","龙湾村","流转山塘水库，投放鱼苗，进行鱼类养殖",5,5,0,1,1108,4108,0,54,152,"带动周边经济发展和解决有劳动能力的贫困户就业，促进脱贫户、监测户多渠道长期稳定收益增收，助推全村巩固拓展脱贫攻坚成果同乡村振兴有效衔接。","带动全村农户1108户、4108人，其中脱贫户41户117人，监测户13户35人"]
[177,"产业发展","配套基础设施项目","小型农田水利设施建设","新开镇","龙湾村","罗公山塘维修工程","新建","龙湾村瞿保组","2026-03-01","2026-04-30","龙湾村","水面4.5亩，将该塘清淤护砌、塘堤加固、低涵重建",4,4,0,1,48,175,0,3,8,"改善灌溉条件，推动农业生产","带动全村农户1108户、4108人，其中脱贫户41户117人，监测户13户35人"]
[178,"产业发展","配套基础设施项目","小型农田水利设施建设","新开镇","龙湾村","小二型水库中梗阻渠道维修护砌工程","新建","龙湾村","2026-01-01","2026-04-30","龙湾村","全村小二型水库下游渠道阻塞严重，预计维修1000米",20,20,0,1,1108,4108,0,54,152,"改善灌溉条件，推动农业生产","带动全村农户1108户、4108人，其中脱贫户41户117人，监测户13户35人"]
[179,"产业发展","生产项目","光伏电站建设","新开镇","居委会","光伏发电站","新建","新开镇金湘裕米厂宿舍屋顶",2025.12,2026.03,"新开","130千瓦村级光伏发电站",20,20,0,1,120,340,1,8,20,"收益形成后助脱贫户8户20人增收，增加集体经济收入","收益形成后助脱贫户8户20人增收，增加集体经济收入"]
[180,"产业发展","生产项目","光伏电站建设","新开镇","共和村","共和村部光伏电站建设","新建","共和村","2026.5.10","2026.6.10","共和村","村部屋顶建光伏电站160KW公共充电桩2个",40,30,10,1,1226,4750,0,68,166,"带动周边经济发展和解决有劳动能力的贫困户就业，促进脱贫户、监测户多渠道长期稳定收益增收，助推全村巩固拓展脱贫攻坚成果同乡村振兴有效衔接元，村级集体经济每年收入6万元，收益期20年，累计收益120万。","带动全村农户1226户、4750人，其中脱贫户55户131人，监测户13户35人"]
[181,"产业发展","产业服务支撑项目","农业社会化服务","新开镇","共和村","共和村集体农机合作社","新建","共和村","2026.5.15","2026.6.10","共和村","购置收割机、旋耕机、割草机、打捆机各一台",26,20,6,1,1226,4750,0,68,166,"带动周边经济发展和解决有劳动能力的贫困户就业，促进脱贫户、监测户多渠道长期稳定收益增收，助推全村巩固拓展脱贫攻坚成果同乡村振兴有效衔接。","带动全村农户1226户、4750人，其中脱贫户55户131人，监测户13户35人"]
[182,"乡村建设行动","农村基础设施","农村道路建设\n（通村、通户路）","新开镇","共和村","大塘片乔河组道路硬化","新建","共和村大塘片乔河组","2026.05.05","2026.06.30","共和村","0.5公里道路硬化",10,8,2,1,28,150,0,2,5,"解决大塘片乔河组28户150人的交通安全出行和农业机械的正常通行","带动乔河组28户150人，其中脱贫户2户5人"]
[183,"产业发展","配套基础设施项目","小型农田水利设施建设","新开镇","常山村","罗其堰整治工程","新建","常山村村、云天片4.5.6.7组","2026-08-01","2026-10-30","常山村","罗其堰是我村重要的水利设施，承担着周边良田灌溉和汛期防洪的关键功能。由于年久失修，目前堰体存在安全隐患，",8,5,3,1,60,200,5,17,0,"堰内淤积严重，蓄水能力大幅下降，已严重影响农田灌溉效率，并对下游安全构成潜在威胁。对该堰进行彻底整治，是保障农业增产、农民增收和人民生命财产安全的迫切需求，为群众增收","带动了本村60户200人受益，其中脱贫5户，17人"]
[184,"乡村建设行动","农村基础设施","农村道路建设\n（通村、通户路）","新开镇","常山村","甘冲道路硬化","新建","常山村村部、常山片9.14组","2026-08-01","2026-10-30","常山村","甘冲道路目前为砂石土路，每逢雨雪天气便泥泞不堪，严重影响了沿线村民的日常出行、生产生活和农副产品运输，制约了当地的经济发展。",35,20,15,1,10,40,1,1,158,"本年度预计进行道路硬化，保障村民安全出行，带动经济的复苏，为群众增收","带动了本村10户40人受益，其中脱贫1户，1人"]
[185,"产业发展","生产项目","养殖业基地","新开镇",null,"“两有人员”特色养殖业","新建","新开镇各村",2026.05,{"v":2026.1,"d":"2026.10"},"新开镇人民政府","“两有对象”产业奖补，给全镇脱贫户、监测户输送鸡苗、猪等",null,20,null,10,587,1500,null,104,251,"给全镇脱贫户、监测户中的“两有人员”输送鸡苗、猪等，助力其家庭增收。"]
[186,"就业项目","务工补助","生产奖补、务工奖补","新开镇","新开镇","产业奖补","续建","新开镇各村",2026.8,2026.12,"新开镇人民政府","对全镇脱贫户、监测户通过自身能力发展种养业，视其情况给予资金奖补，实现“多干多补，少干少补”",null,25,null,10,587,1500,null,104,251,"对全镇自主发展特色种养业的农户给予资金奖补，实现多干多补，少干少补，鼓励其增加集体收入。"]
[187,"产业发展","生产项目","种植业基地","杨林街镇","花果园村","花果园村和美组金盆柚种植","新建","花果园村","2026-03-15","2026-06-19","花果园村","新建130亩柚子种植基地",65,50,15,1,47,152,null,47,152,"目标1：新建≥20亩柚子基地，发展村集体经济；\n目标2：贫困劳动力参与务工，增加收入。","贫困劳动力参与务工，增加收入。"]
[188,"乡村建设行动","农村基础设施","农村道路建设\n（通村、通户路）","杨林街镇","花果园村","吴师龙至敬老院道路硬化","新建","花果园村","2026-03-28","2026-06-27","花果园村","道路长300米，宽3.5米，厚度20CM道路硬化",13,10,3,1,11,56,null,2,6,"目标1：新建、硬化道路，完善交通基础设施。\n目标2：有益于提升当地农业生产效益，为农民创收；\n目标3：完成吴师龙道路长300M，宽3.5M，厚度0.2M道路硬化。","\n带动生产, 其他"]
[189,"产业发展","生产项目","养殖业基地","杨林街镇","兰泽村","兰泽村肉鸽养殖产业发展项目（二期）","扩建","兰泽村","2026-07-10","2026-12-20","兰泽村","计划投资30万资金建设鸽场，扩建两座鸽棚，配套齐全，购买1000对鸽子进行养殖",30,20,10,1,144,650,null,5,26,"目标1：养殖1000对鸽子，发展村集体经济；\n目标2：贫困劳动力参与务工，增加收入。","贫困劳动力参与务工，增加收入。"]
[190,"乡村建设行动","农村基础设施","农村道路建设\n（通村、通户路）","杨林街镇","兰泽村","山上雷组至龟形组道路拓宽硬化","改建","兰泽村龟形组","2026-05-01","2026-07-01","兰泽村","\n将山上雷组至龟形组道路原路基清理平整后拓宽硬化长约520米、宽2.5米。",26,20,6,1,135,420,null,6,29,"目标1：新建、硬化道路，完善交通基础设施。\n目标2：有益于提升当地农业生产效益，为农民创收；\n目标3：山上雷组至龟形组道路长520M，拓宽2.5M，厚度0.2M道路硬化。","\n带动农业发展"]
[191,"乡村建设行动","农村基础设施","农村道路建设\n（通村、通户路）","杨林街镇","兰泽村","塘先组道路拓宽硬化","改建","兰泽村塘先组","2026-08-01","2026-10-10","兰泽村","将塘先组道路从原先的3.5拓宽2米至5.5米，长约350米。",10,8,2,1,42,150,null,5,30,"目标1：新建、硬化道路，完善交通基础设施。\n目标2：有益于提升当地农业生产效益，为农民创收；\n目标3：塘先组道路长350M，拓宽2M，厚度0.2M道路硬化。","\n带动农业发展"]
[192,"产业发展","生产项目","种植业基地","杨林街镇","杨林街村","杨林街村付朝砖厂金盆柚扩建","扩建","杨林街村付朝砖厂","2026-03-15","2026-06-19","杨林街村","扩建26亩柚子种植基地",16,10,6,1,85,225,0,7,24,"目标1：扩建≥26亩柚子基地，发展村集体经济；\n目标2：贫困劳动力参与务工，增加收入。","贫困劳动力参与务工，增加收入。"]
[193,"乡村建设行动","农村基础设施","农村道路建设\n（通村、通户路）","杨林街镇","杨林街村","杨林街村白泥片张思组屋场路\n硬化","新建","杨林街村白泥片张思组","2026-03-28","2026-06-27","杨林街村","张思组屋场路全长526米，路基5米，硬化3.5米，厚度200mm道路硬化",25,16,9,1,55,174,0,4,18,"目标1：新建、硬化道路，完善交通基础设施，解决15户群众出行困难；\n目标2：有益于提升当地农业生产效益，为农民创收；\n目标3：张思组屋场路全长526米，路基5米，硬化3.5米，厚度200mm道路硬化","\n带动生产, 其他"]
[194,"产业发展","生产项目","种植业基地","杨林街镇","溪源村","溪源村金盆柚种植（二期）","新建","溪源村","2026-03-15","2026-06-19","溪源村","新建20亩柚子种植基地",15,10,5,1,40,101,1,14,33,"目标1：新建≥20亩柚子基地，发展村集体经济；\n目标2：贫困劳动力参与务工，增加收入。","贫困劳动力参与务工，增加收入。"]
[195,"乡村建设行动","农村基础设施","农村道路建设\n（通村、通户路）","杨林街镇","溪源村","溪源村花园组道路硬化","新建","溪源村","2026-04-01","2026-05-01","溪源村","道路长约500米，硬化3.5m，厚度20cm",20,15,5,1,12,50,1,4,13,"目标1：新建、硬化道路，完善交通基础设施，解决6户群众出行困难；\n目标2：有益于提升当地农业生产效益，为农民创收；\n目标3：完成溪源村花园组道路长500M，宽3.5M，厚度0.2M道路硬化。","\n带动生产, 其他"]
[196,"产业发展","生产项目","种植业基地","杨林街镇","城山舟村","城山舟村金盆柚种植","新建","城山舟村","2026-07-01","2026-09-30","城山舟村","新建20亩柚子种植基地",16,12,4,1,152,469,null,11,31,"项目通过劳务用工，预计11户带来劳动力增加收入，其中收益对45户脱贫户9户监测户发放物资","该项目实施保证带动脱贫群众和一般农户发展农业生产增收。"]
[197,"乡村建设行动","农村基础设施","农村道路建设\n（通村、通户路）","杨林街镇","城山舟村","城山舟村和平片新建组道路硬化","新建","城山舟村","2026-07-01","2026-09-30","城山舟村","道路全长400米，宽2.5米、厚0.2米。",12,10,2,1,119,367,null,10,30,"对城山舟村村民交通出行安全","该项目通过改善交通条件，提高生产力，为村民增收。"]
[198,"产业发展","生产项目","种植业基地","杨林街镇","姑桥村","姑桥村金盆柚种植","新建","姑桥村","2026-03-05","2026-08-04","姑桥村","新建40亩柚子种植基地",40,30,10,1,80,180,1,10,22,"目标1：新建≥40亩柚子基地，发展村集体经济；\n目标2：贫困劳动力参与务工，增加收入。","贫困劳动力参与务工，增加收入。"]
[199,"乡村建设行动","农村基础设施","农村道路建设\n（通村、通户路）","杨林街镇","姑桥村","姑桥村村部至建头组道路硬化及桥梁新建","新建","姑桥村村部至建头组","2026-10-05","2026-12-12","姑桥村","姑桥村村部至建头组道路硬化1000米，宽3.5米厚度0.2米。桥梁长15米、宽3.5米、",47,40,7,1,360,1200,0,32,96,"目标1：新建桥梁、硬化道路，完善交通基础设施，方便群众出行；\n目标2：有益于提升当地农业生产效益，为农民创收；\n目标3：完成瞿家组道路长1km，宽3.5M，厚度0.2M道路硬化。","该项目通过改善交通条件，提高生产力，为村民增收。"]
[200,"产业发展","生产项目","养殖业基地","杨林街镇","王安村","王安村肉鸽养殖产业发展项目（二期）","扩建","王安村","2026-07-10","2026-12-20","王安村","建设鸽棚2个，新增种鸽1000对。",40,35,5,1,1725,5405,0,76,206,"目标1：养殖1000对鸽子，发展村集体经济；\n目标2：贫困劳动力参与务工，增加收入。","贫困劳动力参与务工，增加收入。"]
[201,"乡村建设行动","农村基础设施","农村道路建设\n（通村、通户路）","杨林街镇","王安村","王安姚家水库道路硬化 ","新建","王安村","2026-06-15","2026-08-15","王安村"," 长 600米*宽3.5米，厚20厘米",26,17,9,1,173,810,1,22,68,"目标1：新建、硬化道路，完善交通基础设施，解决6户群众出行困难；\n目标2：有益于提升当地农业生产效益，为农民创收；\n目标3：完成姚家水库道路长600M，宽3.5M，厚度0.2M道路硬化。","兰田片区183户，810多人口出行，美化环境、改善人居环境，改善生活质"]
[202,"产业发展","生产项目","种植业基地","杨林街镇","尚书村","尚书村金盆柚种植（二期）","新建","尚书村","2026-03-15","2026-05-15","尚书村","新建36亩柚子种植基地",36,30,6,1,30,105,1,18,28,"目标1：新建≥36亩柚子基地，发展村集体经济；\n目标2：贫困劳动力参与务工，增加收入。","贫困劳动力参与务工，增加收入。"]
[203,"乡村建设行动","农村基础设施","农村道路建设\n（通村、通户路）","杨林街镇","尚书村","张坪片必元组道路硬化","新建","尚书村","2026-11-01","2026-12-15","尚书村","张坪片必元组道路硬化长520米、宽3.5米、厚度0.2米，",18,15,3,1,88,246,1,67,146,"目标1：新建、硬化道路，完善交通基础设施。\n目标2：有益于提升当地农业生产效益，为农民创收；\n目标3：完成必元组道路长520M，宽3.5M，厚度0.2M道路硬化。","该项目通过改善交通条件，提高生产力，为村民增收。"]
[204,"乡村建设行动","农村基础设施","农村道路建设\n（通村、通户路）","杨林街镇","尚书村","沙陂片村级道路硬化","新建","尚书村","2026-11-01","2026-12-15","尚书村","沙陂片村级道路硬化长412米、宽3.3米、厚0.2米，",14,10,4,1,110,356,1,67,146,"目标1：新建、硬化道路，完善交通基础设施。\n目标2：有益于提升当地农业生产效益，为农民创收；\n目标3：完成沙陂片道路长520M，宽3.5M，厚度0.2M道路硬化。","该项目通过改善交通条件，提高生产力，为村民增收。"]
[205,"产业发展","生产项目","养殖业基地","长湖乡","白羊村","岳阳县瑞民养殖农民专业合作社采购种鸽","扩产","白羊村华表组","2026.2.6","2026.2.16","长湖乡白羊村村民委员会","岳阳县瑞民养殖农民专业合作社采购种鸽2500对",45,45,0,1,36,122,1,36,122,"带动脱贫户、监测户增收，每人每年收益2300元","对脱贫户增收，带来经济效益"]
[206,"产业发展","生产项目","种植业基地","长湖乡","白羊村","岳阳县穗民水果种植专业合作社","续建","白羊村卫星组","2026.2.26","2026.10.26","长湖乡白羊村村民委员会","金盆柚232亩后期抚育、剪枝、施肥、除草、打药。",30,30,0,1,36,122,1,36,122,"带动脱贫户、监测户增收，每人每年收益2300元","对脱贫户增收，带来经济效益"]
[207,"乡村建设行动","农村基础设施","农村道路建设\n（通村、通户路）","长湖乡","京广村","长湖乡京广村主干道道路路基拓宽","新建","京广村","2026.6.10","2026.9.20","京广村","道路长全6.3公里，路两边路基拓宽2.5米",20,20,0,1,1275,3998,1,30,78,"巩固脱贫成果，改善乡村环境，优化交通，便于农产品运输","提升道路安全性与通行效率，改善民生福祉，助力乡村振兴战略实施"]
[208,"产业发展","配套基础设施项目","小型农田水利设施建设","长湖乡","洪桥村","蒋家组水沟硬化","改建","胡山片蒋家组","2026.3.1","2026.3.31","洪桥村","为方便水田灌溉，蒋家组235米水沟硬化",5.5,null,null,1,30,218,{"$nulls":3},"便于水田灌溉","给农业增收带来一定积极影响"]
[209,"产业发展","配套基础设施项目","小型农田水利设施建设","长湖乡","燎原新村","民主片三里王机台沟渠管道建设","新建","民主片","2026.3.1","2026.6.1","长湖乡","新架设管道1.5千米",15,15,0,1,226,697,0,8,19,"提升水利灌溉能力，使农民增产增收","使农民增产增收"]
[210,"产业发展","配套基础设施项目","小型农田水利设施建设","长湖乡","燎原新村","燎原片双冲组洗衣塘维修","新建","燎原片双冲组","2026.3.1","2026.6.1","长湖乡","清淤扩容、塘堤维修硬化",5,5,0,1,121,346,0,7,31,"提升水利灌溉能力，使农民增产增收；方便村民使用，提升幸福感","使农民增产增收"]
[211,"产业发展","配套基础设施项目","小型农田水利设施建设","长湖乡","燎原新村","燎原片罗家组道路塌方维修","新建","燎原片罗家组","2026.3.1","2026.6.1","长湖乡","道路路基重建、加固、路面硬化",5,5,0,1,208,682,0,10,30,"提升交通运输能力，激活当地经济发展，保障村民出行安全","为引进企业带农致富打下基础"]
[212,"乡村建设行动","农村基础设施","农村道路建设\n（通村、通户路）","长湖乡","燎原新村","民主片双联组至先进组断头路连接100米","新建","燎原新村","2026.3.1","2026.6.1","长湖乡","路基整理、路面拓宽、路面硬化",4.5,4.5,0,1,508,1604,0,14,39,"提升交通运输能力，激活当地经济发展","为引进企业带农致富打下基础"]
[213,"乡村建设行动","农村基础设施","农村道路建设\n（通村、通户路）","长湖乡","范家村","松山片何塘组至松山屋场道路拓宽硬化工程","改建","范家村松山片","2026.4.1","2026.5.1","范家村","全长1公里，在原有路面宽3.5米基础上加宽1米后硬化厚度为0.2米",13,13,null,1,103,358,1,26,58,"改善农民居住环境，提升农民交通安全出行质量","拓宽农户就业和增收渠道，确保低保户˴低收入户收入总体稳定增长"]
[214,"产业发展","配套基础设施项目","小型农田水利设施建设","长湖乡","范家村","高家片绪山组牛角塘堤坝维修清淤工程","改建","范家村高家片","2026.3.1","2026.3.31","范家村","堤坝长约50米、宽约3米，清淤面300m³、深1.5米",5.5,null,null,1,103,358,1,26,58,"改善农民农田耕种问题，提升农民生活环境质量","拓宽农户就业和增收渠道，确保低保户˴低收入户收入总体稳定增长"]
[215,"产业发展","配套基础设施项目","小型农田水利设施建设","长湖乡","自强村","马头组水沟维修建设","改建","自强村马头组","2026.10.1","2026.11.1","自强村","长500M水沟疏通清污整改",1.5,1.5,null,1,35,90,1,5,13,"便于水田灌溉","给脱贫户监测户增加经济收入"]
[216,"产业发展","配套基础设施项目","小型农田水利设施建设","长湖乡","自强村","马头组水沟硬化建设","改建","自强村马头组","2026.10.1","2026.11.1","自强村","长260M水沟硬化",5,5,null,1,35,90,1,5,13,"便于水田灌溉","给脱贫户监测户增加经济收入"]
[217,"乡村建设行动","农村基础设施","农村道路建设\n（通村、通户路）","长湖乡","自强村","马大路道路建设","新建","自强村马头组","2026.10.1","2026.11.1","自强村","总共878米道路硬化，其中500米新建5米宽，378米拓建1.5米宽",50,30,20,1,22,78,1,7,26,"企业产业发展","给脱贫户监测户增加经济收入"]
[218,"乡村建设行动","农村基础设施","农村道路建设\n（通村、通户路）","长湖乡","荆洲村","新建组、三友组、更新组断头路连接300米","新建","荆洲村","2026.3.1","2026.6.1","长湖乡","路基整理、路面拓宽、路面硬化",10,10,0,1,308,1206,0,2,7,"提升交通运输能力，激活当地经济发展","为引进企业带农致富打下基础"]
[219,"乡村建设行动","农村基础设施","农村道路建设\n（通村、通户路）","长湖乡","荆洲村","张庚用断头路连接400米","新建","荆洲村","2026.3.1","2026.6.1","长湖乡","路基整理、路面拓宽、路面硬化",12,12,0,1,152,708,0,1,4,"提升交通运输能力，激活当地经济发展","为引进企业带农致富打下基础"]
[220,"乡村建设行动","农村基础设施","农村道路建设\n（通村、通户路）","长湖乡","团结村","凌云片近知组至周杨道路扩宽硬化","改建","凌云片近知组至周杨组","2026-10-01","2026-11-01","团结村","道路扩宽2米，并硬化",30,30,null,1,52,220,null,1,5,"便于农民农产品通行","给脱贫户监测户增加经济收入"]
[221,"乡村建设行动","农村基础设施","农村道路建设\n（通村、通户路）","长湖乡","团结村","凌云片大罗伏至南边万倍组将军桥拆除重建","重建","凌云片大罗伏至南边万倍组","2026-10-01","2026-11-01","团结村","旧桥拆除重建",120,120,null,1,220,780,null,1,2,"便于农民农产品通行","给脱贫户监测户增加经济收入"]
[222,"产业发展","配套基础设施项目","小型农田水利设施建设","中洲乡","巴陵村","金山一机、小明水库机埠维修","新建","巴陵村",2026.3,2026.12,"巴陵村","金山一机、小明水库机埠维修",60,40,20,1,838,3075,1,23,77,"解决金山、大明两个片100余亩农田水利灌溉难题，每人每年增收300元以上。","农户参与，为种田农户增产增收"]
[223,"产业发展","配套基础设施项目","小型农田水利设施建设","中洲乡","巴陵村","青镜、大明中港灌溉渠道维修、清淤硬化、护坡","新建","巴陵村",2026.3,2026.12,"巴陵村","长3000米、底宽2.5，面宽4米渠道护理",80,60,20,1,838,3075,1,81,291,"便利大明、青镜1000余亩农田水利灌溉，每人每年增收300元以上。","农户参与，为种田农户增产增收"]
[224,"乡村建设行动","农村基础设施","农村道路建设\n（通村、通户路）","中洲乡","巴陵村","青镜片、金山片、大明片道路维修、升级改造","新建","巴陵村",2026.3,2026.12,"巴陵村","8公里村级道路维修",180,150,30,1,838,3075,1,81,291,"对全村道路进行全面维修，有效提升道路安全指数。","农户参与，提高全村百姓出行安全。"]
[225,"产业发展","生产项目","种植业基地","中洲乡","巴陵村","脐橙基地日常管护","新建","巴陵村青镜片",2026.3,2026.12,"巴陵村","脐橙基地日常除草、施肥、浇水",15,15,0,1,838,3075,1,81,293,"有效提高果树生长，保证果苗不受损失，尽早挂果产生收益。","农户参与，脱贫户、监测户优先，解决困难群众就业问题，提高收入"]
[226,"产业发展","生产项目","种植业基地","中洲乡","宝塔村","金盆柚基地日常管护","新建","宝塔村",2026.1,"2026.12","宝塔村村委会","金盆柚基地日常管护",10,10,0,1,165,735,1,3,9,"解决金盆基地剪枝、施肥、打药、除草、浇灌等问题","群众参与施工，提供就业机会，增收"]
[227,"产业发展","配套基础设施项目","小型农田水利设施建设","中洲乡","坪桥湖村","兴旺片金沙机埠维修","新建","坪桥湖村",2026.8,2026.11,"坪桥湖村村委会","抽水设备更换，机房重建，进，出水管更换及水渠管道埋设。",50,40,10,1,245,900,0,17,59,"解决650亩水田灌溉，带来增产，增收效益","群众参与施工，提供就业机会，增收"]
[228,"乡村建设行动","农村基础设施","产业路、资源路、旅游路建设","中洲乡","坪桥湖村","仁义一片机耕路维修","新建","坪桥湖村",2026.1,"2026.10","坪桥湖村村委会","1500米机耕路，路基平整，铺卵石、压实",8,5,3,1,85,452,0,4,16,"1200亩荒山开垦，套种玉米、油茶、大豆，带来增产、增收效益","群众参与施工，提供就业机会，增收"]
[229,"产业发展","配套基础设施项目","小型农田水利设施建设","中洲乡","北垸村","北垸村台渠修建","新建","北垸村",2026.1,"2026.10","北垸村村委会","800米土沟进行挖深，硬化",22,12,10,1,76,265,1,13,38,"为240亩水田提供农业用水保障","提高农户发展种植产业积极性"]
[230,"产业发展","配套基础设施项目","小型农田水利设施建设","中洲乡","北垸村","五组机埠建设","新建","五组",2026.3,2026.7,"北垸村村委会","建机房，架设农电，购买安装水泵管道等设备",15,10,5,1,"120户","350人",1,4,16,"五组一百多亩水田灌溉用水得到保障","确保农业生产，带动就业"]
[231,"产业发展","生产项目","水产养殖业发展","中洲乡","北垸村","鸭嘴鱼养殖入股分红","新建","六号型水产养殖基地",2026.1,"2026.10","北垸村村委会","厂房建设，设备购买，以及员工工资等",60,50,0,1,1260,3651,1,101,271,"在投入60万的情况下，村里每年预计可以产生4万元的效益，用于村公益事业。","特色产业带动周边农户养殖积极性，壮大村集体经济，为村集体公益事业添砖加瓦"]
[232,"产业发展","生产项目","种植业基地","中洲乡","中洲村","药材种植\n入股分红","新建","中洲村",2026.4,2026.5,"中洲村","以固定分红\n形式入股药\n材种植基地，\n协助完成配套设施",20,20,null,1,1278,4207,1,86,263,"完善本村300亩药材\n种植基地配套设施","群众参与施工，提供就业机会，增收"]
[233,"乡村建设行动","农村基础设施","产业路、资源路、旅游路建设","中洲乡","中洲村","13、14.15格机耕路铺修","新建","中洲村",2026.1,2026.11,"中洲村","8000米机耕路铺修",20,20,null,1,1278,4207,1,86,263,"完善本村300亩药材\n种植基地配套设施","群众参与施工，提供就业机会，增收"]
[234,"乡村建设行动","农村基础设施","产业路、资源路、旅游路建设","中洲乡","中洲村","5号型机耕路硬化","新建","中洲村",2026.8,2026.9,"中洲村","300米机耕路\n硬化",8,8,null,1,1278,4207,1,86,263,"完善本村300亩药材\n种植基地配套设施","群众参与施工，提供就业机会，增收"]
[235,"产业发展","配套基础设施项目","小型农田水利设施建设","中洲乡","中洲村","16格机埠新建","新建","中洲村",2026.5,2026.6,"中洲村","新建12平机埠一座及配套水泵设施",7,7,null,1,1278,4207,1,86,263,"保障12平农田灌溉用水","群众参与施工，提供就业机会，增收"]
[236,"产业发展","加工流通项目","产地初加工和精深加工","中洲乡","机场村","机场村机场片干菜加工厂建设(二期）","新建","机场村机场片",2026.1,2026.3,"机场村村民委员会","将原新建的厂房地坪硬化、内外墙粉刷、厂房顶做防水、办公场地建设、添加烘干设备",120,50,70,1,342,999,1,62,176,"1、能提供40-50个就业岗位，极大提高当地村民就业问题；\n2、增加村集体经济收入","提高村集体、农户收入,增加农户就业机会"]
[237,"乡村建设行动","农村基础设施","农村道路建设\n（通村、通户路）","中洲乡","机场村","机场村20、21组沟渠硬化","改建","机场村塘坡片",2026.1,2026.4,"机场村村民委员会","约400米沟渠清淤、硬化",10,10,0,1,127,395,1,9,28,"极大改善下暴雨给当地农户带来的损失","提高农户生产生活条件"]
[238,"乡村建设行动","农村基础设施","农村道路建设\n（通村、通户路）","中洲乡","三江村","一组渠道建设","改建","三江村一组",2026.4,2026.12,"三江村村民委员会","渠道建设500米",10,10,0,1,67,298,1,4,12,"解决农田水利抗旱灌溉问题","群众参与施工，提供就业机会，增收"]
[239,"乡村建设行动","农村基础设施","农村道路建设\n（通村、通户路）","中洲乡","三江村","十三组道路建设","改建","三江村十三组",2026.4,2026.12,"三江村村民委员会","道路建设400米",5,5,0,1,130,452,1,3,12,"解决群众出行安全，为群众生产生活带来便利","群众参与施工，提供就业机会，增收"]
[240,"产业发展","生产项目","种植业基地","中洲乡","三江村","水果湘莲项目","新建","三江村十二组",2026.2,2026.4,"三江村村民委员会","水果湘莲种植30亩",16,16,0,1,120,412,1,4,11,"出租农田，增加收入。","增加集体经济收入，解决群众就业"]
[241,"产业发展","生产项目","养殖业基地","中洲乡","平江河村","稻虾养殖项目","新建","寒湖片",2026.2,2026.4,"平江河村","承包十四组三十亩水田从事稻虾养殖",6,6,0,1,999,4012,1,12,29,"增加集体经济收入，解决群众就业","村民共同参与，既丰富群众精神生活，又提升群众生活质量；给村民的出行、农作物的运输，提供更多便利。"]
[242,"乡村建设行动","农村基础设施","产业路、资源路、旅游路建设","中洲乡","平江河村","13组道路维修","改建","寒湖片",2026.5,2026.6,"平江河村","13组400米机耕路，铺卵石、砖渣后压实平整",2,2,0,1,26,88,1,2,8,"方便农用机械通行，促进农业生产，提高了群众经济收入","群众参与施工，提供就业机会，增收"]
[243,"乡村建设行动","农村基础设施","产业路、资源路、旅游路建设","中洲乡","平江河村","14组道路维修","改建","寒湖片",2026.5,2026.6,"平江河村","14组600米机耕路，铺卵石、砖渣后压实平整",3,3,0,1,103,334,1,5,14,"方便农用机械通行，促进农业生产，提高了群众经济收入","群众参与施工，提供就业机会，增收"]
[244,"就业项目","务工补助","生产奖补、务工奖补","中洲乡","各村","产业奖补","续建","各村",2026.1,2026.12,"各村","对符合条件的脱贫户、监测户实施产业奖补",50,50,0,8,530,1590,8,68,176,"对符合条件的脱贫户、监测户实施产业奖补","为发展产业提供支持"]
[245,"产业发展","生产项目","种植业基地","新墙镇","新华村","毛杨片许家组百香果种植","新建","新华村毛杨片",2026.03,2026.05,"新华村","流转6亩田种植百香果，资金用于流转费用、基地建设、苗子及肥料购买等",7.61,7.5,0.11,1,60,214,0,4,11,"为周边群众60户214人带来劳动就业机会，每户年增长收入1000元左右，1年后给集体经济增加年收入5万元左右","土地流转、就业务工"]
[246,"产业发展","生产项目","种植业基地","新墙镇","新华村","毛杨片二组油桐种植","新建","新华村毛杨片",2026.03,2026.05,"新华村","流转50亩土地种植油桐，资金用于土地流转、土地翻耕、树苗肥料购买、人工种植、管护等",19.125,15,4.125,1,60,214,0,4,11,"为周边群众60户214人带来劳动就业机会，每户年增长收入1000元左右，4年后给集体经济增加年收入5万元左右","土地流转、就业务工"]
[247,"产业发展","生产项目","种植业基地","新墙镇","新华村","四义片金盆柚种植项目改造建设","改建","新华村四义片余子交",2026.03,2026.08,"新华村","灌溉模式改成水肥一体式滴管、建造机械用工房一幢、新墙水池3个、肥料购买等",54,30,24,1,50,169,0,3,8,"为周边群众50户169人带来劳动就业机会，每户年增长收入1500元左右，5年后给集体经济增加年收入50万元左右","土地流转、就业务工"]
[248,"产业发展","生产项目","种植业基地","新墙镇","马形村","油桐基地后期抚育","修建","马形村",2026.03,2026.11,"马形村","350亩油桐基地进行抚育，包括中耕除草松土灌溉（打深水井、蓄水池）施肥、修枝、排水、病虫害防治",20,5,15,1,260,740,1,28,63,"项目总受益260户人数740人，其中脱贫户28户人数63人，预期每户增收200元","群众参与施工"]
[249,"产业发展","生产项目","种植业基地","新墙镇","老街社区","老街油茶种植","种植","老街十组",2026.03,2026.11,"老街","150亩油茶基地种植，\n包括土地平整翻耕，施肥，购买苗木，人工种植",20,15,5,1,35,170,1,5,12,"项目总受益35户人数170人，其中脱贫户5户人数12人，预期每户增收200元","群众参与施工"]
[250,"产业发展","生产项目","种植业基地","新墙镇","燎原村","燎原村圣女果种植项目","新建","燎原村沙河片",2026.03,2026.12,"燎原村","圣女果种植基地10亩前期翻耕，购苗，人工除草、打药、施肥等",9,6,3,1,65,210,1,19,63,"为周边群众65户210人带来劳动就业机会，每户年增长收入1200元左右，给集体经济增加年收入1.8万元左右"]
[251,"乡村建设行动","农村基础设施","农村道路建设\n（通村、通户路）","新墙镇","燎原村","燎原村中渠机耕道路硬化工程","新建","燎原村燎原垸",2026.11,2026.12,"燎原村","中渠机耕道路\n长1000米、宽3米、高15厘米道路硬化",20,17,3,1,120,480,1,19,63,"为周边群众120户480人机耕生产出行安全带来便利"]
[252,"乡村建设行动","农村基础设施","农村道路建设\n（通村、通户路）","新墙镇","清水村","清水村门头至袁岭片道路拓宽","改建","清水门头",2026.8,2026.12,"清水村","清水村门头至袁岭片道路拓宽1650米",120,30,90,1,58,189,1,30,80,"解决周边群众生产、生活、出行方便"]
[253,"产业发展","生产项目","种植业基地","新墙镇","双枫村","双枫村农之源圣女果种植","新建","双枫村\n红光片",2026.03,2026.06,"双枫村","对双枫村果园7亩钢架大棚内种植圣女果",6,3,3,1,23,78,1,5,12,"可带动周边4户7人村民劳动就业以及进一步增加村集体经济收入。"]
[254,"乡村建设行动","人居环境整治","农村污水治理","新墙镇","双枫村","双枫村农村\n污水垃圾治理","新建","双枫村",2026.06,2026.11,"双枫村","对双枫村清理污水管道，添置垃圾桶以及转运设备",8,5,3,1,58,192,1,14,42,"解决双枫村减少污水垃圾污染，保障饮用水安全提升群众生活舒适度，增强民生福祉。"]
[255,"产业发展","配套基础设施项目","小型农田水利设施建设","步仙镇","关王村","小塘维修","续建","关\n王\n村","2026-03-01","2026-04-01","关王村","护堤、清淤、低涵维修",10,6,4,1,37,156,0,2,5,"通过对山塘进行清淤、加固，实现蓄水能力提升，提高农业生产供水能力，解决1个组，2户贫困户5人水利灌溉问题","通过改善基础设施，解决1个组，2户贫困户5人水利灌溉问题"]
[256,"乡村建设行动","农村基础设施","农村道路建设\n（通村、通户路）","步仙镇","新合村","应祥道路","改扩建","新合村应祥路","2026-06-01","2026-12-01","新合村","道路拓宽硬化白加黑全长5公里",350,250,100,4,1500,6000,0,60,230,"方便全村2000余人出行","通过改善基础设施，方便全村2000余人出行"]
[257,"产业发展","生产项目","种植业基地","步仙镇","狮山社区","水果种植基地","新建","狮山社区","2026-01-01","2026-12-01","狮山社区","第一期种植30多亩，第二期扩建40亩",85,75,10,1,199,960,0,18,58,"涉及17个组，提高村级集体经济，带动种殖业增加收入，减轻脱贫人口外出务工就业压力","增加村集体经济，改善劳动就业"]
[258,"产业发展","生产项目","种植业基地","步仙镇","狮山社区","张家冲农田改造","改建","狮山社区","2026-01-01","2026-12-01","狮山社区","一次性改造原有农田41亩",75,60,15,1,26,300,0,5,19,"解决2个组，300余人农户种植问题，减轻脱贫人口外出务工就业压力","通过改善基础设施，解决2个组，300余人农户种植问题，减轻脱贫人口外出务工就业压力"]
[259,"乡村建设行动","农村基础设施","农村道路建设\n（通村、通户路）","步仙镇","狮山社区","福升大屋组至庄上组道路建设","新建","狮山社区","2026-01-01","2026-12-01","狮山社区","全长200米，路边做驳岸道路硬化",15,10,5,1,50,200,0,5,30,"解决5个组200余人交通安全出行问题","通过改善基础设施，解决5个组200余人交通安全出行问题"]
[260,"乡村建设行动","农村基础设施","农村道路建设\n（通村、通户路）","步仙镇","狮山社区","连接线至方段组道路","新建","狮山社区","2026-01-01","2026-12-01","狮山社区","全长250米路边做驳岸道路硬化",18,15,3,1,52,210,0,3,35,"解决2个组210余人交通安全出行问题","通过改善基础设施，解决2个组210余人交通安全出行问题"]
[261,"乡村建设行动","农村基础设施","农村道路建设\n（通村、通户路）","步仙镇","狮山社区","步仙中学至召保二桥道路建设","新建","狮山社区","2026-01-01","2026-12-01","狮山社区","全长500米路边做驳岸及道路硬化",55,45,10,1,268,1600,0,32,106,"解决10个组1600余人交通安全出行问题","通过改善基础设施，解决10个组1600余人交通安全出行问题"]
[262,"乡村建设行动","农村基础设施","产业路、资源路、旅游路建设","步仙镇","松溪村","果园产业路建设","新建","唐儒\n片后\n山","2026-01-01","2026-12-01","松溪村","果园产业路建设约3.5公里预算资金200万元",200,100,100,1,890,3126,0,37,135,"完善配套设施建设增强产品时值提升优质产业竞争力","完善配套设施建设增强产品时值提升优质产业竞争力"]
[263,"产业发展","生产项目","种植业基地","步仙镇","山美村","特色农产品种植","新建","石美片","2026-05-01","2026-12-02","山美村","金盆柚种植，油茶种植，规模200亩",40,30,10,1,110,421,0,11,40,"预计完成土地流转200亩，为村级集体经济增收5万元","通过改善基础设施，为村级集体经济增收"]
[264,"产业发展","配套基础设施项目","小型农田水利设施建设","步仙镇","山美村","山塘水沟维修","续建","山美村","2026-05-02","2026-12-03","山美村","山塘维修3口、维修新建水沟900米，促进农户水稻种植持续增收",30,22,8,1,245,954,0,28,86,"预计完成山塘维修3口及900米水沟维修","改善基础设施建设，促进农户水稻种植持续增收"]
[265,"产业发展","配套基础设施项目","小型农田水利设施建设","步仙镇","仙桥村","万龙塅里水渠维修硬化工程","改建","仙桥村","2026-02-01","2026-12-01","仙桥村","全长500米水渠硬化",15,10,5,1,140,445,0,8,44,"改善农田水利设施，解决万龙片农田排灌问题","改善农田水利设施建设，解决万龙片农田排灌问题"]
[266,"产业发展","生产项目","种植业基地","步仙镇","仙桥村","油茶林基地","续建","仙桥村","2026-02-01","2026-12-01","仙桥村","油茶种植规模150亩",50,30,20,1,324,1865,0,19,70,"为村民提供就业增加收入","改善劳动就业，为村民提供就业增加收入"]
[267,"就业项目","就业","帮扶车间（特色手工基地）建设 ","步仙镇","仙桥村","缝纫车间（鸿河缝纫有限公司）","改建","仙桥村","2026-02-01","2026-12-01","仙桥村","规模总面积1500㎡，增加就业岗位",30,15,15,1,35,150,2,7,35,"为村民提供就业增加收入","改善劳动就业，为村民提供就业增加收入"]
[268,"产业发展","生产项目","种植业基地","步仙镇","凤凰村","金盆柚种植基地高效农业设施建设","续建","凤凰村广福片","2026-01-01","2026-12-01","凤凰村","对金盆柚基地道路、高效农业设施建设，发展集体经济，带动脱贫监测人口31人增收",200,100,100,1,85,350,0,14,31,"发展集体经济，带动脱贫监测人口31人增收","增加村集体经济，改善劳动就业"]
[269,"产业发展","加工流通项目","产地初加工和精深加工","步仙镇","凤凰村","湖南鸿泽再生资源有限公司","新建","凤凰村雷家片","2026-01-02","2026-12-02","凤凰村","再生资源回收、加工、销售",500,100,400,1,997,4025,0,66,252,"发展集体经济，带动脱贫、监测人口增收","增加村集体经济，改善劳动就业"]
[270,"乡村建设行动","农村基础设施","农村道路建设\n（通村、通户路）","步仙镇","凤凰村","进化集镇至双峰组峰谷金盆柚产业路建设","新建","凤凰村广福片","2026-01-03","2026-12-03","凤凰村","3.6公里道路拓宽硬化、白改黑",280,80,200,1,312,1450,0,26,98,"为金盆柚产业发展提供交通保障，解决1200人出行","改善基础设施建设，为金盆柚产业发展提供交通保障，解决1200人出行"]
[271,"产业发展","配套基础设施项目","小型农田水利设施建设","步仙镇","步仙湖村","张家冲桥驳岸护砌","新建","步仙湖村","2026-02-01","2026-12-01","步仙湖村","张家冲桥驳岸护砌30米",20,15,5,1,310,1200,1,30,120,"改善农田水利设施，解决岳坊片农田排灌问题","改善农田水利设施建设，解决岳坊片农田排灌问题"]
[272,"产业发展","配套基础设施项目","小型农田水利设施建设","步仙镇","步仙湖村","窑塘清污护坡","续建","步仙湖村","2026-02-02","2026-12-02","步仙湖村","窑塘清污护坡1300平方",20,15,5,1,150,500,1,10,40,"改善农田水利设施，解决东岳片农田排灌问题","改善农田水利设施，解决东岳片农田排灌问题"]
[273,"乡村建设行动","农村基础设施","农村道路建设\n（通村、通户路）","步仙镇","步仙湖村","东石路提质油化","改建","步仙湖村","2026-02-03","2026-12-03","步仙湖村","东石路提质油化4.6公里",150,100,50,2,800,3600,1,65,205,"方便3600人出行","改善基础设施建设，方便3600人出行"]
[274,"乡村建设行动","农村基础设施","其他","步仙镇","步仙湖村","石牛港浆砌石硬化","新建","步仙湖村","2026-02-04","2026-12-04","步仙湖村","石牛港浆砌石1.8公里",180,150,30,2,800,3600,1,65,205,"灌溉800亩农田","改善基础设施建设，灌溉800亩农田"]
[275,"乡村建设行动","农村基础设施","农村道路建设\n（通村、通户路）","步仙镇","步仙湖村","修建王定屋弯头屋桥","新建","步仙湖村","2026-02-05","2026-12-05","步仙湖村","新建王定屋湾头屋桥50米",70,50,20,1,150,1000,1,20,80,"方便1000人出行","改善基础设施建设，方便1000人出行"]
[276,"产业发展","配套基础设施项目","小型农田水利设施建设","步仙镇","步仙湖村","东岳片均胜灌溉水沟硬化","改建","步仙湖村","2026-02-06","2026-12-06","步仙湖村","东岳片均胜灌溉水沟硬化1200米",30,20,10,1,120,500,1,20,80,"改善农田水利设施，解决东岳片农田排灌问题","改善农田水利设施，解决东岳片农田排灌问题"]
[277,"乡村建设行动","农村基础设施","农村道路建设\n（通村、通户路）","步仙镇","步仙湖村","石牛片坪房屋至凤凰村村级公路拓宽","改建","步仙湖村","2026-02-07","2026-12-07","步仙湖村","石牛片坪房屋至凤凰村村级公路拓宽1.5公里",20,15,5,2,800,3600,1,65,205,"方便1500人出行","改善基础设施建设，方便1500人出行"]
[278,"乡村建设行动","农村基础设施","农村道路建设\n（通村、通户路）","步仙镇","安山村","道路拓宽维修","改扩建","安山片","2026-01-02","2026-12-02","安山村","安山片2公里道路拓宽维修",40,25,15,1,700,2000,0,40,140,"解决安山村2000多人交通安全出行问题","改善基础设施建设，解决安山村2000多人交通安全出行问题"]
[279,"乡村建设行动","农村基础设施","农村道路建设\n（通村、通户路）","步仙镇","安山村","道路硬化","新建","胡兴片","2026-01-02","2026-12-02","安山村","召宗组到山塝组3.5公里道路硬化",40,32,8,1,100,350,0,10,30,"解决组级300多人安全出行问题","改善基础设施建设，解决组级300多人安全出行问题"]
[280,"乡村建设行动","农村基础设施","农村道路建设\n（通村、通户路）","步仙镇","安山村","桥梁拓宽加固","改扩建","安山村","2026-01-02","2026-12-02","安山村","山塝组//禾田组2座桥拓宽加固",25,20,5,3,1200,4000,0,100,400,"解决3个村4000多人安全出行问题","改善基础设施建设，解决3个村4000多人安全出行问题"]
[281,"产业发展","配套基础设施项目","小型农田水利设施建设","步仙镇","安山村","水利维修","续建","安山村","2026-01-02","2026-12-02","安山村","安山村5000平方山塘维修",10,8,2,1,150,450,0,20,60,"解决安山村8个组450多人水利灌溉问题","改善基础设施建设，解决安山村8个组450多人水利灌溉问题"]
[282,"乡村建设行动","农村基础设施","农村道路建设\n（通村、通户路）","步仙镇","北斗岭村","泉冲片高冲至岑川郭洞断桥路建设","新建","泉冲片高冲至岑川郭洞","2025-12-01","2026-08-01","北斗岭村","全长1.5公里*6米；盖板涵桥4座",20,15,5,2,200,1600,1,13,56,"解决10个组，1600余人出行","改善基础设施建设，解决10个组，1600余人出行"]
[283,"产业发展","生产项目","种植业基地","步仙镇","北斗岭村","黄精种植基地","新建","北斗岭村","2026-01-01","2026-12-01","北斗岭村","第一期种植20多亩，第二期扩建30亩",65,55,10,1,186,892,1,17,52,"涉及17个组，带动种殖业增加收入，减轻脱贫人口外出务工就业压力","改善劳动就业，为村民提供就业增加收入"]
[284,"产业发展","生产项目","种植业基地","步仙镇","北斗岭村","岳阳县六景生态种养殖农民专业合作社","新建","北斗岭村","2026-01-01","2026-12-01","北斗岭村","种植水稻、黄豆、棉花、油菜；土地流转1300亩",20,15,5,1,186,892,1,17,52,"涉及17个组，提高村级集体经济，带动种殖业增加收入，减轻脱贫人口外出务工就业压力","增加村集体经济，改善劳动就业，为村民提供就业增加收入"]
[285,"乡村建设行动","农村基础设施","农村道路建设\n（通村、通户路）","步仙镇","北斗岭村","广福进口至高冲组；泉冲村部至秀文组道路建设","改扩建","北斗岭村","2025-12-01","2026-10-01","北斗岭村","全长2.6公里；路面扩宽硬化、油化",212,150,62,1,324,1064,1,14,46,"涉及10个组1600余人，解决交通安全出行问题","改善基础设施建设，涉及10个组1600余人，解决交通安全出行问题"]
[286,"产业发展","配套基础设施项目","小型农田水利设施建设","步仙镇","北斗岭村","北斗岭村山塘维修","改建","北斗岭村","2026-01-01","2026-12-01","北斗岭村","山塘清淤、加固",30,15,15,1,320,1240,1,65,262,"改善水利条件，方便群众生产、水利灌溉促进发展农业生产增收","改善水利条件，方便群众生产、水利灌溉促进发展农业生产增收"]
[287,"就业项目","务工补助","生产奖补、务工奖补","步仙镇","全镇","产业奖补","续建","全镇","2026-01-02","2026-12-02","步仙镇","对有能力、有意愿参加产业发展的脱贫户、监测户实施产业奖补",45,45,0,10,559,1839,2,559,1839,"对全镇有意愿有能力的脱贫户监测户进行产业奖补","对全镇有意愿有能力的脱贫户监测户进行产业奖补，带动生产"]
[288,"产业发展","生产项目","种植业基地","荣家湾街道","城东村","城东村大冲片油茶种植基地","新建","城东村大冲片","2026-01-01","2026-12-31","城东村","城东村50万元现金入股邹敏屋油茶种植基地，基地位于大冲片，共种植220亩，村集体现金入股，每年固定分红，增加村集体收入。",180,50,130,1,125,1100,1,6,23,"城东村50万元现金入股邹敏屋油茶种植基地，基地位于大冲片，共种植220亩，村集体现金入股，每年固定分红，增加村集体收入。土地流转增加群众收入，基地用工聘用周边群众增加收入，受益群众125户1100人，其中脱贫户6户23人。","土地流转增加群众收入，基地用工聘用周边群众增加收入，带动生产发展特色产业。"]
[289,"乡村建设行动","农村基础设施","农村道路建设\n（通村、通户路）","荣家湾街道","城东村","城东村荣黄路至群星片一二组道路硬化","新建","城东村群星片","2026-11-01","2026-11-30","城东村","城东村荣黄路至群星片一二组道路硬化长580米，宽3.5米，厚0.2米。",25,10,15,1,34,121,1,3,8,"城东村荣黄路至群星片一二组道路硬化580米，宽3.5米，厚0.2米；方便群众安全出行，加快农业物资流通速度；受益群众34户121人，其中脱贫户3户8人。","方便群众安全出行，农业物资运输通畅。"]
[290,"乡村建设行动","农村基础设施","农村道路建设\n（通村、通户路）","荣家湾街道","大毛家湖渔场","大毛家湖渔场一组通组道路硬化","改建","大毛家湖渔场一组","2026-05-01","2026-05-30","大毛家湖渔场","大毛家湖渔场一组通组道路硬化，路长160米，宽3米，硬化厚度0.2米。",6,3,3,1,21,80,null,1,2,"解决群众出行安全问题，加快农资流通速度，增加群众收入；受益群众21户80人，其中脱贫户1户2人。","解决群众出行安全问题，加快农资流通速度，增加群众收入。"]
[291,"产业发展","配套基础设施项目","小型农田水利设施建设","荣家湾街道","东方村","东方村农科片三、四渠道维修","改建","东方村","2026.4.2","2026.4.17",null,"东方村农科片三、四组渠道维修全长210米，U型槽维修更换",3,2,1,1,80,332,null,7,29,"东方村农科片三、四组渠道全长210米，宽60公分，彻底解决村民灌溉困难，受益水田200亩，受益群众80户，332人其中脱贫户7户，29人","群众水稻种植受益，改善80户200亩水田耕种条件"]
[292,"产业发展","配套基础设施项目","小型农田水利设施建设","荣家湾街道","东方村","东方村综合养殖场泥家湖渔场片东小港清淤项目","改建","东方村泥家湖渔场","2026.3.10","2026.4.10",null,"综合养殖场泥家湖渔场片东小港清淤项目全长486米，3米宽，1.8米深淤泥清运",5.6,4,1.6,1,20,85,null,2,6,"综合养殖场东小港泥家湖渔场片清淤项目全长486米，3米宽,1.8米深淤泥清运，解决渔塘排渍困难，受益养殖面积60亩，预计亩增产100斤；受益村民20户，85人，脱贫户2户，6人","解决渔塘、菜地排渍困难，"]
[293,"乡村建设行动","农村基础设施","农村道路建设\n（通村、通户路）","荣家湾街道","公诚村","公诚村屈肇春至金星机埠公路扩宽改造","改建","公诚村金星片","2026-04-01","2026-05-30","公诚村","公诚村屈肇春至金星机埠公路扩宽改造，路长2公里，拓宽1.5米，硬化0.2米。",35,10,25,1,214,800,null,6,24,"解决群众出行安全问题，加快农资流通速度，增加群众收入；受益群众214户800人，其中脱贫户6户24人。","解决群众出行安全问题，加快农资流通速度，增加群众收入。"]
[294,"乡村建设行动","农村基础设施","农村道路建设\n（通村、通户路）","荣家湾街道","公诚村","公诚村三义片林场至至杨五庙公路扩宽改造","改建","公诚村三义片","2026-04-01","2026-05-30","公诚村","公诚村三义片林场至至杨五庙公路扩宽改造，路长2.2公里，拓宽1.5米，硬化0.2米。",40,10,30,1,195,700,null,6,18,"解决群众出行安全问题，加快农资流通速度，增加群众收入；受益群众195户700人，其中脱贫户6户18人。","解决群众出行安全问题，加快农资流通速度，增加群众收入。"]
[295,"乡村建设行动","农村基础设施","农村道路建设\n（通村、通户路）","荣家湾街道","六合垸村","六合垸村六合片同心水库道路建设","改建","六合垸村","2026-11-01","2026-12-01","六合垸村","六合片同心水库道路建设长260米，宽3米。",8,2,6,1,110,326,null,29,72,"六合垸村六合片同心水库道路建设长260米，宽3米；改善群众出行条件，加快农资流通速度，改善群众出行条件，方便农机入场作业，改善350亩水田耕种条件，增加群众收入；受益群众110户326人，其中脱贫户29户72人。","改善群众出行条件，方便农机入场作业，改善350亩水田耕种条件。"]
[296,"产业发展","配套基础设施项目","小型农田水利设施建设","荣家湾街道","六合垸村","六合垸村沿河片撇洪渠清淤扫障","改建","六合垸村","2026-11-01","2026-12-01","六合垸村","六合垸村沿河片撇洪渠清淤扫障全长1.1公里，面宽0.9米，底宽1.3米。",6,2,4,1,260,1040,null,22,64,"沿河片撇洪渠清淤扫障全长1.1公里，面宽0.9米，底宽1.3米；切实解决村民排灌生产条件，受益水田面积2400亩，预计亩增产50斤；受益群众260户1040人，其中脱贫户22户64人。","群众水稻种植受益，改善2400亩水田灌溉条件。"]
[297,"产业发展","配套基础设施项目","小型农田水利设施建设","荣家湾街道","鹿角村","鹿角村济美片十四组水塘清淤维修","改建","鹿角村济美片","2026-01-01","2026-12-31","鹿角村","济美片十四组水塘面积约5亩，取淤1米深，塘堤维修、闸口新建。",10,7,3,1,35,130,null,4,16,"受益灌溉水田面积30亩，预计亩增产100斤；受益群众35户130人，其中脱贫户及监测对象4户16人。","群众水稻种植受益，预计亩增产100斤。"]
[298,"产业发展","配套基础设施项目","小型农田水利设施建设","荣家湾街道","鹿角村","鹿角村杨茂片三组水塘清淤维修","改建","鹿角村杨茂片","2026-11-01","2026-11-30","鹿角村","杨茂片三组水塘面积约6亩，清淤1米深，塘堤维修、闸口新建",10,6,4,1,28,119,null,3,10,"受益灌溉水田面积30亩，预计亩增产100斤；受益群众28户119人，其中脱贫户及监测对象3户10人。","群众水稻种植受益，预计亩增产100斤。"]
[299,"乡村建设行动","农村基础设施","农村道路建设\n（通村、通户路）","荣家湾街道","鹿角村","鹿角村鹿角片五组、十组机耕路、断头路维修硬化","改建","鹿角村鹿角片","2026-11-01","2026-11-30","鹿角村","鹿角片五组、十组机耕路、断头路长度300米，清理路基拓宽至3米宽，混泥土硬化20CM厚。",15,10,5,1,25,95,null,3,10,"解决群众出行安全问题，加快农资流通速度，增加群众收入；受益群众25户95人，其中脱贫户3户10人。","解决群众出行安全问题，加快农资流通速度，增加群众收入。"]
[300,"产业发展","配套基础设施项目","小型农田水利设施建设","荣家湾街道","牛皋村","牛皋村建新片一组山塘清淤","改建","牛皋村建新片一组","2026-01-05","2026-02-13","牛皋村","牛皋片一组山塘清淤面积8亩，清淤深度0.5米，土方转运。",15,5,10,1,60,230,1,11,31,"建新片一组山塘清淤面积8亩，清淤深度0.5米，土方转运。解决了下游120亩农田灌溉用水，预计亩增产100斤；受益农户60户，人口230人，其中脱贫户（含监测户）11户，人口31人","群众参与从事渠道清淤工作；降低农户灌溉成本；提升农户种粮收益"]
[301,"产业发展","配套基础设施项目","小型农田水利设施建设","荣家湾街道","牛皋村","牛皋村寿桥一至四组抗旱水渠延伸工程","改建","牛皋村寿桥片","2026-03-01","2026-05-28","牛皋村","寿桥片一至四组维修老旧渠道380米，铺管道30#，沉井4个。",10,5,5,1,120,380,1,5,10,"寿桥片一至四组抗旱水渠延伸工程修建维护老旧沟渠380米，铺设管道30#，沉井4个，解决一至四组水稻种植灌溉问题，受益种植面积500余亩，预计亩增产100斤。","群众参与从事渠道清淤，土方开挖，物料搬运等工作；降低农户灌溉成本；提升农户种粮收益"]
[302,"乡村建设行动","农村基础设施","农村道路建设\n（通村、通户路）","荣家湾街道","牛皋村","牛皋村建新片与牛皋片连接路","新建","牛皋村建新片牛皋片","2026-03-01","2026-05-28","牛皋村","两片连接路硬化长350米、宽3.5米、厚0.2米。",17,10,7,1,828,2827,1,30,91,"改善群众出行条件，方便农作物运输，增加群众收入，提升群众幸福感和获得感。","群众参与投工投劳增加收入，方便农作物运输，提高劳动效益。"]
[303,"产业发展","生产项目","种植业基地","荣家湾街道","荣鹿新村","荣鹿新村中维农业黄精种植基地","新建","荣鹿新村葵花片","2026-01-01","2026-12-31","荣鹿新村","荣鹿新村50万元现金入股中维农业荣鹿新村黄精种植基地，基地位于葵花片，共种植200亩，村集体现金入股，每年固定分红，增加村集体收入。",220,50,170,1,214,800,null,8,28,"荣鹿新村50万元现金入股中维农业荣鹿新村黄精种植基地，基地位于葵花片，共种植200亩，村集体现金入股，每年固定分红，增加村集体收入。土地流转增加群众收入，基地用工聘用周边群众增加收入，受益群众214户800人，其中脱贫户8户28人。","土地流转增加群众收入，基地用工聘用周边群众增加收入，带动生产发展特色产业。"]
[304,"产业发展","配套基础设施项目","小型农田水利设施建设","荣家湾街道","荣鹿新村","荣鹿新村葵花片六组大塘清淤维修","改建","荣鹿新村葵花片","2026-11-01","2026-11-30","荣鹿新村","荣鹿新村葵花片六组大塘清淤维修，大塘面积10亩，取淤1米，塘堤加固护砌，涵管埋设。",10,5,5,1,96,385,null,4,13,"荣鹿新村葵花片六组大塘清淤维修，大塘面积10亩，取淤1米，塘堤加固护砌，涵管埋设。受益灌溉水田面积120亩，预计亩增产100斤。受益群众96户385人，其中脱贫户4户13人。","群众水稻种植受益，预计亩增产100斤。"]
[305,"产业发展","配套基础设施项目","小型农田水利设施建设","荣家湾街道","荣湾湖村","荣湾湖村大成机埠至邹德屋新建灌溉渠道","新建","荣湾湖村","2026-03-01","2026-04-30","荣湾湖村","大成机埠至邹德屋新建灌溉水渠，长1.2公里，底宽0.5米，面宽0.8米，高0.6米，水泥护砌。",30,10,20,1,95,340,null,8,34,"解决大成片邹德屋150亩水田灌溉问题，预计亩增产100斤； 受益群众95户340人。","群众水稻种植受益，解决灌溉问题，亩增产100斤。"]
[306,"乡村建设行动","农村基础设施","农村道路建设\n（通村、通户路）","荣家湾街道","文发村","文发村青莲片后背冲机耕路硬化建设","新建","文发村青莲片","2026.9.1","2026.11.1","文发村","青莲片后背冲机耕路硬化长550米，宽3米，硬化厚度0.2米，建设完成后方便农机与农资进出，受益水田面积210亩。",18,10,8,1,214,860,null,8,28,"青莲片后背冲机耕路硬化长550米，宽3米，硬化厚度0.2米，建设完成后方便农机与农资进出，受益水田面积210亩","方便农机与农资进出，加快农资流通速度，增加群众收入。"]
[307,"产业发展","配套基础设施项目","小型农田水利设施建设","荣家湾街道","文发村","文发村文发片葛树塘清淤护坡及抗旱电路架设","新建","文发村文发片","2026-11-01","2026-11-30","文发村","清淤约2500立方米四周塘堤加固，并架设300米抗旱电路线设施。",8,5,3,1,96,385,null,4,13,"清淤约2500立方米四周塘堤加固，并架设300米抗旱电路线设施，受益水田面积50亩，预计亩增产100斤。受益群众96户385人，其中脱贫户4户13人。","群众水稻种植受益，受益面积50亩，预计亩增产100斤。"]
[308,"乡村建设行动","农村基础设施","农村道路建设\n（通村、通户路）","荣家湾街道","欣荣村","欣荣村白马水库水产养殖道路","改建","先锋片十一组","2026-04-01","2026-05-30","欣荣村","白马水库水产养殖道路硬化，路长300米，4米宽，20公分厚道路硬化。",25,10,15,1,75,301,null,3,10,"解决群众出行安全问题，加快农资流通速度，增加群众收入；受益群众220户700人，其中脱贫户3户10人。","解决群众出行安全问题，加快农资流通速度，增加群众收入。"]
[309,"乡村建设行动","农村基础设施","农村道路建设\n（通村、通户路）","荣家湾街道","欣荣村","欣荣村中信片胡铭屋下底冲机耕路硬化","改建","中信片十至十三组","2026-04-01","2026-05-30","欣荣村","中信片胡铭屋下底冲机耕路硬化，路长300米，3米宽，20公分厚。",7,5,2,1,220,700,null,2,6,"解决群众出行安全问题，加快农资流通速度，增加群众收入；受益群众220户700人，其中脱贫户2户6人。","解决群众出行安全问题，加快农资流通速度，增加群众收入。"]
[310,"乡村建设行动","农村基础设施","农村道路建设\n（通村、通户路）","荣家湾街道","欣荣村","欣荣村东庄片里家山机耕路硬化","改建","东庄片杰四欧","2026-04-01","2026-05-30","欣荣村","东庄片里家山机耕路硬化，路长240米，宽4米，硬化厚度20公分。",7.5,5,2.5,1,51,207,null,3,10,"解决群众出行安全问题，加快农资流通速度，增加群众收入；受益群众51户207人，其中脱贫户3户10人。","解决群众出行安全问题，加快农资流通速度，增加群众收入。"]
[311,"乡村建设行动","农村基础设施","农村道路建设\n（通村、通户路）","荣家湾街道","欣荣村","欣荣村东庄片九组十一组道路硬化","改建","东庄片九组十一组","2026-04-01","2026-05-30","欣荣村","东庄片九组、十一组通组道路硬化，路长230米，宽3.5米，硬化厚度20公分。",7,5,2,1,62,238,null,4,14,"解决群众出行安全问题，加快农资流通速度，增加群众收入；受益群众62户238人，其中脱贫户4户14人。","解决群众出行安全问题，加快农资流通速度，增加群众收入。"]
[312,"产业发展","配套基础设施项目","小型农田水利设施建设","荣家湾街道","兴园村","兴园村跃进片八、九、十组灌溉渠道维修","改建","兴园村跃进","2026-11-01","2026-11-30","兴园村","兴园村跃进片八、九、十组灌溉渠道U型槽拆除，长200米，宽0.5米，砖混结构重筑；",8,5,3,1,96,400,1,3,9,"解决60亩水田灌溉条件，预计亩增产100斤；受益群众96户400人，其中脱贫户3户9人。","解决60亩水田灌溉条件，预计亩增产100斤。"]
[313,"乡村建设行动","农村基础设施","农村道路建设\n（通村、通户路）","荣家湾街道","兴园村","兴园村兰塘片道路拓宽","改建","兴园村兰塘片","2026-10-01","2026-10-30","兴园村","兴园村兰塘片2、3、4、9组1000米通组道路拓宽改造",20,5,15,1,121,500,1,3,8,"解决群众出行安全问题，加快农资流通速度，增加群众收入；受益群众121户500人，其中脱贫户3户8人。","解决群众出行安全问题，加快农资流通速度，增加群众收入。"]
[314,"产业发展","配套基础设施项目","小型农田水利设施建设","荣家湾街道","友爱村","友爱村五龙水库堤岸护砌","改建","友爱村群力片","2026-03-01","2026-04-30","友爱村","群力片隋家湾五龙水库堤岸护砌，护砌长度80米，高3米。",10,5,5,1,180,700,null,7,21,"受益灌溉水田面积200亩，预计亩增产100斤；受益群众180户700人，其中脱贫户及监测对象7户21人。","群众水稻种植受益，预计亩增产100斤。"]
[315,"乡村建设行动","农村基础设施","农村道路建设\n（通村、通户路）","荣家湾街道","友爱村","友爱村周受二老屋门前路硬化","改建","友爱村周谢片","2026-03-01","2026-04-30","友爱村","友爱村周谢片周受二老屋门前路硬化，路长300米，宽3米，硬化15公分。",8,5,3,1,78,300,null,4,10,"解决群众出行安全问题，加快农资流通速度，增加群众收入；受益群众78户300人，其中脱贫户4户10人。","解决群众出行安全问题，加快农资流通速度，增加群众收入。"]
[316,"产业发展","生产项目","种植业基地","荣家湾街道","岳武村","岳武村金盆柚基地（三期）","续建","岳武村","2026-01-01","2026-12-31","岳武村","岳武村金盆柚种植基地续建，村集体流转120亩林地进行金盆柚种植后，树苗补苗、施肥、除草、打药以及浇灌等后期管理。",20,15,5,1,100,405,1,28,76,"岳武村金盆柚种植基地续建，村集体流转120亩林地进行金盆柚种植后，树苗补苗、施肥、除草、打药以及浇灌等后期管理。受益群众100户405人，其中脱贫户28户76人。预计挂果后每年增加村集体经济收入20万。","带动群众发展特色种植业，吸纳群众务工务劳。"]
[317,"乡村建设行动","农村基础设施","产业路、资源路、旅游路建设","荣家湾街道","岳武村","岳武村金盆柚基地产业路","改建","岳武村","2026-03-01","2026-05-30","岳武村","岳武村滨湖片金盆柚基地至共同片2.2公里产业路提质改造，包括部分路面拓宽，板块维修，白改黑工程。",40,20,20,1,402,1580,1,38,126,"根据岳武村产业发展布局，打通金盆柚种植农资运输梗阻，有效解决3000亩金盆柚成果及生产物资运输困难问题，改善群众出行条件，加快农资流通速度，增加群众收入。","通行条件改善带动特色产业发展，群众投工投劳增加收入。"]
[318,"产业发展","生产项目","种植业基地","荣家湾街道","友爱村","友爱村金盆柚基地","新建","友爱村友爱片","2026-01-01","2026-12-31","友爱村","友爱村友爱片隋受九流转150亩土地进行金盆柚种植，村集体入股20万元进行入股，产出后每年固定分红，增加村集体经济收入。",150,20,130,1,135,504,null,5,16,"友爱村友爱片隋受九流转150亩土地进行金盆柚种植，村集体入股20万元进行入股，产出后每年固定分红，增加村集体经济收入；吸纳周边群众及脱贫户进行务工务劳增加收入，受益群众135户504人，其中脱贫户5户16人。","带动群众发展特色种植业，吸纳群众务工务劳增加收入。"]
[319,"产业发展","生产项目","养殖业基地","荣家湾街道","六合垸村","六合垸村王鸽养殖基地","新建","兰塘片","2026-01-01","2026-12-31","六合垸村","总投资100万元，村集体入股30万元。建设内容包括鸽舍改造，5000对种鸽引进，饲料购买及其他配套设施建设，由毛七零负责生产经营，村委会监督管理，受益按投资比例进行分红，以增加村集体经济收入。",100,30,70,1,46,176,null,3,12,"总投资100万元，村集体入股30万元，建设内容包括鸽舍改造，5000对种鸽引进，饲料购买及其他配套设施建设，由毛七零负责生产经营，村委会监督管理，受益按投资比例进行分红，以增加村集体经济收入。吸纳周边群众务工务劳，增加收入。受益群众46户176户，其中脱贫户3户12人。","带动群众发展特色养殖业，吸纳群众务工务劳增加收入。"]
[320,"乡村建设行动","农村基础设施","农村道路建设\n（通村、通户路）","月田镇","铁山湖村","道路维修","新建","刘氏庙至曾屋组","2026年","2026年","铁山湖村村民委员会","拓宽长2700米，宽2米，硬化宽1.5米",76,30,46,1,106,466,null,5,16,"便于村民出行","群众积极参与获得工资"]
[321,"产业发展","配套基础设施项目","小型农田水利设施建设","月田镇","黄岸村","山塘维修","修缮","伏马片高雅片","2026年","2026年","黄岸村村民委员会","清淤、护砌、低涵改造",10,null,null,1,17,68,1,6,19,"解决农田灌溉","群众积极参与获得工资"]
[322,"乡村建设行动","农村基础设施","农村供水保障设施建设","月田镇","黄岸村","安全饮水","新建","伏马片高雅片","2026年","2026年","黄岸村村民委员会","打井、管道、蓄水池",18,null,null,1,34,137,1,8,25,"解决村民安全饮水","群众积极参与获得工资"]
[323,"产业发展","生产项目","种植业基地","月田镇","黄岸村","黄茶基地管护","后续管护","黄岸村","2026年","2026年","黄岸村村民委员会","锄草、施肥、浇水、补苗",5,null,null,1,96,320,1,40,122,"提高村集体经济收入","群众积极参与获得工资"]
[324,"乡村建设行动","农村基础设施","农村道路建设\n（通村、通户路）","月田镇","稻田村","道路维修","新建","稻田村4公里主干道路硬化维修","2026年","2026年","稻田村村民委员会","4公里",100,100," ",1,300,2100,null,10,30,"便于村民出行","便于村民出行"]
[325,"产业发展","生产项目","种植业基地","月田镇","稻田村","大棚蔬菜","新建","稻田村稻田片","2026年","2026年","稻田村村民委员会","大棚蔬菜10亩",100,100,null,1,200,2800,null,20,54,"提高村集体经济收益","提高村集体经济收益"]
[326,"产业发展","生产项目","种植业基地","月田镇","稻田村","黄茶管护","续建","稻田村赵洞片","2026年","2026年","稻田村村民委员会","200亩",30,30,null,1,150,2100,null,24,65,"提高村集体经济收益","提高村集体经济收益"]
[327,"产业发展","生产项目","产地初加工和精深加工","月田镇","稻田村","纸棺厂扩建","续建","稻田村国庆片","2026年","2026年","稻田村村民委员会","600㎡",10,10,null,1,100,1850,null,10,35,"提高村集体经济收益","提高村集体经济收益"]
[328,"产业发展","配套基础设施项目","小型农田水利设施建设","月田镇","相思山村","榨树组水渠修建护砌","水渠修建护砌","相思山村王段片","2026.9","2026.10","相思山村","水渠修建护砌400米",9.5,null,null,1,15,60,1,5,18,"解决农田灌溉","群众积极参与获得工资"]
[329,"乡村建设行动","农村基础设施","农村道路建设\n（通村、通户路）","月田镇","相思山村","毛冲组公路加宽硬化","公路加宽硬化","相思山村王段片","2026.5","2026.10","相思山村","公路加宽硬化500米",28,null,null,1,20,80,1,6,20,"便于村民出行","群众积极参与获得工资"]
[330,"乡村建设行动","农村基础设施","农村道路建设\n（通村、通户路）","月田镇","茨洞村","新庄片河潭组公路拓宽硬化","新建","新庄片","2026年","2026年","茨洞村","路面拓宽1.5米，长800米",15,10,5,1,52,263,1,10,33,"群众积极参与，新庄片所有群众及脱贫户及监测户安全出行","带动监测户、脱贫户和低收入家庭农业生产及产品流通，增强出行安全"]
[331,"产业发展","生产项目","光伏电站建设","月田镇","茨洞村","分布式光伏电站","新建","村部屋顶","2026年","2026年","茨洞村","50千瓦",20,15,5,1,1206,4015,1,99,286,"预计每年产生收益3万元，增加村集体经济收入，带动低收入家工增加收入","增加村集体经济收入，带动监测户、脱贫户和低收入家庭收入"]
[332,"产业发展","生产项目","光伏电站建设","月田镇","大界村","大界村村部新建光伏发电","承包","大界村村部",2026.6,2026.8,"大界村","新建光伏发电150kw",10,10,null,1,1053,3489,1,58,189,"增加村级集体经济收入","增加村集体经济收入，带动监测户、脱贫户和低收入家庭收入"]
[333,"乡村建设行动","农村基础设施","农村道路建设\n（通村、通户路）","月田镇","大界村","大界村长林组道路维修","承包","半洞片长林组道路维修",2026.8,2026.11,"大界村","长50米，高10米路墈护砌",60,60,null,1,203,866,1,11,39,"解决村民出行安全","群众积极参与获得工资"]
[334,"产业发展","生产项目","光伏电站建设","月田镇","月田村","光伏发电","新建","月田村村部",2026.5,2026.6,"月田村","建设分布式光伏发电100KW",22,22,0,1,2,8,1,1,1,"增加村集体经济收入","发展村集体经济"]
[335,"乡村建设行动","农村基础设施","农村道路建设\n（通村、通户路）","月田镇","月田村","山塘水渠机耕道路建设","新建","月田村村部",2026.9,"2026.10","月田村","山塘水渠机耕道路建设",10,10,0,1,20,80,1,5,20,"完善农田水利基础设施","促进农户增产增收"]
[336,"乡村建设行动","农村基础设施","农村道路建设\n（通村、通户路）","月田镇","月东村","道路维修","新建","甘溪片通山公路","2026年","2026年","月东村村委会","长1000米，宽3.5米",8,null,null,1,92,276,null,5,12,"便于村民出行","群众积极参与获得工资"]
[337,"产业发展","生产项目","光伏电站建设","月田镇","月东村","村部光伏发电续建","续建","月东村村委会","2026年","2026年","月东村村委会","光伏发电续建",20,null,null,1,501,1749,null,46,152,"提高村集体经济收益","群众积极参与获得劳动就业"]
[338,"产业发展","生产项目","光伏电站建设","月田镇","立新村","立新村村部新建光伏发电","承包","立新村村部",2026.6,2026.8,"立新村","新建光伏发电130kw",32,32,null,1,981,3679,1,85,316,"增加村级集体经济收入","增加本村劳动就业就会"]
[339,"产业发展","生产项目","种植业基地","月田镇","立新村","油茶基地后续管护","承包","立新村邓谷片油茶基地",2026.9,"2026.10","立新村邓谷片","94亩油茶基地除草、施肥10吨",8,8,null,1,981,3679,1,85,316,"增加村级集体经济收入","增加本村劳动就业就会"]
[340,"乡村建设行动","农村基础设施","农村道路建设\n（通村、通户路）","月田镇","白竹村","马麦线拓宽硬化","新建","马家片","2026年","2026年","白竹村村民委员会","全长1.7公里，拓宽2米，护砌200平方米，土方回填500平方米",60,null,null,1,385,1139,1,4,17,"便于村民出行","群众积极参与获得工资"]
[341,"乡村建设行动","农村基础设施","农村道路建设\n（通村、通户路）","月田镇","白竹村","茂田片公路拓宽硬化","新建"," 茂田片","2026年","2026年","白竹村村民委员会","全长2公里，拓宽硬化。护砌300平方米，土方回填1000平方米",80,null,null,1,295,685,1,19,59,"提高村集体经济收益","群众积极参与获得劳动就业"]
[342,"乡村建设行动","农村基础设施","农村道路建设\n（通村、通户路）","月田镇","红光村","道路维修","新建","红光片","2026年","2026年","红光村村民委员会","20亩",15,null,null,1,22,84,1,22,"脱贫户84人监测户8人","增加村集体经济，为脱贫监测户带来劳动力","群众积极参与获得工资"]
[343,"产业发展","生产项目","种植业基地","月田镇","红光村","中药材种植","新建","村部前至向公坳","2026年","2026年","红光村村民委员会","1.3公里",60,null,null,1,15,48,1,15,"脱贫户48人监测户8人","村民安全出行，带动经济壮大","群众积极参与获得劳动就业"]
[344,"产业发展","生产项目","光伏电站建设","月田镇","红光村","光伏发电","新建","韩段片村部屋顶","2026年","2026年","红光村村民委员会","100个千瓦",30,null,null,1,2,8,1,2,"监测户8人","增加村集体经济","群众积极参与获得劳动就业"]
[345,"乡村建设行动","农村基础设施","农村道路建设\n（通村、通户路）","月田镇","改港村","道路维修","新建","谢家片公路维修","2026年","2026年","改港村村民委员会","长1500米，宽3.5米",20,20,null,1,110,510,null,9,21,"便于村民出行","群众积极参与获得工资"]
[346,"产业发展","生产项目","种植业基地","月田镇","改港村","中药材种植","续建","改港村谢家片","2026年","2026年","改港村村民委员会","中药材种植25亩【茯苓，天冬，生姜】",30,30,null,1,720,3286,null,56,143,"提高村集体经济收益","群众积极参与获得劳动就业"]
[347,"产业发展","生产项目","种植业基地","月田镇","花苗村","金盆柚基地种植","新建","大坪片九嘴林场","2026年","2026年","花苗村村委会","金盆柚种植60亩",60,20,40,1,40,176,1,10,46,"巩固脱贫攻坚成果，增加村集体经济收入，带动低收入群体增产增收","群众积极参与自愿筹资筹劳"]
[348,"乡村建设行动","农村基础设施","农村道路建设\n（通村、通户路）","月田镇","花苗村","花白主干道路提质改造","续建","白石片","2026年","2026年","花苗村委会","主干道路长5000米，宽5米提质改造",120,60,60,1,120,580,1,12,52,"巩固脱贫攻坚成果，增加村集体经济收入，带动低收入群体增产增收","群众积极参与自愿筹资筹劳"]
[349,"产业发展","生产项目","种植业基地","月田镇","花苗村","白石茶园扩建","续建","白石片皇帽组","2026年","2026年","花苗村委会","茶园扩建15亩",20,10,10,1,52,215,1,5,21,"巩固脱贫攻坚成果，增加村集体经济收入，带动低收入群体增产增收","群众积极参与自愿筹资筹劳"]
[350,"乡村建设行动","农村公共服务","其他","月田镇","江堧村","晒谷坪新建","新建","江先组",2026.03,"2026.10","江堧村","3000平硬化",70,70,0,1,550,1900,1,45,150,"晒农作物，为群众提供休闲场所:方便群众停车","晒农作物，为群众提供休闲场所:方便群众停车"]
[351,"产业发展","生产项目","种植业基地","月田镇","江堧村","黄茶管理培育","续建","李家组","2026.03","2026.11","江堧村","200亩茶园基础设施及管理培育",20,20,0,1,46,228,1,6,14,"增加村集体经济收入，带动监测脱贫人员务工增加收入","增加村集体经济收入，带动监测脱贫人员务工增加收入"]
[352,"就业项目","务工补助","生产奖补、务工奖补","月田镇","月田镇","产业奖补","续建","月田镇","2026.03","2026.11","月田镇","给全镇“两有人员”开展产业奖补和产业帮扶",60,60,0,14,865,2694,10,126,355,"提升“两有人员”产业发展能力，增加收入，巩固脱贫成果，推动产业可持续发展。","提升“两有人员”产业发展能力，增加收入，巩固脱贫成果，推动产业可持续发展。"]
[353,"乡村建设行动","农村基础设施","农村供水保障设施建设","月田镇","月田镇","月田镇安全饮水建设","新建","月田镇","2026.1","2026.12","月田镇","在月田镇范围内开展饮水设施建设，提高水质水量，解决季节性缺水问题。",100,100,0,14,1010,3324,10,126,355,"为保障水质达标、水量充足，提升用水方便程度，确保供水保证率不低于95%，全面满足辖区居民的安全饮水需求。","为保障水质达标、水量充足，提升用水方便程度，确保供水保证率不低于95%，全面满足辖区居民的安全饮水需求。"]
[354,"乡村建设行动","农村公共服务","其他","月田镇","月田镇","易地搬迁点基础设施维护","续建","月田镇",2026.03,"2026.10","月田镇","对月田镇易地搬迁安置点现有资产进行维护、提质改造",100,100,0,7,378,1288,7,16,35,"保障安置住房（渗水、瓦片脱落等）及公共设施（消防、排污、供水排水、充电设施等）正常运行，维修维护达到质量标准，提质改造，满足搬迁居民基本生活需求，提升居住安全性与便利性。","保障安置住房（渗水、瓦片脱落等）及公共设施（消防、排污、供水排水、充电设施等）正常运行，维修维护达到质量标准，满足搬迁居民基本生活需求，提升居住安全性与便利性。"]
[355,"产业发展","生产项目","种植业基地","筻口镇","潼溪村","潼溪村金盆柚基地种植项目","扩建","中心片",2026.1,2026.12,"潼溪村委会","对2024年潼溪村金盆柚基地种植项目扩建15亩，并进行补苗、施肥、锄草等管护",16.8,15,1.8,1,131,456,null,12,21,"项目总受益131户456人数，其中带动脱贫户12户21人受益，预期带动脱贫（监测）人口增收300元/人。","巩固拓展脱贫攻坚成果和乡村振兴有效衔接,保障脱贫户、监测户稳定增收。"]
[356,"乡村建设行动","农村基础设施","农村道路建设\n（通村、通户路）","筻口镇","潼溪村","潼溪村中心片道路拓宽硬化","新建","中心片",2026.1,2026.12,"潼溪村委会","土方开挖、路面平整，碎石垫层，C30砼硬化，切缝",40,30,10,1,137,471,null,9,18,"项目总受益137户471人数，其中带动脱贫户9户18人受益，预期每年/每人/每户增收200元","巩固拓展脱贫攻坚成果和乡村振兴有效衔接,保障脱贫户、监测户稳定增收。"]
[357,"产业发展","配套基础设施项目","小型农田水利设施建设","筻口镇","笔架山村","坟坡塘维修","维修","笔架山村三联片",2026.9,2026.11,"笔架山村","外坡扫障、清杂、拖土加固护坡、塘坝加高混凝土护坡，底涵改造，清淤塘泥增加库容蓄水",8.6,6,2.6,1,43,168,1,4,10,"解决三联片咀上组、元寥组村民农田灌溉","巩固拓展脱贫攻坚成果和乡村振兴有效衔接,保障脱贫户、监测户稳定增收。"]
[358,"产业发展","配套基础设施项目","小型农田水利设施建设","筻口镇","朱仑村","朱仑村优质稻基地配套水利建设(2026)","新建","朱仑片","2026.1.1","2026.12.30","朱仑村","朱仑片新增机埠一个，管道输送1550米",15,10,5,1,90,288,0,4,8,"建成后有效改善朱仑村农田的灌溉问题","巩固拓展脱贫攻坚成果和乡村振兴有效衔接,保障脱贫户、监测户稳定增收。"]
[359,"产业发展","配套基础设施项目","小型农田水利设施建设","筻口镇","大塘村","大塘村优质稻基地配套水利建设（2026）","维修","锹塘片、刘桂片","2026.1.15","2026.12.30","大塘村","锹塘片一组乌古塘、刘桂片黄泥塘进行堤坝清杂，加固，低涵改造，内坡护砌，塘内清淤处理",13,10,3,1,78,226,1,12,35,"建成后有效改善锹塘片一,六,十三组，刘桂片三,四,五,七组村民农田的灌溉问题，为78户农户，226人（脱贫户、监测户12户35人）增加100元每人的收入","巩固拓展脱贫攻坚成果和乡村振兴有效衔接,保障脱贫户、监测户稳定增收。"]
[360,"产业发展","配套基础设施项目","小型农田水利设施建设","筻口镇","大塘村","和平片水渠修建","新建","和平片","2026.1.1","2026.3.25","大塘村","对和平片原U形渠用挖机拆除，并清运，然后用C25标准混凝土重新浇筑成河口宽0.6米，底宽0.4米，高0.5米，厚0.1米的渠道，全长600米",10.8,5,5.8,1,126,446,1,12,22,"和平片水渠修建长600米，用混凝土浇筑成宽0.6米，底宽0.4米，高0.5米，厚0.1米的渠道，有效改善和平片1.2.3.4.5组村民的农田灌溉问题，为126户，446人（其中脱贫户、监测户12户22人）增加150元每人的经济收入","巩固拓展脱贫攻坚成果和乡村振兴有效衔接,保障脱贫户、监测户稳定增收。"]
[361,"产业发展","配套基础设施项目","小型农田水利设施建设","筻口镇","熊市村","熊市村界岭片优质稻基地配套水利建设","新建","界岭片一、二、三、四组",2026.2,2026.12,"熊市村","界岭片一组王家拢灌溉渠道长450米、宽50公分、高40公分进行护砌，二组兰家塘渠道全长400米宽50公分、高40公分进行护砌，三组双塘面积10余亩进行清淤、护砌，四组长塘6亩进行清淤、护砌，四组门口塘2亩进行清淤、护砌。",37,20,17,1,123,447,1,12,46,"为界岭片一、二、三、四组农田灌溉提供便利。受益农户123户447人，其中脱贫户12户46人。","巩固拓展脱贫攻坚成果和乡村振兴有效衔接,保障脱贫户、监测户稳定增收。"]
[362,"产业发展","配套基础设施项目","小型农田水利设施建设","筻口镇","明星村","明星片优质稻基地配套水利建设","新建","明星片十一组","2026.1",2026.12,"明星村","明星片十一组砂糖清淤护砌",20,18,2,1,36,126,1,17,49,"解决明星片十一组36户126人120多亩水田灌溉条件","巩固拓展脱贫攻坚成果和乡村振兴有效衔接,保障脱贫户、监测户稳定增收。"]
[363,"产业发展","配套基础设施项目","小型农田水利设施建设","筻口镇","西冲村","燎原片优质稻基地配套水利建设(2025)","新建","西冲村燎原片甘家庄齐家塘与燎原片后头屋上堰塘","2026.3.17","2026.4.9","西冲村","西冲村燎原片甘家庄齐家塘与燎原片后头屋上堰塘清淤扫障、低涵拆除重建扩容、塘提加固护坡硬化（7亩）",18,15,3,1,85,483,1,2,7,"解决了西冲村燎原片483人农田灌溉条件增加农户收入","巩固拓展脱贫攻坚成果和乡村振兴有效衔接,保障脱贫户、监测户稳定增收。"]
[364,"乡村建设行动","农村基础设施","农村道路建设\n（通村、通户路）","筻口镇","西冲村","西冲村西冲片小古叽道路硬化建设","新建","西冲村西冲片小古叽道路",2026.1,2026.12,"西冲村","西冲村西冲片小古叽道路硬化长600米拓宽2.5米",18,15,3,1,43,237,1,1,15,"解决了西冲村西冲片237人农机进出条件增加农户收入","巩固拓展脱贫攻坚成果和乡村振兴有效衔接,保障脱贫户、监测户稳定增收。"]
[365,"乡村建设行动","农村基础设施","农村道路建设\n（通村、通户路）","筻口镇","移山村","移山村花坪片产业路硬化","新建","花坪片","2026.4.8","2026.12.8","移山村\n村委会","花坪片四组艾叶基地产业路硬化",38,30,8,1,10,56,1,3,7,"解决了移山村花坪片村民出行安全,增加脱贫户与监测户收入","巩固拓展脱贫攻坚成果和乡村振兴有效衔接,保障脱贫户、监测户稳定增收。"]
[366,"产业发展","生产项目","种植业基地","筻口镇","三港咀村","三港咀村李何片土地平整","种植","三港咀村","2026.3.20","2026.4.20","三港咀村","李何片30亩土地平整",6.3,4,2.3,1,56,173,1,4,5,"解决三港咀村李何片173人农田种植条件","巩固拓展脱贫攻坚成果和乡村振兴有效衔接,保障脱贫户、监测户稳定增收。"]
[367,"产业发展","配套基础设施项目","小型农田水利设施建设","筻口镇","漆市村","漆市村东游片1-3组向家湾水渠硬化项目","新建","漆市村东游片",2026.11,2026.12,"漆市村","对东游片1-3组410米长、底宽0.6米、面宽0.8米水渠进行维修及硬化",9.84,8,1.84,1,86,346,1,5,12,"解决了漆市村东游片1-3组346人农田基础设施及灌溉条件","巩固拓展脱贫攻坚成果和乡村振兴有效衔接,保障脱贫户、监测户稳定增收。"]
[368,"产业发展","配套基础设施项目","小型农田水利设施建设","筻口镇","漆市村","漆市村南源片8、9组张福山水渠硬化项目","新建","漆市村南源片",2026.11,2026.12,"漆市村","对南源片8、9组205米长、底宽0.4米、面宽0.6米水渠进行维修及硬化",3.69,3,0.69,1,48,185,1,2,5,"解决了漆市村南源片8、9组185人农田基础设施及灌溉条件","巩固拓展脱贫攻坚成果和乡村振兴有效衔接,保障脱贫户、监测户稳定增收。"]
[369,"产业发展","配套基础设施项目","小型农田水利设施建设","筻口镇","老街居委会","老街片优质稻基地建设2026","新建","老街片","2026.1.2","2026.4.5","老街居委会","筻三线水渠新建，长400米宽1.2米高0.8米",15.6,8,7.6,1,164,576,1,9,28,"解决居民的农田灌溉难问题","巩固拓展脱贫攻坚成果和乡村振兴有效衔接,保障脱贫户、监测户稳定增收。"]
[370,"产业发展","配套基础设施项目","小型农田水利设施建设","筻口镇","释迦寺","刘本片优质稻基地配套水利建设","新建","刘本片七组","2026.1",2026.12,"释迦寺村","刘本片组砂糖清淤护砌",20,18,2,1,36,126,1,17,49,"解决刘本七组36户126人120多亩水田灌溉条件","巩固拓展脱贫攻坚成果和乡村振兴有效衔接,保障脱贫户、监测户稳定增收。"]
[371,"就业项目","务工补助","生产奖补、务工奖补","筻口镇","筻口镇","筻口镇两有对象产业奖补","续建","全镇",2026.1,2026.12,"筻口镇","大面脱贫户、监测户产业帮扶",40,40,0,15,356,957,15,99,223,"带动脱贫户监测户增收，巩固脱贫攻坚成果","巩固拓展脱贫攻坚成果和乡村振兴有效衔接,保障脱贫户、监测户稳定增收。"]
[372,"就业项目","务工补助","生产奖补、务工奖补","麻塘街道","各村","麻塘街道26年产业奖补项目","续建","各村",2026.03,2026.11,"麻塘街道乡村振兴办","对麻塘街道约400户脱贫户、监测户有条件、有意愿发展生产的户进行产业奖补",30,30,0,7,400,1000,1,400,1000,"提升约400户脱贫户及监测户的产业发展水平、户均增收2000元","直接参与受益、委托合作社帮扶发展受益"]
[373,"乡村建设行动","农村公共服务","其他","麻塘街道","麻布山村","永和片黄元九晒谷场硬化","新建","永和片联盟组",2026.09,2026.11,"麻布山村","平整硬化850平方",{"v":7,"d":"7.00"},{"v":6,"d":"6.00"},{"v":1,"d":"1.00"},1,28,70,1,1,3,"完成850平方米晒谷场地建设；解决群众晒谷难问题","群众晒谷受益、群众参与施工，直接受益"]
[374,"乡村建设行动","农村基础设施","农村道路建设\n（通村、通户路）","麻塘街道","麻布山村","大坳片晏家组至新建村断头路硬化","新建","大坳片晏家组",2026.08,2026.09,"麻布山村","道路硬化280米*3.5米*0.2米",{"v":11,"d":"11.00"},{"v":9,"d":"9.00"},{"v":2,"d":"2.00"},1,55,190,1,3,12,"完成280米道路硬化，解善群众交通出行难问题","群众方便出行受益、群众参与施工直接受益"]
[375,"产业发展","配套基础设施项目","小型农田水利设施建设","麻塘街道","麻布山村","牌头片东头组抗旱机埠建设","新建","牌头片东头组",2026.08,2026.09,"麻布山村","新建机埠设备一套，机房9平方，渠道维修380米。",{"v":6,"d":"6.00"},{"v":5,"d":"5.00"},{"v":1,"d":"1.00"},1,120,330,1,8,14,"完成机埠建设一座，解决牌头片80亩农田灌溉难问题","受益灌溉农田增产增收200元/亩群众参与施工直接受益"]
[376,"乡村建设行动","农村基础设施","产业路、资源路、旅游路建设","麻塘街道","原种场","原种场产业路拓宽硬化","新建","原种场一、二组",2026.05,2026.06,"岳阳县原种场","道路加拓宽硬化",{"v":28,"d":"28.00"},{"v":23,"d":"23.00"},5,2,450,1584,1,25,150,"完成280米道路硬化，解善群众交通出行难问题","群众方便出行受益、群众参与施工直接受益"]
[377,"产业发展","配套基础设施项目","小型农田水利设施建设","麻塘街道","原种场","原种场一组山塘清淤加固项目","新建","原种场一、二组",{"v":2026.1,"d":"2026.10"},2026.11,"岳阳县原种场","灌溉水塘维修加固",{"v":12,"d":"12.00"},{"v":10,"d":"10.00"},2,2,450,1584,1,25,150,"完成 亩水塘清淤，增加灌溉储水量；解善  亩农田灌溉条件","受益灌溉农田增产增收200元/亩群众参与施工直接受益"]
[378,"产业发展","配套基础设施项目","小型农田水利设施建设","麻塘街道","洞庭村","大湾组新建排涝机埠","新建","大湾组","2026.5.10","2026.5.31","洞庭村","大湾组新建抗旱排涝机埠一座",{"v":5,"d":"5.00"},{"v":5,"d":"5.00"},0,1,25,120,1,1,3,"完成新建机埠1座，解决280亩水田内涝排渍难的问题","农户种植水田解决内渍保障安全生产、直接受益"]
[379,"产业发展","配套基础设施项目","小型农田水利设施建设","麻塘街道","洞庭村","跃东组新建渠道","新建","跃东组","2026.5.20","2026.6.10","洞庭村","跃东组新建渠道约280米",{"v":5,"d":"5.00"},{"v":5,"d":"5.00"},0,1,50,200,1,2,2,"新建280米灌溉渠道、解善60亩农田灌溉","受益灌溉农田增产增收200元/亩群众参与施工直接受益"]
[380,"产业发展","配套基础设施项目","小型农田水利设施建设","麻塘街道","洞庭村","新龙组机埠渠道维修","改建维修","新龙组","2026.6.10","2026.6.30","洞庭村","新龙组机埠维修、渠道清淤、护砌250米",{"v":5,"d":"5.00"},{"v":5,"d":"5.00"},0,1,9,30,1,1,2,"完成机埠维修、清淤护砌渠道250米、改善60亩农田灌溉用水","受益灌溉农田增产增收200元/亩群众参与施工直接受益"]
[381,"产业发展","配套基础设施项目","小型农田水利设施建设","麻塘街道","麻塘村","双喜组冬丫塘清淤","改建","麻塘村\n双喜组",20260510,20260530,"麻塘村","东丫山塘淤泥3.5亩，山塘清淤、护坡，预埋排水底管",{"v":5,"d":"5.00"},{"v":5,"d":"5.00"},0,1,28,96,1,3,10,"清淤后，山塘蓄水解决近80亩农田灌溉，将对双喜组农田灌溉带来实质性变化","受益灌溉农田增产增收200元/亩群众参与施工直接受益"]
[382,"乡村建设行动","农村基础设施","农村道路建设\n（通村、通户路）","麻塘街道","麻塘村","麻塘村四兴组断头路硬化","改建","麻塘村新建片四兴组",20260510,20260530,"麻塘村","对新建片四兴组断头路硬化50米",{"v":3.5,"d":"3.50"},{"v":3.5,"d":"3.50"},0,1,25,78,1,2,7,"完成硬化50米道路、解善群众交通出行难问题","群众方便出行受益、群众参与施工直接受益"]
[383,"产业发展","配套基础设施项目","小型农田水利设施建设","麻塘街道","麻塘村","麻塘村新屋组龙口机埠维修项目","改建","麻塘村麻塘片新屋组",20260510,20260530,"麻塘村","龙口机埠100米沟渠进行清淤疏通拟购置10KW抽水机一台，并架电缆线300米长",{"v":3,"d":"3.00"},{"v":3,"d":"3.00"},0,1,22,48,1,2,5,"完成机埠维修及清淤渠道100米、解决280亩农田灌溉用水","受益灌溉农田增产增收200元/亩群众参与施工直接受益"]
[384,"产业发展","配套基础设施项目","小型农田水利设施建设","麻塘街道","麻塘村","麻塘村麻塘片李家港新建拦水坝项目","改建","麻塘村麻塘片李家组",20260510,20260530,"麻塘村","对李家港进行钢筋织网，混泥土浇灌，形成拦水坝，坝底预埋300mm底管，拦水坝规格为长25米、宽1.5米、高2米。",{"v":6,"d":"6.00"},{"v":6,"d":"6.00"},0,1,85,266,1,3,10,"完成李家港25米拦水坝建设、新增蓄水解决300亩农田灌溉问题","受益灌溉农田增产增收200元/亩群众参与施工直接受益"]
[385,"产业发展","配套基础设施项目","小型农田水利设施建设","麻塘街道","麻塘村","麻塘村新建片白泥港新建拦水坝项目","新建","麻塘村新新建片新挡组",20260510,20260530,"麻塘村","对白泥港进行钢筋织网，混泥土浇灌，形成拦水坝，坝底预埋300mm底管，拦水坝规格为长20米、宽3米、高2米。",{"v":3,"d":"3.00"},{"v":3,"d":"3.00"},0,1,95,276,1,4,10,"完成白泥20米拦水坝、新增蓄水解决近320亩农田灌溉用水","受益灌溉农田增产增收200元/亩群众参与施工直接受益"]
[386,"乡村建设行动","农村基础设施","农村道路建设\n（通村、通户路）","麻塘街道","麻塘村","麻塘村新建组道路硬化项目","改建","麻塘村新建组",20260510,20260530,"麻塘村","新建组道路硬化长30米。宽3.5米，厚度0.2米",{"v":2,"d":"2.00"},{"v":2,"d":"2.00"},0,1,25,84,1,2,5,"完成约30米道路硬化，改善群众出行条件","群众方便出行受益、群众参与施工直接受益"]
[387,"乡村建设行动","农村基础设施","农村道路建设\n（通村、通户路）","麻塘街道","麻塘村","麻塘村农科组道路拓宽硬化项目","改建","麻塘村农科组",20260510,20260530,"麻塘村","对道路拓宽长120米。宽1米，厚度0.2米，路底下水沟预埋波纹管120米",{"v":8,"d":"8.00"},{"v":8,"d":"8.00"},0,1,29,95,1,3,8,"完成约120米道路拓宽硬化及120米排水灌溉沟渠涵管安装","群众方便出行受益、群众参与施工直接受益"]
[388,"乡村建设行动","人居环境整治","农村污水治理","麻塘街道","麻塘村","麻塘村农科组新建组排水沟污水管网改造工程","改建","麻塘村农科组新建组",20260510,20260630,"麻塘村","对农科新建两组排水沟用砖砌筑24墙，沟上方并加盖板，排水沟长200米，宽度0.6米，高度0.5米",{"v":5,"d":"5.00"},{"v":5,"d":"5.00"},0,1,65,285,1,4,13,"完成约200米屋前屋后雨污沟渠改造，改善群众居住环境条件","群众居住环境改善受益、群众参与直接受益"]
[389,"乡村建设行动","人居环境整治","村容村貌提升","麻塘街道","麻塘村","麻塘村农科组新建组村容村貌提质改造项目","改建","麻塘村农科组新建组",20260510,20260630,"麻塘村","对屋场菜园及其它地坪进行护栏围挡，护栏长度约300米，高1.2米对屋场村容村貌用工程机械和人工方式进行清理整治",{"v":15,"d":"15.00"},{"v":15,"d":"15.00"},0,1,65,285,1,4,13,"完成农科组新建组屋场环境改造、提升村容村貌","群众居住环境改善受益、群众参与直接受益"]
[390,"产业发展","生产项目","种植业基地","麻塘街道","麻塘村","麻塘村栀子花种植基地项目","新建","麻塘村",2026.02,202603,"麻塘村","约40亩栀子花林地开垦、翻耕、苗木种植、道路建设及灌溉设施建设",{"v":20,"d":"20.00"},{"v":20,"d":"20.00"},0,1,20,72,1,5,17,"完成栀子花基地建设约40亩，盛果期亩产1000-1500斤鲜果，产值5000元/亩","发展村级集体经济，后续带动农户发展栀子花种植产业增收、增加务工、土地流转直接受益"]
[391,"产业发展","配套基础设施项目","小型农田水利设施建设","麻塘街道","金垅村","冯家组后山塘清淤、护坡","维修","金垅村冯家组",2026.5,2026.8,"金垅村","清淤约1400立方米、护坡142米",{"v":3,"d":"3.00"},{"v":3,"d":"3.00"},0,1,28,98,1,2,8,"完成水塘清淤1400立方米、解决30亩水田灌溉用水","受益灌溉农田增产增收200元/亩群众参与施工直接受益"]
[392,"乡村建设行动","农村基础设施","农村道路建设\n（通村、通户路）","麻塘街道","金垅村","王家组道路硬化","新建","金垅村王家组",2026.5,2026.9,"金垅村","硬化道路约300米、规格300*3.5*0.2米",{"v":18,"d":"18.00"},{"v":18,"d":"18.00"},0,1,32,112,1,1,1,"完成约300米道路硬化、解善群众出行条件","群众方便出行受益、群众参与施工直接受益"]
[393,"乡村建设行动","农村基础设施","农村道路建设\n（通村、通户路）","麻塘街道","金垅村","邓家组道路硬化","新建","金垅村邓家组",2026.5,2026.9,"金垅村","硬化道路约470米、规格470*3.5*0.2米",{"v":23,"d":"23.00"},{"v":23,"d":"23.00"},0,1,41,152,1,3,6,"完成约470米道路硬化、解善群众出行条件","群众方便出行受益、群众参与施工直接受益"]
[394,"产业发展","配套基础设施项目","小型农田水利设施建设","麻塘街道","东风村","细屋组门前垅水渠项目","新建","东风村塘内片细屋组","2026.10","2026.11","东风村村委会","新建水渠长100米，宽0.4米，高0.5米",3.64,{"v":3,"d":"3.00"},0.64,1,18,51,1,3,5,"完成长约100米的砖砌水渠、解善约20亩水田灌溉用水","受益灌溉农田增产增收200元/亩群众参与施工直接受益"]
[395,"产业发展","配套基础设施项目","小型农田水利设施建设","麻塘街道","东风村","榨油组三叉港水渠项目","新建","东风村东风片榨油组","2026.10","2026.11","东风村村委会","新建水渠长200米，宽0.5米，高0.5米",{"v":7,"d":"7.00"},{"v":7,"d":"7.00"},0,1,30,102,1,2,8,"完成长约200米的砖砌水渠、解善约80亩水田灌溉用水","受益灌溉农田增产增收200元/亩群众参与施工直接受益"]
[396,"产业发展","配套基础设施项目","小型农田水利设施建设","麻塘街道","东风村","八景片一、七组水渠项目","新建","东风村八景片一、七组","2026.10","2026.11","东风村村委会","新建水渠长200米，宽0.5米，高0.5米",{"v":9.4,"d":"9.40"},{"v":9,"d":"9.00"},0.4,1,35,122,1,3,13,"完成长约200米的砖砌水渠、解善约40亩水田灌溉用水","受益灌溉农田增产增收200元/亩群众参与施工直接受益"]
[397,"产业发展","生产项目","养殖业基地","张谷英镇","朱公桥村","王鸽养殖","新建","朱公桥村",2026.1,2026.3,"朱公桥村村委会","王鸽养殖3000对",85,20,65,1,826,3596,0,28,74,"新建养殖基地及配套设施并顺利投产","朱公桥村受益人口3596人"]
[398,"乡村建设行动","农村基础设施","农村道路建设\n（通村、通户路）","张谷英镇","饶村村","道路水毁港墈护彻","维修","饶村村",2026.3,2026.5,"饶村村","水毁港墈彻长100米，基宽1.2米，面宽0.8米，高3米",10,8,2,1,450,2000,1,14,33,"在2026年5月底前完成道路水毁港墈护彻","通过对道路水毁港墈护彻，解决群众出行及生产生活问题"]
[399,"产业发展","生产项目","种植业基地","张谷英镇","松树村","棉花种植项目","新建","向阳片湖湾里",2026.3,2026.11,"松树村","棉花种植50亩",2,1,1,1,15,75,0,10,30,"增加村集体经济收入1万元","解决务工岗位4个，带动村民增收"]
[400,"产业发展","生产项目","种植业基地","张谷英镇","松树村","油菜种植项目","新建","向阳片","2026.01.01",2026.4,"松树村","油菜种植50亩",3,2,1,1,30,150,0,20,100,"增加村集体经济收入2万元","解决务工岗位4个，带动村民增收"]
[401,"产业发展","生产项目","种植业基地","张谷英镇","松树村","金盆柚种植项目","新建","兰家冲",2026.2,"2026.10","松树村","金盆柚种植30亩",16,10,6,1,40,200,0,20,100,"增加村集体经济收入8万元","解决务工岗位10个，带动村民增收"]
[402,"产业发展","生产项目","种植业基地","张谷英镇","松树村","松树村稻虾混养村集体经济发展项目","新建","兰家冲",2026.3,"2026.10","松树村","托管农田20亩养殖农虾，30亩种植稻谷。",8,6,2,1,40,200,0,9,22,"增加村集体经济收入5万元；","群众酬劳、带动村民40户200人增加家庭收入"]
[403,"产业发展","生产项目","种植业基地","张谷英镇","芭蕉村","庭院经济金盆柚与黄精种植","扩建","芭蕉村四个片","2026.9.30","2026.12.30","芭蕉村","黄精种植20亩、金盆柚种植180亩",30,28,2,1,706,2760,1,72,225,"该项目致本村\n增加庭院经济，\n提高脱贫户经济收入，\n解决劳动就业","全村受益人口2760人"]
[404,"乡村建设行动","农村基础设施","农村道路建设\n（通村、通户路）","张谷英镇","芭蕉村","红卫片猪形堰农田道路修建","新建","红卫片猪形堰","2026.7.30","2026.10.30","芭蕉村","红卫片猪形堰农田道路1公里",40,20,20,1,380,762,1,9,38,"解决农户安全生产，粮食种植安全出行","全村受益人口762人"]
[405,"乡村建设行动","农村基础设施","农村供水保障设施建设","张谷英镇","芭蕉村","红卫片一心片饮水改造","建设行动","红卫片一心片","2026.3.30","2026.9.30","芭蕉村","4个深水井两个水塔",50,30,20,1,780,1230,1,42,168,"解决村民安全饮水","全村受益人口1230人"]
[406,"产业发展","配套基础设施项目","小型农田水利设施建设","张谷英镇","芭蕉村","红卫片农田灌溉抽水机埠改造","维修提质改造","红卫片豪州背","2026.5.30","2026.9.30","芭蕉村","更新抽水机埠设备及管道更换2000米",12,10,2,1,380,762,1,9,38,"解决村民农田灌溉，确保粮食生产","全村受益人口762人"]
[407,"产业发展","加工流通项目","产地初加工和精深加工","张谷英镇","大明山村","环保竹炭加工厂","新建","大明山村豪坑片",2026.3,2026.9,"大明山村村委会","环保碳加工",1000,60,940,1,599,2373,1,48,21,"每年可产生集体经济收入20万元","利用本地竹资源，增加村集体经济，改善劳动就业。"]
[408,"产业发展","加工流通项目","产地初加工和精深加工","张谷英镇","大明山村","豪坑竹扫把加工厂工程","新建","大明山豪坑组",2026.3,2026.9,"大明山村村委会","竹扫把加工",500,60,440,1,599,2373,1,"48户",21,"每年产生集体经济5万","利用本地竹资源，增加村集体经济，改善劳动就业。"]
[409,"产业发展","生产项目","种植业基地","张谷英镇","大明山村","金盆柚种植基地","新建","大明山村四片区",2026.3,2026.6,"大明山村村委会","种植金盆柚",80,50,30,1,599,2373,1,"48户",21,"每年产生集体经济5万","发展庭院经济"]
[410,"产业发展","生产项目","种植业基地","张谷英镇","天龙村","天龙村黄茶产业基地","新建","天龙村桂峰片",2026.7,2026.12,"天龙村村委会","黄茶种植基地50亩",15,13,2,1,1515,5236,0,"脱贫户 40户.监测户2户",137,"黄茶基地可提供20多个岗位增加集体收入3万多元","黄茶基地受益人口127人"]
[411,"产业发展","生产项目","种植业基地","张谷英镇","天龙村","天龙村金盆柚产业基地","新建","天龙村长坪片.杉桥片",2026.7,2026.12,"天龙村村委会","金盆柚种植基地20亩",7,5,2,1,1515,5236,0,"脱贫户 40户.监测户2户",137,"金盆柚基地可提供5多个岗位增加集体收入1万多元","金盆柚基地受益人口150多人，带动就业及增收"]
[412,"产业发展","生产项目","种植业基地","张谷英镇","天龙村","天龙村黄精种植产业基地","新建","天龙村长坪片.杉桥片",2026.7,2026.12,"天龙村村委会","黄精种植基地30亩",5,4,1,1,1515,5236,0,"脱贫户 40户.监测户2户",137,"黄精种植基地可提供10多人就业增加集体收入1万多元","黄精种植基地带动了林下经济，受益人口500多人"]
[413,"产业发展","配套基础设施项目","小型农田水利设施建设","张谷英镇","天龙村","竹坪片.天龙片.杉桥片田墈.港磡及水堰工程","新建","竹坪片.天龙片.杉桥片",2026.7,2026.12,"天龙村村委会","竹坪片田墈高3米长70米宽0.8米天龙片港磡长20米高5米宽1米，杉桥水堰维修80个立方",12,10,2,1,1515,5236,0,"脱贫户 40户.监测户2户",137,"竹坪片.天龙片.杉桥片的项目开展解决了20多亩水稻灌溉问题及出行安全","田墈.港磡及水堰工程开展解决了农田的种植及出行安全受益人口500多人"]
[414,"产业发展","生产项目","种植业基地","张谷英镇","倒溪村"," 10万亩楠竹基地开发","续建","倒\n溪\n村",2026.2,2029.1,"倒\n溪\n村","引进竹制品加工企业，流转楠竹林，楠竹修山，基地低改，盘活竹林资源，培育竹笋。",80,40,40,1,400,2054,0,24,72," 盘活竹林资源，培育竹笋，提高竹子价值，让老百姓在家门口务工创业，实现增收致富。","群众参与"]
[415,"产业发展","配套基础设施项目","小型农田水利设施建设","张谷英镇","倒溪村","师堂片和泉水片农田水利基础设施建设","续建","师堂片、泉水片",2026.2,2026.9,"农业农村局","对师堂片和泉水片砖砌约1500米水渠，5道水堰维修,4处灌溉山塘蓄水功能维修恢复。",44,20,24,1,400,2054,0,24,72,"倒溪村农田灌溉用，旱涝保收基础工程建设。","群众参与施工"]
[416,"乡村建设行动","农村基础设施","农村道路建设\n（通村、通户路）","张谷英镇","倒溪村","屋场连接路硬化","续建","倒溪村",2026.03,2026.12,"交通局","公墓山连接路，师堂片屋场连接路，泉水片屋场连接路",96,56,40,1,400,2054,0,24,72,"山区道路拓宽便于全村村民出行，保障会车、出行安全和畅通，降低运成本，为竹制品加工企业入村发展产业振兴乡村打下夯实的基础。","群众参与施工"]
[417,"产业发展","配套基础设施项目","小型农田水利设施建设","张谷英镇","倒溪村","主干河道治理","新建","倒溪村",2026.6,2026.11,"水利局"," 倒溪村6.7公里溪流全线两岸的田磡路磡进行护砌，河道疏浚",480,450,30,1,400,2054,0,24,72,"恢复和提升河道功能，增强防洪排涝能力，改善水质和生态环境，为水生生物提供更好生存环境，","群众参与施工"]
[418,"产业发展","生产项目","种植业基地","张谷英镇","张谷英村","张谷英村红薯种植基地建设项目","新建","张谷英村",2026.4,2026.12,"张谷英村","新建红薯种植基地10亩",10,10,0,1,230,480,1,10,27,"创建红薯种植基地","带动农民发展产业、增加收入"]
[419,"产业发展","生产项目","种植业基地","张谷英镇","张谷英村","张谷英村金盆柚种植基地建设项目","新建","张谷英村",2026.3,2026.12,"张谷英村","新建金盆柚植基地18亩",15,15,0,1,420,1480,1,10,27,"创建金盆柚植基地","龙头企业+合作社+基地+农户的模式，实现技术培训、统一管理、定价回收，带动农户增收‌。"]
[420,"产业发展","配套基础设施项目","小型农田水利设施建设","张谷英镇","张谷英村","张谷英村樟木冲水港护砌建设项目","改建","张谷英村",2026.07,2026.12,"张谷英村","樟木冲水港护砌",15,15,0,1,150,400,1,10,27,"通过护砌工程抵御水流侵蚀，防止岸坡坍塌，保障区域地质安全‌","通过政策引导和群众参与，实现工程效益与农民增收的双赢。"]
[421,"乡村建设行动","农村基础设施","农村道路建设\n（通村、通户路）","张谷英镇","大峰村","大峰村道路硬化","维修","大峰村",2026.5,2026.12,"大峰村","在大峰村内油化扩宽长3公里宽6米村级道路",55,45,10,1,1090,3790,0,72,172,"改善村级道路，方便村民出行，提升村民幸福感","受益户为大峰村全体村民"]
[422,"产业发展","生产项目","种植业基地","张谷英镇","大峰村","大峰村金盆柚种植","新建","大峰村",2026.6,2026.12,"大峰村","大峰村内新建150亩的金盆柚种植基地",55,50,5,1,1090,3790,0,72,172,"增加村集体经济","受益户为大峰村全体村民"]
[423,"产业发展","生产项目","种植业基地","张谷英镇","大峰村","双石片黄茶种植","新建","大峰村",2026.6,2026.12,"大峰村","在大峰村双石片二房组尖山岭新建20亩黄茶种植基地",10,5,5,1,1090,3790,0,72,172,"增加村集体经济","受益户为大峰村全体村民"]
[424,"产业发展","配套基础设施项目","小型农田水利设施建设","张谷英镇","大峰村","黄茶基地供水设施建设","新建","大峰村",2026.2,2026.7,"大峰村","在金西片黄茶基地修建三座供水塔，规格为5*5*3米，增设三个临时水泵站，铺设给水管道3000米",10,8,2,1,1090,3790,0,72,172,"保障黄茶基地的稳定发展","受益户为大峰村全体村民"]
[425,"产业发展","生产项目","养殖业基地","张谷英镇","大峰村","王鸽养殖扩建","扩建","大峰村",2026.6,2026.12,"大峰村","对现有的鸽子养殖场地扩建，增加鸽子养殖到3000对",50,45,5,1,1090,3790,0,72,172,"增加村集体经济","受益户为大峰村全体村民"]
[426,"产业发展","配套基础设施项目","小型农田水利设施建设","张谷英镇","大峰村","大峰村灌排渠维修","维修","大峰村",2026.6,2026.12,"大峰村","大峰村3公里灌排渠取污及维修",30,25,5,1,1090,3790,0,72,172,"方便村民种植水稻，提升村民幸福感","受益户为大峰村全体村民"]
[427,"产业发展","配套基础设施项目","小型农田水利设施建设","张谷英镇","五洋村","五洋村下庄、大水、小水水堰水渠维修项目","维修","五洋村","2026.1.1","2026.12.30","五洋村","五洋村下庄、大水、小水片水堰、水渠500立方",25,20,5,1,623,1979,0,34,101,"该项目方便五洋村下庄、大水、小水片水田灌溉，增强抗旱能力，总受益人口623户、1979人","五洋村下庄、大水、小水片总受益人口623户、1979人"]
[428,"产业发展","生产项目","种植业基地","张谷英镇","渭洞村","金盆柚种植（二期）","新建","渭洞村四维片",2026.1,2026.3,"渭洞村","四维片承包山地20亩，开挖平整种植金盆柚13200棵树苗",45,25,20,1,1062,3446,0,36,102,"增加劳动力10人增收，壮大集体经济收入。","渭洞村全村1062户，3446人受益"]
[429,"乡村建设行动","农村基础设施","农村道路建设\n（通村、通户路）","张谷英镇","渭洞村","兰家冲机耕路建设","新建","渭洞村",2026.04,2026.8,"渭洞村","机耕路全长2000米，宽4.5米，护砌石方100立方。",30,10,20,1,136,477,0,2,10,"目标1：机耕路全长2000米宽4.5米，护砌石方100立方。\n目标2：机耕路硬化，田地生产带来很多便利，提高村民生产条件。\n目标3：该项目方便村民农耕，树木生产运输便利，总受益人口136户，477人。","总受益人口136户，477人。"]
[430,"产业发展","生产项目","种植业基地","张谷英镇","莲花湖村","养生稻种植","新建","莲花湖村",2026.3,2026.11,"莲花湖村","养生稻种植200亩",30,20,10,1,40,185,1,14,32,"养生稻种植260亩","受益户为莲花湖村全体村民"]
[431,"产业发展","生产项目","种植业基地","张谷英镇","莲花湖村","黄精种植","新建","莲花湖村",2026.3,2026.11,"莲花湖村","黄精种植100亩",30,20,10,1,55,230,1,20,50,"黄精种植100亩","受益户为莲花湖村全体村民"]
[432,"产业发展","生产项目","种植业基地","张谷英镇","莲花湖村","金盆柚种植","新建","莲花湖村",2026.3,2026.11,"莲花湖村","金盆柚种植50亩",50,30,20,1,30,150,1,16,50,"金盆柚种植50亩","受益户为莲花湖村全体村民"]
[433,"乡村建设行动","农村基础设施","产业路、资源路、旅游路建设","张谷英镇","莲花湖村","河山洞道路硬化","新建","莲花湖村",2026.3,2026.11,"莲花湖村","硬化道路4公里",15,10,5,1,28,168,1,14,32,"硬化道路4公里","受益户为莲花湖村全体村民"]
[434,"产业发展","配套基础设施项目","小型农田水利设施建设","张谷英镇","莲花湖村","大坳悯港港墈护砌","改建","莲花湖村",2026.3,2026.11,"莲花湖村","港墈护砌400米",30,20,10,1,120,650,1,26,79,"港墈护砌400米","受益户为莲花湖村全体村民"]
[435,"产业发展","生产项目","种植业基地","张谷英镇","风水村","风水村龙山百\n合种植","新建","风水村",{"v":2026.1,"d":"2026.10"},2026.11,"风水村","翻耕、育苗下种水肥一体化12亩龙山百合种植",18,15,3,1,26,102,1,10,38,"建成12亩水肥一体化龙山百合种植基地","为村民增收1500元"]
[436,"产业发展","生产项目","种植业基地","张谷英镇","风水村","风水村金盆柚种植","新建","风水村烟冲山塘上坡",2026.3,{"v":2026.1,"d":"2026.10"},"风水村","翻耕、\n育苗下种水肥一体化15亩金盆柚种植",15,12,3,1,42,162,1,18,42,"建成15亩水肥一体化金盆柚种植","为村民增收1200元"]
[437,"产业发展","生产项目","种植业基地","张谷英镇","风水村","风水村水肥一体化工程建设","新建","风水村",2026.3,{"v":2026.1,"d":"2026.10"},"风水村","水肥一体化",15,13,2,1,26,135,1,12,23,"完善60亩榴莲蜜薯基地升级","为村民增收2000元"]
[438,"乡村建设行动","农村基础设施","农村道路建设\n（通村、通户路）","张谷英镇","风水村","风水村产业道路建设项目","新建","风水村寺湾片",2026.4,{"v":2026.1,"d":"2026.10"},"风水村","1.6公里道路建设",56,40,16,1,32,212,1,18,48,"完成1.6公里道路硬化","为村民增收800元"]
[439,"就业项目","务工补助","生产奖补、务工奖补","张谷英镇","张谷英镇","产业奖补","续建","是",2026.1,2026.12,"农业农村局","产业奖补",50,50,0,13,244,786,3,244,786,"对有产业发展意向的脱贫户、监测对象，发放产业启动资金或对产业发展具备一定规模、增收效果好的脱贫户、监测对象，以家庭为单位发放产业奖励补助，鼓励其发展产业致富。","直接受益"]